Service Delivery Area(T),Service Delivery Team(T),CostC,ExpenditureGroup(T),Account(T),Supplier Name(T),Trans Date,Amount
Adult Social Services,Access & Enablement,HCAJ,Supplies & Services,Other Grants (Expenses),PARKWOOD HEALTHCARE LTD,04/06/2015,"25,000.00"
Adult Social Services,Access & Enablement,HHAC,Supplies & Services,Consultants Fees,New Path Consulting Limited,15/06/2015,"20,000.00"
Adult Social Services,Access & Enablement,HHAG,Supplies & Services,Sport Equip - Purchase,Andrew Mason Consultancy Ltd,15/06/2015,"1,125.00"
Adult Social Services,Access & Enablement,HMAA,Supplies & Services,Other Expenses,NHS Supply Chain,09/06/2015,244.68
Adult Social Services,Access & Enablement,HMAA,Supplies & Services,Other Expenses,TV LICENSING,25/06/2015,145.5
Adult Social Services,Access & Enablement,HMAX,Supplies & Services,Other Grants (Expenses),CAIS Ltd,16/06/2015,"1,610.00"
Adult Social Services,Access & Enablement,HMAX,Supplies & Services,Other Grants (Expenses),CAIS Ltd,16/06/2015,"1,480.00"
Adult Social Services,Access & Enablement,HMAX,Supplies & Services,Other Grants (Expenses),CAIS Ltd,18/06/2015,230.00
Adult Social Services,Access & Enablement,HMAX,Supplies & Services,Other Grants (Expenses),CAIS Ltd,18/06/2015,"1,840.00"
Adult Social Services,Access & Enablement,HMBC,Premises-Related Expenditure,Hire Of Rooms,MEADCROFT COMFORTS FUND,09/06/2015,130.00
Adult Social Services,Access & Enablement,HMBJ,Third Party Payments,Residential Expenditure,Firs Riverside B & B,09/06/2015,980.00
Adult Social Services,Access & Enablement,HMBJ,Third Party Payments,Residential Expenditure,Firs Riverside B & B,09/06/2015,539.00
Adult Social Services,Access & Enablement,HOAG,Supplies & Services,Aids & Appliances,ACTION ON HEARING LOSS (01797293),04/06/2015,215.95
Adult Social Services,Access & Enablement,HOAG,Supplies & Services,Aids & Appliances,CONNEVANS LIMITED,09/06/2015,202.97
Adult Social Services,Access & Enablement,HOAG,Supplies & Services,Aids & Appliances,RNIB SERVICES LIMITED,01/06/2015,179.00
Adult Social Services,Access & Enablement,HOAG,Supplies & Services,Aids & Appliances,RNIB SERVICES LIMITED,01/06/2015,174.96
Adult Social Services,Access & Enablement,HOAP,Supplies & Services,Aids & Appliances,AA Moving Solutions Ltd,08/06/2015,178.52
Adult Social Services,Access & Enablement,HOAP,Supplies & Services,Aids & Appliances,AA Moving Solutions Ltd,08/06/2015,178.52
Adult Social Services,Access & Enablement,HOAP,Supplies & Services,Aids & Appliances,AA Moving Solutions Ltd,08/06/2015,598.50
Adult Social Services,Access & Enablement,HOAP,Supplies & Services,Aids & Appliances,AA Moving Solutions Ltd,08/06/2015,690.90
Adult Social Services,Access & Enablement,HOAP,Supplies & Services,Aids & Appliances,AA Moving Solutions Ltd,15/06/2015,"2,234.64"
Adult Social Services,Access & Enablement,HOAP,Supplies & Services,Aids & Appliances,AA Moving Solutions Ltd,08/06/2015,722.60
Adult Social Services,Access & Enablement,HOAP,Supplies & Services,Aids & Appliances,AA Moving Solutions Ltd,08/06/2015,393.75
Adult Social Services,Access & Enablement,HOAP,Supplies & Services,Aids & Appliances,AA Moving Solutions Ltd,08/06/2015,300.84
Adult Social Services,Access & Enablement,HOAP,Supplies & Services,Aids & Appliances,AA Moving Solutions Ltd,08/06/2015,300.84
Adult Social Services,Access & Enablement,HOAP,Supplies & Services,Aids & Appliances,AA Moving Solutions Ltd,08/06/2015,100.28
Adult Social Services,Access & Enablement,HOAP,Supplies & Services,Aids & Appliances,AA Moving Solutions Ltd,10/06/2015,350.00
Adult Social Services,Access & Enablement,HOAP,Supplies & Services,Aids & Appliances,AA Moving Solutions Ltd,15/06/2015,152.28
Adult Social Services,Access & Enablement,HOAP,Supplies & Services,Aids & Appliances,AA Moving Solutions Ltd,15/06/2015,225.25
Adult Social Services,Access & Enablement,HOAP,Supplies & Services,Other Services,AWS Bathroom Supplies Ltd,05/06/2015,"1,600.00"
Adult Social Services,Access & Enablement,HOAP,Supplies & Services,Other Services,AWS Bathroom Supplies Ltd,05/06/2015,200.00
Adult Social Services,Access & Enablement,HOAP,Supplies & Services,Aids & Appliances,BERWICK CARE EQUIPMENT LTD,04/06/2015,599.00
Adult Social Services,Access & Enablement,HOAP,Supplies & Services,Aids & Appliances,Easylink,25/06/2015,124.96
Adult Social Services,Access & Enablement,HOAP,Supplies & Services,Aids & Appliances,Easylink,05/06/2015,947.20
Adult Social Services,Access & Enablement,HOAP,Supplies & Services,Aids & Appliances,MANGAR INTERNATIONAL LTD,24/06/2015,"5,100.00"
Adult Social Services,Access & Enablement,HOAP,Supplies & Services,Aids & Appliances,MANGAR INTERNATIONAL LTD,04/06/2015,"3,500.00"
Adult Social Services,Access & Enablement,HOAP,Supplies & Services,Aids & Appliances,NRS Healthcare T/A Nottingham Rehab Ltd,23/06/2015,417.00
Adult Social Services,Access & Enablement,HOAP,Supplies & Services,Aids & Appliances,NRS Healthcare T/A Nottingham Rehab Ltd,17/06/2015,367.08
Adult Social Services,Access & Enablement,HOAP,Supplies & Services,Aids & Appliances,PivoTell Ltd,11/06/2015,110.00
Adult Social Services,Access & Enablement,HOAP,Supplies & Services,Aids & Appliances,PivoTell Ltd,24/06/2015,"1,900.00"
Adult Social Services,Access & Enablement,HOAP,Supplies & Services,Aids & Appliances,PRISM MEDICAL (14083954) WESTHOLME DIVISION,10/06/2015,"1,288.18"
Adult Social Services,Access & Enablement,HOAP,Supplies & Services,Aids & Appliances,THE WREKIN HOUSING TRUST (INVOICES ONLY),22/06/2015,125.00
Adult Social Services,Access & Enablement,HOAP,Supplies & Services,Aids & Appliances,THE WREKIN HOUSING TRUST (INVOICES ONLY),22/06/2015,125.00
Adult Social Services,Access & Enablement,HOAP,Supplies & Services,Aids & Appliances,THE WREKIN HOUSING TRUST (INVOICES ONLY),10/06/2015,125.00
Adult Social Services,Access & Enablement,HOAP,Supplies & Services,Aids & Appliances,THE WREKIN HOUSING TRUST (INVOICES ONLY),12/06/2015,125.00
Adult Social Services,Access & Enablement,HOAP,Supplies & Services,Aids & Appliances,THE WREKIN HOUSING TRUST (INVOICES ONLY),04/06/2015,125.00
Adult Social Services,Access & Enablement,HOAP,Supplies & Services,Aids & Appliances,THE WREKIN HOUSING TRUST (INVOICES ONLY),04/06/2015,125.00
Adult Social Services,Access & Enablement,HOAP,Supplies & Services,Adaptations,TRAVIS PERKINS TRADING CO LIMITED,11/06/2015,108.97
Adult Social Services,Access & Enablement,HOAP,Supplies & Services,Adaptations,TRAVIS PERKINS TRADING CO LIMITED,11/06/2015,309.57
Adult Social Services,Access & Enablement,HOAP,Supplies & Services,Adaptations,TRAVIS PERKINS TRADING CO LIMITED,11/06/2015,103.02
Adult Social Services,Access & Enablement,HOAP,Supplies & Services,Adaptations,TRAVIS PERKINS TRADING CO LIMITED,11/06/2015,107.02
Adult Social Services,Access & Enablement,HOAP,Supplies & Services,Adaptations,TRAVIS PERKINS TRADING CO LIMITED,04/06/2015,172.37
Adult Social Services,Access & Enablement,HOAP,Supplies & Services,Adaptations,TRAVIS PERKINS TRADING CO LIMITED,04/06/2015,675.00
Adult Social Services,Access & Enablement,HOAP,Supplies & Services,Equipment - Repair,WESSEX LIFT CO. LTD,11/06/2015,165.00
Adult Social Services,Access & Enablement,HOAP,Supplies & Services,Equipment - Repair,WESSEX LIFT CO. LTD,11/06/2015,289.50
Adult Social Services,Access & Enablement,HOAP,Supplies & Services,Equipment - Repair,WESSEX LIFT CO. LTD,04/06/2015,110.00
Adult Social Services,Access & Enablement,HOAP,Supplies & Services,Equipment - Repair,WESSEX LIFT CO. LTD,04/06/2015,192.90
Adult Social Services,Access & Enablement,HOAP,Supplies & Services,Equipment - Repair,WESSEX LIFT CO. LTD,04/06/2015,248.64
Adult Social Services,Access & Enablement,HOBJ,Supplies & Services,Telephones,BRITISH TELECOMMUNICATIONS PLC,23/06/2015,122.33
Adult Social Services,Access & Enablement,HOBK,Third Party Payments,Nursing Expenditure,COVERAGE CARE SERVICES LTD (SY3),05/06/2015,"94,636.11"
Adult Social Services,Access & Enablement,HOBL,Third Party Payments,Residential Expenditure,COVERAGE CARE SERVICES LTD (SY3),25/06/2015,"8,464.29"
Adult Social Services,Access & Enablement,HOBL,Third Party Payments,Residential Expenditure,COVERAGE CARE SERVICES LTD (SY3),25/06/2015,"46,536.50"
Adult Social Services,Access & Enablement,HOBL,Third Party Payments,Residential Expenditure,COVERAGE CARE SERVICES LTD (SY3),25/06/2015,"8,746.43"
Adult Social Services,Access & Enablement,HOBL,Third Party Payments,Residential Expenditure,COVERAGE CARE SERVICES LTD (SY3),25/06/2015,"5,683.28"
Adult Social Services,Access & Enablement,HOBL,Third Party Payments,Residential Expenditure,COVERAGE CARE SERVICES LTD (SY3),25/06/2015,"48,087.72"
Adult Social Services,Access & Enablement,HOBP,Third Party Payments,Daycare Expenditure,COVERAGE CARE SERVICES LTD (SY3),25/06/2015,"5,781.00"
Adult Social Services,Access & Enablement,HOBP,Third Party Payments,Daycare Expenditure,COVERAGE CARE SERVICES LTD (SY3),25/06/2015,"-4,955.14"
Adult Social Services,Access & Enablement,HOBP,Third Party Payments,Daycare Expenditure,COVERAGE CARE SERVICES LTD (SY3),25/06/2015,"5,973.70"
Adult Social Services,Access & Enablement,HOBR,Third Party Payments,Homecare Expenditure,COVERAGE CARE SERVICES LTD (SY3),05/06/2015,"50,449.58"
Adult Social Services,Access & Enablement,HOBR,Third Party Payments,Homecare Expenditure,SUPREME HOME CARE,19/06/2015,"7,159.04"
Adult Social Services,Access & Enablement,HOBR,Third Party Payments,Homecare Expenditure,SUPREME HOME CARE,04/06/2015,"7,159.04"
Adult Social Services,Access & Enablement,HOBS,Supplies & Services,Aids & Appliances,SHROPSHIRE COMMUNITY HEALTH NHS TRUST,10/06/2015,"6,301.66"
Adult Social Services,Access & Enablement,HOBS,Supplies & Services,Aids & Appliances,SHROPSHIRE COMMUNITY HEALTH NHS TRUST,11/06/2015,"6,301.66"
Adult Social Services,Access & Enablement,HOBS,Supplies & Services,Aids & Appliances,SHROPSHIRE COMMUNITY HEALTH NHS TRUST,04/06/2015,"6,301.66"
Adult Social Services,Access & Enablement,HOBZ,Premises-Related Expenditure,General Rents,BOURNVILLE VILLAGE TRUST,12/06/2015,"11,223.17"
Adult Social Services,Access & Enablement,HOBZ,Premises-Related Expenditure,General Rents,BOURNVILLE VILLAGE TRUST,12/06/2015,"11,377.81"
Adult Social Services,Access & Enablement,HOBZ,Premises-Related Expenditure,General Rents,BOURNVILLE VILLAGE TRUST,29/06/2015,"1,216.08"
Adult Social Services,Access & Enablement,HOBZ,Premises-Related Expenditure,General Rents,BOURNVILLE VILLAGE TRUST,29/06/2015,"1,199.56"
Adult Social Services,Access & Enablement,HOBZ,Third Party Payments,Private Contractors,DIMENSIONS (UK) LTD,12/06/2015,"27,692.35"
Adult Social Services,Access & Enablement,HOBZ,Third Party Payments,Private Contractors,DIMENSIONS (UK) LTD,12/06/2015,"31,390.92"
Adult Social Services,Access & Enablement,HOBZ,Third Party Payments,Private Contractors,DIMENSIONS (UK) LTD,12/06/2015,"44,608.11"
Adult Social Services,Access & Enablement,HOBZ,Third Party Payments,Private Contractors,DIMENSIONS (UK) LTD,12/06/2015,"32,437.29"
Adult Social Services,Access & Enablement,HOBZ,Third Party Payments,Private Contractors,DIMENSIONS (UK) LTD,12/06/2015,"25,051.77"
Adult Social Services,Access & Enablement,HOBZ,Third Party Payments,Private Contractors,DIMENSIONS (UK) LTD,12/06/2015,"46,095.05"
Adult Social Services,Assessment & Case Management,HLAB,Premises-Related Expenditure,General Rents,BOURNVILLE VILLAGE TRUST,29/06/2015,229.92
Adult Social Services,Assessment & Case Management,HLAB,Premises-Related Expenditure,General Rents,BOURNVILLE VILLAGE TRUST,05/06/2015,"1,785.00"
Adult Social Services,Assessment & Case Management,HLAB,Premises-Related Expenditure,General Rents,BOURNVILLE VILLAGE TRUST,05/06/2015,"1,650.00"
Adult Social Services,Assessment & Case Management,HLAB,Premises-Related Expenditure,General Rents,BOURNVILLE VILLAGE TRUST,05/06/2015,"2,850.00"
Adult Social Services,Assessment & Case Management,HLCL,Premises-Related Expenditure,General Rents,BOURNVILLE VILLAGE TRUST,05/06/2015,"68,380.23"
Adult Social Services,Assessment & Case Management,HLEF,Supplies & Services,Advertising,PARTNERSHIP PUBLISHING LTD,25/06/2015,149.00
Adult Social Services,Assessment & Case Management,HOAC,Supplies & Services,Purchased Meals,COVERAGE CARE SERVICES LTD (SY3),25/06/2015,244.47
Adult Social Services,Assessment & Case Management,HOAC,Supplies & Services,Purchased Meals,COVERAGE CARE SERVICES LTD (SY3),04/06/2015,216.37
Adult Social Services,Assessment & Case Management,HOAC,Supplies & Services,Purchased Meals,ICare (GB) Limited,11/06/2015,"2,628.80"
Adult Social Services,Assessment & Case Management,HOAC,Supplies & Services,Purchased Meals,ICare (GB) Limited,11/06/2015,"-1,314.40"
Adult Social Services,Assessment & Case Management,HOAC,Supplies & Services,Purchased Meals,ICare (GB) Limited,10/06/2015,-1977.43
Adult Social Services,Assessment & Case Management,HOAW,Employees,Employee Costs Recharged,SHROPSHIRE COMMUNITY HEALTH NHS TRUST,11/06/2015,"19,662.00"
Adult Social Services,Assessment & Case Management,HOAW,Employees,Employee Costs Recharged,SHROPSHIRE COMMUNITY HEALTH NHS TRUST,08/06/2015,"19,662.00"
Adult Social Services,Assessment & Case Management,HOAW,Employees,Employee Costs Recharged,SHROPSHIRE COMMUNITY HEALTH NHS TRUST,08/06/2015,"19,662.00"
Adult Social Services,Assessment & Case Management,HOAW,Supplies & Services,Equipment - Purchase,Aqueduct Pharmacy,12/06/2015,120.00
Adult Social Services,Assessment & Case Management,HOAW,Supplies & Services,Equipment - Purchase,Aqueduct Pharmacy,12/06/2015,120.00
Adult Social Services,Assessment & Case Management,HOBB,Supplies & Services,Other Travel,Medical Services Limited,19/06/2015,576.16
Adult Social Services,Assessment & Case Management,HOBB,Supplies & Services,Other Travel,Medical Services Limited,25/06/2015,809.34
Adult Social Services,Assessment & Case Management,HOBB,Supplies & Services,Other Travel,Medical Services Limited,25/06/2015,514.00
Adult Social Services,Assessment & Case Management,HOCM,Third Party Payments,Nursing Expenditure,MORRIS CARE,29/06/2015,"-4,519.50"
Adult Social Services,Assessment & Case Management,HOCM,Third Party Payments,Nursing Expenditure,MORRIS CARE,29/06/2015,"-4,670.15"
Adult Social Services,Assessment & Case Management,HOCM,Third Party Payments,Nursing Expenditure,MORRIS CARE,29/06/2015,"-4,519.50"
Adult Social Services,Assessment & Case Management,HOCM,Third Party Payments,Nursing Expenditure,MORRIS CARE,29/06/2015,"-4,670.15"
Adult Social Services,Assessment & Case Management,HOCM,Third Party Payments,Nursing Expenditure,MORRIS CARE,30/06/2015,"13,709.15"
Adult Social Services,Assessment & Case Management,HOCM,Third Party Payments,Nursing Expenditure,MORRIS CARE,30/06/2015,"4,670.15"
Adult Social Services,Assessment & Case Management,HPAB,Supplies & Services,Telecomms,BT GLOBAL SERVICES (00637351),25/06/2015,369.82
Adult Social Services,Care & Support,HCTR,Supplies & Services,Marketing & Publicity,Redbus Media Group,12/06/2015,239.52
Adult Social Services,Care & Support,HHAK,Supplies & Services,Consultants Fees,Andrew Mason Consultancy Ltd,02/06/2015,"1,129.05"
Adult Social Services,Care & Support,HHAK,Supplies & Services,Consultants Fees,Andrew Mason Consultancy Ltd,02/06/2015,"1,130.40"
Adult Social Services,Care & Support,HOCR,Employees,Training Expenses,OLM SYSTEMS LTD,17/06/2015,206.40
Adult Social Services,Care & Support,HOCR,Employees,Training Expenses,OLM SYSTEMS LTD,23/06/2015,"1,700.00"
Adult Social Services,Personalisation Support & Service Provision,ETAB,Supplies & Services,Computer Software (Maint),Logical Transport Ltd,26/06/2015,"1,678.00"
Children's Safeguarding & Specialist Services,Child Protection & Assessment,JHAB,Employees,Recruitment Advertising,PARK INN TELFORD,03/06/2015,936.45
Children's Safeguarding & Specialist Services,Child protection & assessment,JMAA,contribution to provision,legal,HM Courts and Tribunal service,16/06/2015," 1,185.00 "
Children's Safeguarding & Specialist Services,Child Protection & Assessment,JMAB,Supplies & Services,Doctors Fees,ALPHA BIOLABORATORIES LIMITED,17/06/2015,720.00
Children's Safeguarding & Specialist Services,Child Protection & Assessment,JMAB,Third Party Payments,Interpreters Fees,PEARL LINGUISTICS LTD,17/06/2015,345.49
Children's Safeguarding & Specialist Services,Child Protection & Assessment,JMAB,Transport-Related Expenditure,Taxi Costs,CENTRAL TAXIS LTD T/A GO CARZ (01732196,17/06/2015,276.50
Children's Safeguarding & Specialist Services,Child Protection & Assessment,JMAB,Transport-Related Expenditure,Taxi Costs,CENTRAL TAXIS LTD T/A GO CARZ (01732196,08/06/2015,217.00
Children's Safeguarding & Specialist Services,Child Protection & Assessment,JMAD,Supplies & Services,Doctors Fees,ALPHA BIOLABORATORIES LIMITED,16/06/2015,194.98
Children's Safeguarding & Specialist Services,Child Protection & Assessment,JMAD,Supplies & Services,Doctors Fees,ALPHA BIOLABORATORIES LIMITED,16/06/2015,180.00
Children's Safeguarding & Specialist Services,Child Protection & Assessment,JMAD,Supplies & Services,Doctors Fees,ALPHA BIOLABORATORIES LIMITED,16/06/2015,210.00
Children's Safeguarding & Specialist Services,Child Protection & Assessment,JMAD,Third Party Payments,Childminders,SMILEY FACES DAY NURSERIES LTD,16/06/2015,726.00
Children's Safeguarding & Specialist Services,Child Protection & Assessment,JMAE,Supplies & Services,Other Services,ALPHA BIOLABORATORIES LIMITED,09/06/2015,355.00
Children's Safeguarding & Specialist Services,Child Protection & Assessment,JMAE,Supplies & Services,Other Services,ALPHA BIOLABORATORIES LIMITED,11/06/2015,440.00
Children's Safeguarding & Specialist Services,Child Protection & Assessment,JMAE,Supplies & Services,Other Services,APAX Limited,09/06/2015,774.00
Children's Safeguarding & Specialist Services,Child Protection & Assessment,JMAE,Supplies & Services,Other Services,ELMHURST PSYCHOLOGY LTD,09/06/2015,694.34
Children's Safeguarding & Specialist Services,Child Protection & Assessment,JMAE,Supplies & Services,Other Services,J.A. FOULKES LTD,11/06/2015,529.00
Children's Safeguarding & Specialist Services,Child Protection & Assessment,JMAE,Supplies & Services,Other Services,J.A. FOULKES LTD,11/06/2015,336.85
Children's Safeguarding & Specialist Services,Child Protection & Assessment,JMAE,Supplies & Services,Other Services,LIVING SPRINGS FAMILY CENTRE,19/06/2015,"3,444.25"
Children's Safeguarding & Specialist Services,Child Protection & Assessment,JMAE,Supplies & Services,Other Services,LIVING SPRINGS FAMILY CENTRE,19/06/2015,175.64
Children's Safeguarding & Specialist Services,Child Protection & Assessment,JMAE,Supplies & Services,Other Services,NEWSTART NETWORKS CIC,23/06/2015,"1,000.00"
Children's Safeguarding & Specialist Services,Child Protection & Assessment,JMAE,Supplies & Services,Other Services,NEWSTART NETWORKS CIC,09/06/2015,"1,234.00"
Children's Safeguarding & Specialist Services,Child Protection & Assessment,JMAE,Supplies & Services,Other Services,NEWSTART NETWORKS CIC,23/06/2015,910.00
Children's Safeguarding & Specialist Services,Child Protection & Assessment,JMAE,Supplies & Services,Other Services,NEWSTART NETWORKS CIC,23/06/2015,800.00
Children's Safeguarding & Specialist Services,Child Protection & Assessment,JMAE,Supplies & Services,Other Services,NEWSTART NETWORKS CIC,23/06/2015,660.00
Children's Safeguarding & Specialist Services,Child Protection & Assessment,JMAE,Supplies & Services,Other Services,NEWSTART NETWORKS CIC,23/06/2015,440.00
Children's Safeguarding & Specialist Services,Child Protection & Assessment,JMAE,Supplies & Services,Other Services,NEWSTART NETWORKS CIC,23/06/2015,"1,000.00"
Children's Safeguarding & Specialist Services,Child Protection & Assessment,JMAE,Supplies & Services,Other Services,NEWSTART NETWORKS CIC,23/06/2015,"1,000.00"
Children's Safeguarding & Specialist Services,Child Protection & Assessment,JMAE,Supplies & Services,Other Services,Right Mediation,19/06/2015,600.00
Children's Safeguarding & Specialist Services,Child Protection & Assessment,JMAE,Supplies & Services,Other Services,WILCOX PSYCHOLOGICAL ASSOCIATES LTD,12/06/2015,"3,276.00"
Children's Safeguarding & Specialist Services,Child Protection & Assessment,JMAL,Supplies & Services,Section 17 Childrens Act,NESTOR PRIMECARE SERVICES LTD T/A ALLIED HEALTHCARE,19/06/2015,349.69
Children's Safeguarding & Specialist Services,Child Protection & Assessment,JMAL,Supplies & Services,Section 17 Childrens Act,NESTOR PRIMECARE SERVICES LTD T/A ALLIED HEALTHCARE,09/06/2015,337.64
Children's Safeguarding & Specialist Services,Child Protection & Assessment,JMAL,Supplies & Services,Section 17 Childrens Act,NESTOR PRIMECARE SERVICES LTD T/A ALLIED HEALTHCARE,09/06/2015,337.65
Children's Safeguarding & Specialist Services,Child Protection & Assessment,JMAL,Supplies & Services,Section 17 Childrens Act,NESTOR PRIMECARE SERVICES LTD T/A ALLIED HEALTHCARE,12/06/2015,337.64
Children's Safeguarding & Specialist Services,Child Protection & Assessment,JMAL,Third Party Payments,Childminders,KATHLEEN PEATTIE,12/06/2015,480.00
Children's Safeguarding & Specialist Services,Child Protection & Assessment,JMAL,Third Party Payments,Childminders,KATHLEEN PEATTIE,12/06/2015,521.40
Children's Safeguarding & Specialist Services,Child Protection & Assessment,JSAB,Supplies & Services,Legal Expenses,TERRY JONES SOLICITORS & ADVOCATES,17/06/2015,"1,238.95"
Children's Safeguarding & Specialist Services,Child Protection & Assessment,JSAB,Transport-Related Expenditure,Taxi Costs,CENTRAL TAXIS LTD T/A GO CARZ (01732196,17/06/2015,120.00
Children's Safeguarding & Specialist Services,Children in Care & Fostering,JCAB,Supplies & Services,CL - Basic Allowance,Above N beyond Limited,09/06/2015,173.70
Children's Safeguarding & Specialist Services,Children in Care & Fostering,JCAB,Supplies & Services,Supportive Lodgings,Above N beyond Limited,09/06/2015,"1,385.18"
Children's Safeguarding & Specialist Services,Children in Care & Fostering,JCAB,Supplies & Services,Supportive Lodgings,LEAVING CARE COMPANY,18/06/2015,"1,372.86"
Children's Safeguarding & Specialist Services,Children in Care & Fostering,JCAB,Supplies & Services,Supportive Lodgings,LEAVING CARE COMPANY,09/06/2015,"1,328.57"
Children's Safeguarding & Specialist Services,Children in Care & Fostering,JCAB,Transfer Payments,Leaving Care Grant,ARGOS BUSINESS SOLUTIONS,17/06/2015,145.83
Children's Safeguarding & Specialist Services,Children in Care & Fostering,JCAB,Transfer Payments,Leaving Care Grant,ARGOS BUSINESS SOLUTIONS,09/06/2015,183.32
Children's Safeguarding & Specialist Services,Children in Care & Fostering,JCAB,Transfer Payments,Leaving Care Grant,ARGOS BUSINESS SOLUTIONS,09/06/2015,538.29
Children's Safeguarding & Specialist Services,Children in Care & Fostering,JCAB,Transfer Payments,Leaving Care Grant,ARGOS BUSINESS SOLUTIONS,04/06/2015,124.99
Children's Safeguarding & Specialist Services,Children in Care & Fostering,JCAB,Transfer Payments,Leaving Care Grant,Share Foundation,03/06/2015,545.00
Children's Safeguarding & Specialist Services,Children in Care & Fostering,JMAF,Third Party Payments,Foster Care Fees,Crackerjacks Day Nursery,09/06/2015,343.20
Children's Safeguarding & Specialist Services,Children in Care & Fostering,JPAD,Third Party Payments,External Foster Care Payments,By The Bridge,23/06/2015,"2,176.64"
Children's Safeguarding & Specialist Services,Children in Care & Fostering,JPAD,Third Party Payments,External Foster Care Payments,By The Bridge,23/06/2015,"4,353.29"
Children's Safeguarding & Specialist Services,Children in Care & Fostering,JPAD,Third Party Payments,External Foster Care Payments,By The Bridge,23/06/2015,"4,212.86"
Children's Safeguarding & Specialist Services,Children in Care & Fostering,JPAD,Third Party Payments,External Foster Care Payments,By The Bridge,23/06/2015,"2,106.43"
Children's Safeguarding & Specialist Services,Children in Care & Fostering,JPAD,Third Party Payments,External Foster Care Payments,By The Bridge,24/06/2015,"4,585.71"
Children's Safeguarding & Specialist Services,Children in Care & Fostering,JPAD,Third Party Payments,External Foster Care Payments,By The Bridge,08/06/2015,"4,585.71"
Children's Safeguarding & Specialist Services,Children in Care & Fostering,JPAD,Third Party Payments,External Foster Care Payments,By The Bridge,09/06/2015,"4,738.57"
Children's Safeguarding & Specialist Services,Children in Care & Fostering,JPAD,Third Party Payments,External Foster Care Payments,Childcare Bureau,22/06/2015,"3,917.40"
Children's Safeguarding & Specialist Services,Children in Care & Fostering,JPAD,Third Party Payments,External Foster Care Payments,Childcare Bureau,24/06/2015,"3,510.00"
Children's Safeguarding & Specialist Services,Children in Care & Fostering,JPAD,Third Party Payments,External Foster Care Payments,Childcare Bureau,03/06/2015,"4,217.55"
Children's Safeguarding & Specialist Services,Children in Care & Fostering,JPAD,Third Party Payments,External Foster Care Payments,Childcare Bureau,08/06/2015,"3,997.50"
Children's Safeguarding & Specialist Services,Children in Care & Fostering,JPAD,Third Party Payments,External Foster Care Payments,Childcare Bureau,08/06/2015,"3,510.00"
Children's Safeguarding & Specialist Services,Children in Care & Fostering,JPAD,Third Party Payments,External Foster Care Payments,Childcare Bureau,08/06/2015,"4,130.75"
Children's Safeguarding & Specialist Services,Children in Care & Fostering,JPAD,Third Party Payments,External Foster Care Payments,Childcare Bureau,08/06/2015,"3,627.00"
Children's Safeguarding & Specialist Services,Children in Care & Fostering,JPAD,Third Party Payments,External Foster Care Payments,Childcare Bureau,03/06/2015,"3,917.40"
Children's Safeguarding & Specialist Services,Children in Care & Fostering,JPAD,Third Party Payments,External Foster Care Payments,Childcare Bureau,03/06/2015,"3,627.00"
Children's Safeguarding & Specialist Services,Children in Care & Fostering,JPAD,Third Party Payments,External Foster Care Payments,CLIFFORD HOUSE FOSTERING LTD,10/06/2015,-716.52
Children's Safeguarding & Specialist Services,Children in Care & Fostering,JPAD,Third Party Payments,External Foster Care Payments,FAMILIES@FAMILYCARE,30/06/2015,"3,888.00"
Children's Safeguarding & Specialist Services,Children in Care & Fostering,JPAD,Third Party Payments,External Foster Care Payments,FAMILIES@FAMILYCARE,30/06/2015,"2,527.20"
Children's Safeguarding & Specialist Services,Children in Care & Fostering,JPAD,Third Party Payments,External Foster Care Payments,FAMILIES@FAMILYCARE,05/06/2015,"4,435.50"
Children's Safeguarding & Specialist Services,Children in Care & Fostering,JPAD,Third Party Payments,External Foster Care Payments,FAMILIES@FAMILYCARE,09/06/2015,"2,611.44"
Children's Safeguarding & Specialist Services,Children in Care & Fostering,JPAD,Third Party Payments,External Foster Care Payments,FAMILIES@FAMILYCARE,09/06/2015,"4,017.60"
Children's Safeguarding & Specialist Services,Children in Care & Fostering,JPAD,Third Party Payments,External Foster Care Payments,FAMILIES@FAMILYCARE,29/06/2015,"-3,844.10"
Children's Safeguarding & Specialist Services,Children in Care & Fostering,JPAD,Third Party Payments,External Foster Care Payments,FOSTER CARE ASSOCIATES LTD,04/06/2015,"5,247.21"
Children's Safeguarding & Specialist Services,Children in Care & Fostering,JPAD,Third Party Payments,External Foster Care Payments,FOSTER CARE ASSOCIATES LTD,08/06/2015,"5,077.95"
Children's Safeguarding & Specialist Services,Children in Care & Fostering,JPAD,Third Party Payments,External Foster Care Payments,FOSTER CARE ASSOCIATES LTD,24/06/2015,"5,077.95"
Children's Safeguarding & Specialist Services,Children in Care & Fostering,JPAD,Third Party Payments,External Foster Care Payments,FOSTER CARE ASSOCIATES LTD,23/06/2015,"3,095.10"
Children's Safeguarding & Specialist Services,Children in Care & Fostering,JPAD,Third Party Payments,External Foster Care Payments,FOSTER CARE ASSOCIATES LTD,23/06/2015,"3,320.31"
Children's Safeguarding & Specialist Services,Children in Care & Fostering,JPAD,Third Party Payments,External Foster Care Payments,FOSTER CARE ASSOCIATES LTD,23/06/2015,"1,106.77"
Children's Safeguarding & Specialist Services,Children in Care & Fostering,JPAD,Third Party Payments,External Foster Care Payments,FOSTER CARE ASSOCIATES LTD,23/06/2015,"-3,160.26"
Children's Safeguarding & Specialist Services,Children in Care & Fostering,JPAD,Third Party Payments,External Foster Care Payments,FOSTER CARE ASSOCIATES LTD,23/06/2015,"3,198.27"
Children's Safeguarding & Specialist Services,Children in Care & Fostering,JPAD,Third Party Payments,External Foster Care Payments,FOSTERING PRIORY,23/06/2015,"3,501.43"
Children's Safeguarding & Specialist Services,Children in Care & Fostering,JPAD,Third Party Payments,External Foster Care Payments,FOSTERING SOLUTIONS LTD,24/06/2015,"3,267.81"
Children's Safeguarding & Specialist Services,Children in Care & Fostering,JPAD,Third Party Payments,External Foster Care Payments,FOSTERING SOLUTIONS LTD,03/06/2015,"3,376.74"
Children's Safeguarding & Specialist Services,Children in Care & Fostering,JPAD,Third Party Payments,External Foster Care Payments,FOSTERING SOLUTIONS LTD,03/06/2015,"3,267.81"
Children's Safeguarding & Specialist Services,Children in Care & Fostering,JPAD,Third Party Payments,External Foster Care Payments,NATIONAL FOSTERING AGENCY,11/06/2015,"3,233.30"
Children's Safeguarding & Specialist Services,Children in Care & Fostering,JPAD,Third Party Payments,External Foster Care Payments,NATIONAL FOSTERING AGENCY,11/06/2015,"3,380.86"
Children's Safeguarding & Specialist Services,Children in Care & Fostering,JPAD,Third Party Payments,External Foster Care Payments,NATIONAL FOSTERING AGENCY,11/06/2015,"3,077.99"
Children's Safeguarding & Specialist Services,Children in Care & Fostering,JPAD,Third Party Payments,External Foster Care Payments,NATIONAL FOSTERING AGENCY,11/06/2015,"3,233.30"
Children's Safeguarding & Specialist Services,Children in Care & Fostering,JPAD,Third Party Payments,External Foster Care Payments,NATIONAL FOSTERING AGENCY,11/06/2015,"3,380.86"
Children's Safeguarding & Specialist Services,Children in Care & Fostering,JPAD,Third Party Payments,External Foster Care Payments,NATIONAL FOSTERING AGENCY,11/06/2015,"3,311.73"
Children's Safeguarding & Specialist Services,Children in Care & Fostering,JPAD,Third Party Payments,External Foster Care Payments,NATIONAL FOSTERING AGENCY,23/06/2015,"3,167.27"
Children's Safeguarding & Specialist Services,Children in Care & Fostering,JPAD,Third Party Payments,External Foster Care Payments,NATIONAL FOSTERING AGENCY,29/06/2015,"3,307.48"
Children's Safeguarding & Specialist Services,Children in Care & Fostering,JPAD,Third Party Payments,External Foster Care Payments,NATIONAL FOSTERING AGENCY,01/06/2015,102.17
Children's Safeguarding & Specialist Services,Children in Care & Fostering,JPAD,Third Party Payments,External Foster Care Payments,NATIONAL FOSTERING AGENCY,01/06/2015,"2,962.93"
Children's Safeguarding & Specialist Services,Children in Care & Fostering,JPAD,Third Party Payments,External Foster Care Payments,NATIONAL FOSTERING AGENCY,04/06/2015,"3,129.00"
Children's Safeguarding & Specialist Services,Children in Care & Fostering,JPAD,Third Party Payments,External Foster Care Payments,NATIONAL FOSTERING AGENCY,29/06/2015,"3,380.86"
Children's Safeguarding & Specialist Services,Children in Care & Fostering,JPAD,Third Party Payments,External Foster Care Payments,NATIONAL FOSTERING AGENCY,22/06/2015,"3,233.30"
Children's Safeguarding & Specialist Services,Children in Care & Fostering,JPAD,Third Party Payments,External Foster Care Payments,NATIONAL FOSTERING AGENCY,11/06/2015,"2,920.40"
Children's Safeguarding & Specialist Services,Children in Care & Fostering,JPAD,Third Party Payments,External Foster Care Payments,NATIONAL FOSTERING AGENCY,11/06/2015,208.60
Children's Safeguarding & Specialist Services,Children in Care & Fostering,JPAD,Third Party Payments,External Foster Care Payments,NATIONAL FOSTERING AGENCY,23/06/2015,"3,129.00"
Children's Safeguarding & Specialist Services,Children in Care & Fostering,JPAD,Third Party Payments,External Foster Care Payments,NATIONAL FOSTERING AGENCY,23/06/2015,212.86
Children's Safeguarding & Specialist Services,Children in Care & Fostering,JPAD,Third Party Payments,External Foster Care Payments,NATIONAL FOSTERING AGENCY,23/06/2015,"3,233.30"
Children's Safeguarding & Specialist Services,Children in Care & Fostering,JPAD,Third Party Payments,External Foster Care Payments,NEXUS FOSTERING,04/06/2015,"3,602.20"
Children's Safeguarding & Specialist Services,Children in Care & Fostering,JPAD,Third Party Payments,External Foster Care Payments,ORANGE GROVE FOSTERCARE LTD,23/06/2015,"2,863.24"
Children's Safeguarding & Specialist Services,Children in Care & Fostering,JPAD,Third Party Payments,External Foster Care Payments,ORANGE GROVE FOSTERCARE LTD,23/06/2015,"2,958.68"
Children's Safeguarding & Specialist Services,Children in Care & Fostering,JPAD,Third Party Payments,External Foster Care Payments,ORANGE GROVE FOSTERCARE LTD,23/06/2015,"3,339.00"
Children's Safeguarding & Specialist Services,Children in Care & Fostering,JPAD,Third Party Payments,External Foster Care Payments,ORANGE GROVE FOSTERCARE LTD,23/06/2015,"3,450.30"
Children's Safeguarding & Specialist Services,Children in Care & Fostering,JPAD,Third Party Payments,External Foster Care Payments,ORANGE GROVE FOSTERCARE LTD,24/06/2015,"3,449.86"
Children's Safeguarding & Specialist Services,Children in Care & Fostering,JPAD,Third Party Payments,External Foster Care Payments,ORANGE GROVE FOSTERCARE LTD,04/06/2015,"3,449.86"
Children's Safeguarding & Specialist Services,Children in Care & Fostering,JPAD,Third Party Payments,External Foster Care Payments,ORANGE GROVE FOSTERCARE LTD,04/06/2015,"3,050.18"
Children's Safeguarding & Specialist Services,Children in Care & Fostering,JPAD,Third Party Payments,External Foster Care Payments,ORANGE GROVE FOSTERCARE LTD,03/06/2015,"2,978.57"
Children's Safeguarding & Specialist Services,Children in Care & Fostering,JPAD,Third Party Payments,External Foster Care Payments,ORANGE GROVE FOSTERCARE LTD,03/06/2015,"2,951.79"
Children's Safeguarding & Specialist Services,Children in Care & Fostering,JPAD,Third Party Payments,External Foster Care Payments,ORANGE GROVE FOSTERCARE LTD,03/06/2015,"3,344.68"
Children's Safeguarding & Specialist Services,Children in Care & Fostering,JPAD,Third Party Payments,External Foster Care Payments,ORANGE GROVE FOSTERCARE LTD,04/06/2015,"3,077.86"
Children's Safeguarding & Specialist Services,Children in Care & Fostering,JPAD,Third Party Payments,External Foster Care Payments,ORANGE GROVE FOSTERCARE LTD,04/06/2015,"3,050.18"
Children's Safeguarding & Specialist Services,Children in Care & Fostering,JPAD,Third Party Payments,External Foster Care Payments,ORANGE GROVE FOSTERCARE LTD,04/06/2015,"3,244.33"
Children's Safeguarding & Specialist Services,Children in Care & Fostering,JPAD,Third Party Payments,External Foster Care Payments,ORANGE GROVE FOSTERCARE LTD,04/06/2015,"3,277.76"
Children's Safeguarding & Specialist Services,Children in Care & Fostering,JPAD,Third Party Payments,External Foster Care Payments,ORANGE GROVE FOSTERCARE LTD,04/06/2015,"3,277.81"
Children's Safeguarding & Specialist Services,Children in Care & Fostering,JPAD,Third Party Payments,External Foster Care Payments,ORANGE GROVE FOSTERCARE LTD,04/06/2015,"3,344.68"
Children's Safeguarding & Specialist Services,Children in Care & Fostering,JPAD,Third Party Payments,External Foster Care Payments,ORANGE GROVE FOSTERCARE LTD,24/06/2015,"3,338.57"
Children's Safeguarding & Specialist Services,Children in Care & Fostering,JPAD,Third Party Payments,External Foster Care Payments,ORANGE GROVE FOSTERCARE LTD,24/06/2015,360.00
Children's Safeguarding & Specialist Services,Children in Care & Fostering,JPAD,Third Party Payments,External Foster Care Payments,ORANGE GROVE FOSTERCARE LTD,29/06/2015,"-12,424.29"
Children's Safeguarding & Specialist Services,Children in Care & Fostering,JPAD,Third Party Payments,External Foster Care Payments,ORANGE GROVE FOSTERCARE LTD,04/06/2015,"3,244.33"
Children's Safeguarding & Specialist Services,Children in Care & Fostering,JPAD,Third Party Payments,External Foster Care Payments,ORANGE GROVE FOSTERCARE LTD,05/06/2015,"3,107.14"
Children's Safeguarding & Specialist Services,Children in Care & Fostering,JPAD,Third Party Payments,External Foster Care Payments,ORANGE GROVE FOSTERCARE LTD,04/06/2015,"3,077.86"
Children's Safeguarding & Specialist Services,Children in Care & Fostering,JPAD,Third Party Payments,External Foster Care Payments,PARK FOSTER CARE,08/06/2015,"3,720.00"
Children's Safeguarding & Specialist Services,Children in Care & Fostering,JPAD,Third Party Payments,External Foster Care Payments,PARK FOSTER CARE,08/06/2015,"3,348.00"
Children's Safeguarding & Specialist Services,Children in Care & Fostering,JPAD,Third Party Payments,External Foster Care Payments,PARK FOSTER CARE,08/06/2015,"3,419.92"
Children's Safeguarding & Specialist Services,Children in Care & Fostering,JPAD,Third Party Payments,External Foster Care Payments,PARK FOSTER CARE,08/06/2015,"3,720.00"
Children's Safeguarding & Specialist Services,Children in Care & Fostering,JPAD,Third Party Payments,External Foster Care Payments,PARK FOSTER CARE,08/06/2015,"6,200.00"
Children's Safeguarding & Specialist Services,Children in Care & Fostering,JPAD,Third Party Payments,External Foster Care Payments,PHOENIX FOSTERING,24/06/2015,"5,689.20"
Children's Safeguarding & Specialist Services,Children in Care & Fostering,JPAD,Third Party Payments,External Foster Care Payments,PHOENIX FOSTERING,24/06/2015,"5,689.20"
Children's Safeguarding & Specialist Services,Children in Care & Fostering,JPAD,Third Party Payments,External Foster Care Payments,PHOENIX FOSTERING,01/06/2015,"5,878.84"
Children's Safeguarding & Specialist Services,Children in Care & Fostering,JPAD,Third Party Payments,External Foster Care Payments,PHOENIX FOSTERING,01/06/2015,"5,689.20"
Children's Safeguarding & Specialist Services,Children in Care & Fostering,JPAD,Third Party Payments,External Foster Care Payments,PHOENIX FOSTERING,22/06/2015,"6,321.30"
Children's Safeguarding & Specialist Services,Children in Care & Fostering,JPAD,Third Party Payments,External Foster Care Payments,PHOENIX FOSTERING,22/06/2015,"6,321.30"
Children's Safeguarding & Specialist Services,Children in Care & Fostering,JPAD,Third Party Payments,External Foster Care Payments,Prospects for Young People Ltd,22/06/2015,"3,488.70"
Children's Safeguarding & Specialist Services,Children in Care & Fostering,JPAD,Third Party Payments,External Foster Care Payments,Prospects for Young People Ltd,22/06/2015,"3,258.00"
Children's Safeguarding & Specialist Services,Children in Care & Fostering,JPAD,Third Party Payments,External Foster Care Payments,Prospects for Young People Ltd,22/06/2015,"3,492.90"
Children's Safeguarding & Specialist Services,Children in Care & Fostering,JPAD,Third Party Payments,External Foster Care Payments,Prospects for Young People Ltd,23/06/2015,290.00
Children's Safeguarding & Specialist Services,Children in Care & Fostering,JPAD,Third Party Payments,External Foster Care Payments,Prospects for Young People Ltd,23/06/2015,580.00
Children's Safeguarding & Specialist Services,Children in Care & Fostering,JPAD,Third Party Payments,External Foster Care Payments,RED KITE FOSTERING,12/06/2015,"5,380.71"
Children's Safeguarding & Specialist Services,Children in Care & Fostering,JPAD,Third Party Payments,External Foster Care Payments,SWIIS FOSTER CARE LTD,16/06/2015,872.62
Children's Safeguarding & Specialist Services,Children in Care & Fostering,JPAD,Third Party Payments,External Foster Care Payments,SWIIS FOSTER CARE LTD,18/06/2015,872.62
Children's Safeguarding & Specialist Services,Children in Care & Fostering,JPAD,Third Party Payments,External Foster Care Payments,SWIIS FOSTER CARE LTD,29/06/2015,872.62
Children's Safeguarding & Specialist Services,Children in Care & Fostering,JPAD,Third Party Payments,External Foster Care Payments,SWIIS FOSTER CARE LTD,05/06/2015,872.62
Children's Safeguarding & Specialist Services,Children in Care & Fostering,JPAD,Third Party Payments,External Foster Care Payments,SWIIS FOSTER CARE LTD,05/06/2015,872.62
Children's Safeguarding & Specialist Services,Children in Care & Fostering,JPAD,Third Party Payments,External Foster Care Payments,SWIIS FOSTER CARE LTD,08/06/2015,872.62
Children's Safeguarding & Specialist Services,Children in Care & Fostering,JPAD,Third Party Payments,External Foster Care Payments,THE ADOLESCENT & CHILDRENS TRUST,12/06/2015,"3,003.90"
Children's Safeguarding & Specialist Services,Children in Care & Fostering,JPAM,Employees,Training Expenses,BAAF REGISTERED CHARITY,26/06/2015,125.00
Children's Safeguarding & Specialist Services,Children in Care & Fostering,JPAM,Employees,Training Expenses,BAAF REGISTERED CHARITY,08/06/2015,780.60
Children's Safeguarding & Specialist Services,Children in Care & Fostering,JPAM,Supplies & Services,Subscriptions,FOSTERING NETWORK,15/06/2015,"2,702.00"
Children's Safeguarding & Specialist Services,Children in Care & Fostering,JPAM,Supplies & Services,Subscriptions,FOSTERING NETWORK,15/06/2015,322.00
Children's Safeguarding & Specialist Services,Children in Care & Fostering,JPAM,Supplies & Services,Marketing & Publicity,Geerings Print Ltd,26/06/2015,472.00
Children's Safeguarding & Specialist Services,Children in Care & Fostering,JPAM,Supplies & Services,Marketing & Publicity,ORION MEDIA,26/06/2015,174.79
Children's Safeguarding & Specialist Services,Children in Care & Fostering,JPAM,Supplies & Services,Marketing & Publicity,ORION MEDIA,26/06/2015,420.74
Children's Safeguarding & Specialist Services,Children in Care & Fostering,JPAM,Supplies & Services,Marketing & Publicity,PARTNERSHIP PUBLISHING LTD,15/06/2015,159.00
Children's Safeguarding & Specialist Services,Children in Care & Fostering,JPAM,Supplies & Services,Marketing & Publicity,THE MIDLAND NEWS ASSOCIATION LTD,26/06/2015,144.00
Children's Safeguarding & Specialist Services,Children in Care & Fostering,JPAM,Supplies & Services,Marketing & Publicity,THE MIDLAND NEWS ASSOCIATION LTD,26/06/2015,243.00
Children's Safeguarding & Specialist Services,Children in Care & Fostering,JPAM,Supplies & Services,Marketing & Publicity,THE MIDLAND NEWS ASSOCIATION LTD,26/06/2015,360.00
Children's Safeguarding & Specialist Services,Children in Care & Fostering,JPAM,Supplies & Services,Marketing & Publicity,THE MIDLAND NEWS ASSOCIATION LTD,26/06/2015,148.90
Children's Safeguarding & Specialist Services,Children in Care & Fostering,JPAM,Supplies & Services,Marketing & Publicity,THE MIDLAND NEWS ASSOCIATION LTD,08/06/2015,417.06
Children's Safeguarding & Specialist Services,Children in Care & Fostering,JPAM,Supplies & Services,Marketing & Publicity,THE MIDLAND NEWS ASSOCIATION LTD,15/06/2015,150.00
Children's Safeguarding & Specialist Services,Children in Care & Fostering,JPAM,Supplies & Services,Marketing & Publicity,THE MIDLAND NEWS ASSOCIATION LTD,26/06/2015,270.00
Children's Safeguarding & Specialist Services,Children in Care & Fostering,JPAM,Transport-Related Expenditure,Taxi Costs,CENTRAL TAXIS LTD T/A GO CARZ (01732196,17/06/2015,444.00
Children's Safeguarding & Specialist Services,Children in Care & Fostering,JPAM,Transport-Related Expenditure,Taxi Costs,CENTRAL TAXIS LTD T/A GO CARZ (01732196,08/06/2015,432.50
Children's Safeguarding & Specialist Services,Children in Care & Fostering,JPAN,Third Party Payments,Residential Expenditure,ABC CARE LTD,29/06/2015,"11,071.34"
Children's Safeguarding & Specialist Services,Children in Care & Fostering,JPAN,Third Party Payments,Residential Expenditure,BETTERCARE KEYS LTD,29/06/2015,"-1,085.72"
Children's Safeguarding & Specialist Services,Children in Care & Fostering,JPAN,Third Party Payments,Residential Expenditure,BETTERCARE KEYS LTD,29/06/2015,"8,414.33"
Children's Safeguarding & Specialist Services,Children in Care & Fostering,JPAN,Third Party Payments,Residential Expenditure,BETTERCARE KEYS LTD,11/06/2015,"8,414.29"
Children's Safeguarding & Specialist Services,Children in Care & Fostering,JPAN,Third Party Payments,Residential Expenditure,BETTERCARE KEYS LTD,11/06/2015,"8,414.29"
Children's Safeguarding & Specialist Services,Children in Care & Fostering,JPAN,Third Party Payments,Residential Expenditure,BETTERCARE KEYS LTD,11/06/2015,"5,971.46"
Children's Safeguarding & Specialist Services,Children in Care & Fostering,JPAN,Third Party Payments,Residential Expenditure,BETTERCARE KEYS LTD,11/06/2015,"3,528.59"
Children's Safeguarding & Specialist Services,Children in Care & Fostering,JPAN,Third Party Payments,Residential Expenditure,BETTERCARE KEYS LTD,16/06/2015,"5,157.17"
Children's Safeguarding & Specialist Services,Children in Care & Fostering,JPAN,Third Party Payments,Residential Expenditure,CARE TODAY CHILDRENS SERVICES,11/06/2015,"12,820.67"
Children's Safeguarding & Specialist Services,Children in Care & Fostering,JPAN,Third Party Payments,Residential Expenditure,CARE TODAY CHILDRENS SERVICES,17/06/2015,"3,489.67"
Children's Safeguarding & Specialist Services,Children in Care & Fostering,JPAN,Third Party Payments,Residential Expenditure,CARE TODAY CHILDRENS SERVICES,01/06/2015,"3,489.67"
Children's Safeguarding & Specialist Services,Children in Care & Fostering,JPAN,Third Party Payments,Residential Expenditure,CARE TODAY CHILDRENS SERVICES,09/06/2015,"3,377.10"
Children's Safeguarding & Specialist Services,Children in Care & Fostering,JPAN,Third Party Payments,Residential Expenditure,CARE TODAY CHILDRENS SERVICES,01/06/2015,"12,820.67"
Children's Safeguarding & Specialist Services,Children in Care & Fostering,JPAN,Third Party Payments,Residential Expenditure,Coram Voice,01/06/2015,396.59
Children's Safeguarding & Specialist Services,Children in Care & Fostering,JPAN,Third Party Payments,Residential Expenditure,Coram Voice,04/06/2015,373.35
Children's Safeguarding & Specialist Services,Children in Care & Fostering,JPAN,Third Party Payments,Residential Expenditure,DURHAM COUNTY COUNCIL,30/06/2015,"24,428.00"
Children's Safeguarding & Specialist Services,Children in Care & Fostering,JPAN,Third Party Payments,Residential Expenditure,KEYS CHILDCARE LTD,24/06/2015,"11,314.20"
Children's Safeguarding & Specialist Services,Children in Care & Fostering,JPAN,Third Party Payments,Residential Expenditure,KEYS CHILDCARE LTD,09/06/2015,"11,314.20"
Children's Safeguarding & Specialist Services,Children in Care & Fostering,JPAN,Third Party Payments,Residential Expenditure,KEYS CHILDCARE LTD,11/06/2015,250.00
Children's Safeguarding & Specialist Services,Children in Care & Fostering,JPAN,Third Party Payments,Residential Expenditure,LANCASHIRE COUNTY COUNCIL,08/06/2015,"1,195.82"
Children's Safeguarding & Specialist Services,Children in Care & Fostering,JPAN,Third Party Payments,Residential Expenditure,MGM CARE SERVICES LTD,04/06/2015,"11,957.01"
Children's Safeguarding & Specialist Services,Children in Care & Fostering,JPAN,Third Party Payments,Residential Expenditure,MGM CARE SERVICES LTD,08/06/2015,"11,571.30"
Children's Safeguarding & Specialist Services,Children in Care & Fostering,JPAN,Third Party Payments,Residential Expenditure,PRESTIGE ADOLESCENT CARE & EDUCATION,24/06/2015,"10,000.00"
Children's Safeguarding & Specialist Services,Children in Care & Fostering,JPAN,Third Party Payments,Residential Expenditure,PRESTIGE ADOLESCENT CARE & EDUCATION,04/06/2015,"10,714.20"
Children's Safeguarding & Specialist Services,Children in Care & Fostering,JPAN,Third Party Payments,Residential Expenditure,PRESTIGE ADOLESCENT CARE & EDUCATION,04/06/2015,"11,071.43"
Children's Safeguarding & Specialist Services,Children in Care & Fostering,JPAN,Third Party Payments,Residential Expenditure,SUNFIELD CHILDRENS HOMES LTD,10/06/2015,"15,691.17"
Children's Safeguarding & Specialist Services,Children in Care & Fostering,JPAN,Third Party Payments,Residential Expenditure,SUNFIELD CHILDRENS HOMES LTD,24/06/2015,"15,691.17"
Children's Safeguarding & Specialist Services,Children in Care & Fostering,JPAN,Third Party Payments,Residential Expenditure,SUNFIELD CHILDRENS HOMES LTD,04/06/2015,"15,691.17"
Children's Safeguarding & Specialist Services,Children in Care & Fostering,JPAN,Third Party Payments,Residential Expenditure,Unity Residential Care Services Ltd,24/06/2015,"11,271.30"
Children's Safeguarding & Specialist Services,Children in Care & Fostering,JPAN,Third Party Payments,Residential Expenditure,Unity Residential Care Services Ltd,01/06/2015,"10,520.00"
Children's Safeguarding & Specialist Services,Children in Care & Fostering,JPAN,Third Party Payments,Residential Expenditure,Unity Residential Care Services Ltd,01/06/2015,"10,520.00"
Children's Safeguarding & Specialist Services,Children in Care & Fostering,JPAN,Third Party Payments,Residential Expenditure,Unity Residential Care Services Ltd,24/06/2015,"11,271.30"
Children's Safeguarding & Specialist Services,Children in Care & Fostering,JPAN,Third Party Payments,Residential Expenditure,Unity Residential Care Services Ltd,24/06/2015,"9,392.75"
Children's Safeguarding & Specialist Services,Children in Care & Fostering,JPAN,Third Party Payments,Residential Expenditure,Unity Residential Care Services Ltd,24/06/2015,"9,768.46"
Children's Safeguarding & Specialist Services,Children in Care & Fostering,JPAN,Third Party Payments,Residential Expenditure,YOUNG OPTIONS COLLEGE LTD,29/06/2015,"16,534.29"
Children's Safeguarding & Specialist Services,Children in Care & Fostering,JPAN,Third Party Payments,Residential Expenditure,Young Options Pathways Stoke,09/06/2015,"17,085.43"
Children's Safeguarding & Specialist Services,Children in Care & Fostering,JPAN,Third Party Payments,Residential Expenditure,Young Options Pathways Stoke,09/06/2015,"16,534.29"
Children's Safeguarding & Specialist Services,Children Specialist Services,GEAR,Supplies & Services,Other Grants (Expenses),ABC DAY NURSERY 20588539,22/06/2015,110.00
Children's Safeguarding & Specialist Services,Children Specialist Services,GEAR,Supplies & Services,Other Grants (Expenses),ABC DAY NURSERY LTD 20588539,05/06/2015,269.09
Children's Safeguarding & Specialist Services,Children Specialist Services,GEAR,Supplies & Services,Other Grants (Expenses),BEARS DEN PRE-SCHOOL A/C 00372906,05/06/2015,165.00
Children's Safeguarding & Specialist Services,Children Specialist Services,GEAR,Supplies & Services,Other Grants (Expenses),BEARS DEN PRE-SCHOOL A/C 00372906,05/06/2015,269.09
Children's Safeguarding & Specialist Services,Children Specialist Services,GEAR,Supplies & Services,Other Grants (Expenses),EARLYWORLD LIMITED,22/06/2015,532.45
Children's Safeguarding & Specialist Services,Children Specialist Services,GEAR,Supplies & Services,Other Grants (Expenses),HONEYBUNS NURSERIES,22/06/2015,266.22
Children's Safeguarding & Specialist Services,Children Specialist Services,GEAR,Supplies & Services,Other Grants (Expenses),NOAH'S ARK NURS & AFTER SCH CLUB,05/06/2015,351.59
Children's Safeguarding & Specialist Services,Children Specialist Services,GEAR,Supplies & Services,Other Grants (Expenses),RANDLAY ROUNDABOUTS 48243482,05/06/2015,266.22
Children's Safeguarding & Specialist Services,Children Specialist Services,GEAR,Supplies & Services,Other Grants (Expenses),STRAWBERRY HILL DAY NURSERY,22/06/2015,269.09
Children's Safeguarding & Specialist Services,Children Specialist Services,GEAR,Supplies & Services,Other Grants (Expenses),WOODEN TOPS DAY NURSERY A/C 2862358,29/06/2015,269.09
Children's Safeguarding & Specialist Services,Children Specialist Services,GPAA,Supplies & Services,Other Services,GL Education Group,05/06/2015,191.00
Children's Safeguarding & Specialist Services,Children Specialist Services,GY03,Supplies & Services,Confectionery & Snacks,BIKOLD,05/06/2015,253.72
Children's Safeguarding & Specialist Services,Children Specialist Services,HDAC,Third Party Payments,Agency Services,NESTOR PRIMECARE SERVICES LTD T/A ALLIED HEALTHCARE,05/06/2015,468.86
Children's Safeguarding & Specialist Services,Children Specialist Services,HDAG,Supplies & Services,Aids & Appliances,JCM SEATING SOLUTIONS,10/06/2015,118.13
Children's Safeguarding & Specialist Services,Children Specialist Services,HDAG,Supplies & Services,Aids & Appliances,JCM SEATING SOLUTIONS,23/06/2015,"1,644.11"
Children's Safeguarding & Specialist Services,Children Specialist Services,HDAG,Supplies & Services,Aids & Appliances,M A Smith Associates,26/06/2015,355.50
Children's Safeguarding & Specialist Services,Children Specialist Services,HDAG,Supplies & Services,Aids & Appliances,NRS Healthcare T/A Nottingham Rehab Ltd,04/06/2015,386.40
Children's Safeguarding & Specialist Services,Children Specialist Services,HDAG,Supplies & Services,Aids & Appliances,OSPREY HEALTHCARE LTD,04/06/2015,"4,608.00"
Children's Safeguarding & Specialist Services,Children Specialist Services,HDAJ,Third Party Payments,Agency Services,Direct Health Homecare Limited,09/06/2015,115.20
Children's Safeguarding & Specialist Services,Children Specialist Services,HDAJ,Third Party Payments,Agency Services,Direct Health Homecare Limited,09/06/2015,138.60
Children's Safeguarding & Specialist Services,Children Specialist Services,HDAJ,Third Party Payments,Agency Services,Direct Health Homecare Limited,09/06/2015,138.60
Children's Safeguarding & Specialist Services,Children Specialist Services,HDAJ,Third Party Payments,Agency Services,Direct Health Homecare Limited,09/06/2015,321.80
Children's Safeguarding & Specialist Services,Children Specialist Services,HDAJ,Third Party Payments,Agency Services,Direct Health Homecare Limited,30/06/2015,428.60
Children's Safeguarding & Specialist Services,Children Specialist Services,HDAJ,Third Party Payments,Agency Services,Direct Health Homecare Limited,11/06/2015,246.00
Children's Safeguarding & Specialist Services,Children Specialist Services,HDAJ,Third Party Payments,Agency Services,Direct Health Homecare Limited,30/06/2015,225.27
Children's Safeguarding & Specialist Services,Children Specialist Services,HDAJ,Third Party Payments,Agency Services,Direct Health Homecare Limited,30/06/2015,150.18
Children's Safeguarding & Specialist Services,Children Specialist Services,HDAJ,Third Party Payments,Agency Services,Direct Health Homecare Limited,04/06/2015,121.20
Children's Safeguarding & Specialist Services,Children Specialist Services,HDAJ,Third Party Payments,Agency Services,Direct Health Homecare Limited,08/06/2015,230.40
Children's Safeguarding & Specialist Services,Children Specialist Services,HDAJ,Third Party Payments,Agency Services,Direct Health Homecare Limited,09/06/2015,534.40
Children's Safeguarding & Specialist Services,Children Specialist Services,HDAJ,Third Party Payments,Agency Services,Direct Health Homecare Limited,09/06/2015,107.80
Children's Safeguarding & Specialist Services,Children Specialist Services,HDAJ,Third Party Payments,Agency Services,Direct Health Homecare Limited,17/06/2015,123.20
Children's Safeguarding & Specialist Services,Children Specialist Services,HDAJ,Third Party Payments,Agency Services,Direct Health Homecare Limited,17/06/2015,177.36
Children's Safeguarding & Specialist Services,Children Specialist Services,HDAJ,Third Party Payments,Agency Services,Direct Health Homecare Limited,18/06/2015,191.64
Children's Safeguarding & Specialist Services,Children Specialist Services,HDAJ,Third Party Payments,Agency Services,Direct Health Homecare Limited,26/06/2015,246.00
Children's Safeguarding & Specialist Services,Children Specialist Services,HDAJ,Third Party Payments,Agency Services,Direct Health Homecare Limited,30/06/2015,147.80
Children's Safeguarding & Specialist Services,Children Specialist Services,HDAJ,Third Party Payments,Agency Services,Direct Health Homecare Limited,30/06/2015,319.40
Children's Safeguarding & Specialist Services,Children Specialist Services,HDAJ,Third Party Payments,Agency Services,Direct Health Homecare Limited,15/06/2015,118.24
Children's Safeguarding & Specialist Services,Children Specialist Services,HDAJ,Third Party Payments,Agency Services,Direct Health Homecare Limited,15/06/2015,110.85
Children's Safeguarding & Specialist Services,Children Specialist Services,HDAJ,Third Party Payments,Agency Services,Direct Health Homecare Limited,15/06/2015,255.52
Children's Safeguarding & Specialist Services,Children Specialist Services,HDAJ,Third Party Payments,Agency Services,NESTOR PRIMECARE SERVICES LTD T/A ALLIED HEALTHCARE,15/06/2015,112.35
Children's Safeguarding & Specialist Services,Children Specialist Services,HDAJ,Third Party Payments,Agency Services,NESTOR PRIMECARE SERVICES LTD T/A ALLIED HEALTHCARE,12/06/2015,323.90
Children's Safeguarding & Specialist Services,Children Specialist Services,HDAJ,Third Party Payments,Agency Services,NESTOR PRIMECARE SERVICES LTD T/A ALLIED HEALTHCARE,18/06/2015,124.00
Children's Safeguarding & Specialist Services,Children Specialist Services,HDAJ,Third Party Payments,Agency Services,NESTOR PRIMECARE SERVICES LTD T/A ALLIED HEALTHCARE,18/06/2015,204.25
Children's Safeguarding & Specialist Services,Children Specialist Services,HDAJ,Third Party Payments,Agency Services,NESTOR PRIMECARE SERVICES LTD T/A ALLIED HEALTHCARE,18/06/2015,110.75
Children's Safeguarding & Specialist Services,Children Specialist Services,HDAJ,Third Party Payments,Agency Services,NESTOR PRIMECARE SERVICES LTD T/A ALLIED HEALTHCARE,09/06/2015,188.45
Children's Safeguarding & Specialist Services,Children Specialist Services,HDAJ,Third Party Payments,Agency Services,NESTOR PRIMECARE SERVICES LTD T/A ALLIED HEALTHCARE,09/06/2015,161.44
Children's Safeguarding & Specialist Services,Children Specialist Services,HDAJ,Third Party Payments,Agency Services,NESTOR PRIMECARE SERVICES LTD T/A ALLIED HEALTHCARE,09/06/2015,166.09
Children's Safeguarding & Specialist Services,Children Specialist Services,HDAJ,Third Party Payments,Agency Services,NESTOR PRIMECARE SERVICES LTD T/A ALLIED HEALTHCARE,09/06/2015,491.76
Children's Safeguarding & Specialist Services,Children Specialist Services,HDAJ,Third Party Payments,Agency Services,NESTOR PRIMECARE SERVICES LTD T/A ALLIED HEALTHCARE,08/06/2015,203.85
Children's Safeguarding & Specialist Services,Children Specialist Services,HDAJ,Third Party Payments,Agency Services,NESTOR PRIMECARE SERVICES LTD T/A ALLIED HEALTHCARE,09/06/2015,123.75
Children's Safeguarding & Specialist Services,Children Specialist Services,HDAJ,Third Party Payments,Agency Services,NESTOR PRIMECARE SERVICES LTD T/A ALLIED HEALTHCARE,09/06/2015,111.55
Children's Safeguarding & Specialist Services,Children Specialist Services,HDAJ,Third Party Payments,Agency Services,NESTOR PRIMECARE SERVICES LTD T/A ALLIED HEALTHCARE,09/06/2015,144.02
Children's Safeguarding & Specialist Services,Children Specialist Services,HDAJ,Third Party Payments,Agency Services,NESTOR PRIMECARE SERVICES LTD T/A ALLIED HEALTHCARE,09/06/2015,105.06
Children's Safeguarding & Specialist Services,Children Specialist Services,HDAJ,Third Party Payments,Agency Services,NESTOR PRIMECARE SERVICES LTD T/A ALLIED HEALTHCARE,09/06/2015,135.42
Children's Safeguarding & Specialist Services,Children Specialist Services,HDAJ,Third Party Payments,Agency Services,NESTOR PRIMECARE SERVICES LTD T/A ALLIED HEALTHCARE,09/06/2015,111.24
Children's Safeguarding & Specialist Services,Children Specialist Services,HDAJ,Third Party Payments,Agency Services,NESTOR PRIMECARE SERVICES LTD T/A ALLIED HEALTHCARE,18/06/2015,110.10
Children's Safeguarding & Specialist Services,Children Specialist Services,HDAJ,Third Party Payments,Agency Services,NESTOR PRIMECARE SERVICES LTD T/A ALLIED HEALTHCARE,30/06/2015,162.09
Children's Safeguarding & Specialist Services,Children Specialist Services,HDAJ,Third Party Payments,Agency Services,NESTOR PRIMECARE SERVICES LTD T/A ALLIED HEALTHCARE,09/06/2015,314.70
Children's Safeguarding & Specialist Services,Children Specialist Services,HDAJ,Third Party Payments,Agency Services,WE ARE THE CARE COMPANY LTD,30/06/2015,243.13
Children's Safeguarding & Specialist Services,Children Specialist Services,HDAJ,Third Party Payments,Agency Services,WE ARE THE CARE COMPANY LTD,09/06/2015,200.00
Children's Safeguarding & Specialist Services,Children Specialist Services,HDAJ,Third Party Payments,Agency Services,WE ARE THE CARE COMPANY LTD,09/06/2015,190.00
Children's Safeguarding & Specialist Services,Children Specialist Services,HDAJ,Third Party Payments,Agency Services,WE ARE THE CARE COMPANY LTD,09/06/2015,226.80
Children's Safeguarding & Specialist Services,Children Specialist Services,HDAK,Third Party Payments,Agency Services,Direct Health Homecare Limited,11/06/2015,133.02
Children's Safeguarding & Specialist Services,Children Specialist Services,HDAK,Third Party Payments,Agency Services,Direct Health Homecare Limited,11/06/2015,255.52
Children's Safeguarding & Specialist Services,Children Specialist Services,HDAK,Third Party Payments,Agency Services,NESTOR PRIMECARE SERVICES LTD T/A ALLIED HEALTHCARE,29/06/2015,207.09
Children's Safeguarding & Specialist Services,Children Specialist Services,HDAK,Third Party Payments,Agency Services,NESTOR PRIMECARE SERVICES LTD T/A ALLIED HEALTHCARE,29/06/2015,176.20
Children's Safeguarding & Specialist Services,Children Specialist Services,HDAK,Third Party Payments,Agency Services,NESTOR PRIMECARE SERVICES LTD T/A ALLIED HEALTHCARE,01/06/2015,238.50
Children's Safeguarding & Specialist Services,Children Specialist Services,JSAA,Third Party Payments,Interpreters Fees,RELATE SHROPSHIRE & HEREFORDSHIRE LTD,11/06/2015,150.00
Children's Safeguarding & Specialist Services,Children Specialist Services,KNAA,Third Party Payments,Residential Expenditure,CRUCKTON HALL SCHOOL,05/06/2015,"29,439.00"
Children's Safeguarding & Specialist Services,Children Specialist Services,KNAA,Third Party Payments,Residential Expenditure,CRUCKTON HALL SCHOOL,05/06/2015,"30,047.67"
Children's Safeguarding & Specialist Services,Children Specialist Services,KNAA,Third Party Payments,Agency Services,CRUCKTON HALL SCHOOL,05/06/2015,"32,710.00"
Children's Safeguarding & Specialist Services,Children Specialist Services,KNAA,Third Party Payments,Agency Services,CRUCKTON HALL SCHOOL,05/06/2015,"2,820.00"
Children's Safeguarding & Specialist Services,Children Specialist Services,KNAA,Third Party Payments,Agency Services,CRUCKTON HALL SCHOOL,05/06/2015,"29,166.67"
Children's Safeguarding & Specialist Services,Children Specialist Services,KNAA,Third Party Payments,Residential Expenditure,DUDLEY METROPOLITAN BOROUGH COUNCIL,05/06/2015,832.00
Children's Safeguarding & Specialist Services,Children Specialist Services,KNAA,Third Party Payments,Residential Expenditure,SHROPSHIRE COUNCIL,05/06/2015,"2,566.39"
Children's Safeguarding & Specialist Services,Children Specialist Services,KNAA,Third Party Payments,Agency Services,SHROPSHIRE COUNCIL (55636551),29/06/2015,"2,830.01"
Children's Safeguarding & Specialist Services,Children Specialist Services,KNAA,Third Party Payments,Agency Services,SHROPSHIRE COUNCIL (55636551),29/06/2015,"4,004.00"
Children's Safeguarding & Specialist Services,Children Specialist Services,KNAA,Third Party Payments,Agency Services,SHROPSHIRE COUNCIL (55636551),29/06/2015,"5,159.00"
Children's Safeguarding & Specialist Services,Children Specialist Services,KNAA,Third Party Payments,Agency Services,SHROPSHIRE COUNCIL (55636551),29/06/2015,"1,701.00"
Children's Safeguarding & Specialist Services,Children Specialist Services,KNAA,Third Party Payments,Residential Expenditure,SHROPSHIRE COUNCIL (55636551),29/06/2015,"1,898.42"
Children's Safeguarding & Specialist Services,Children Specialist Services,KNAA,Third Party Payments,Residential Expenditure,The National Teaching & Advisory Service,29/06/2015,498.00
Children's Safeguarding & Specialist Services,Children Specialist Services,KNAA,Third Party Payments,Residential Expenditure,The National Teaching & Advisory Service,29/06/2015,888.00
Children's Safeguarding & Specialist Services,Children Specialist Services,KNAA,Third Party Payments,Residential Expenditure,The National Teaching & Advisory Service,29/06/2015,822.00
Children's Safeguarding & Specialist Services,Children Specialist Services,KNAA,Third Party Payments,Interpreters Fees,VISS LTD,29/06/2015,125.00
Children's Safeguarding & Specialist Services,Children Specialist Services,KNAC,Third Party Payments,Pre School Playgroups,WOLVERHAMPTON CITY COUNCIL,23/06/2015,"9,317.45"
Children's Safeguarding & Specialist Services,Children Specialist Services,KNAJ,Supplies & Services,Equipment - Purchase,COMBINED PRECISION COMPONENTS PLC,17/06/2015,107.39
Children's Safeguarding & Specialist Services,Children Specialist Services,KNAJ,Supplies & Services,Aids & Appliances,Edward Marcus Ltd,18/06/2015,147.27
Children's Safeguarding & Specialist Services,Children Specialist Services,KNAJ,Supplies & Services,PSF Expenditure,MAWLEY OAK GARAGES,29/06/2015,275.00
Children's Safeguarding & Specialist Services,Children Specialist Services,KNAJ,Supplies & Services,Stationery,RNIB SERVICES LIMITED,05/06/2015,219.96
Children's Safeguarding & Specialist Services,Children Specialist Services,KNAJ,Supplies & Services,Stationery,RNIB SERVICES LIMITED,05/06/2015,-219.96
Children's Safeguarding & Specialist Services,Children Specialist Services,KNAJ,Supplies & Services,Aids & Appliances,RNIB SERVICES LIMITED,19/06/2015,124.50
Children's Safeguarding & Specialist Services,Children Specialist Services,KNAJ,Supplies & Services,Equipment - Purchase,SOUNDBYTE SOLUTIONS (UK) LTD,02/06/2015,258.00
Children's Safeguarding & Specialist Services,Children Specialist Services,KNAJ,Supplies & Services,Conference Expenses,THE EAR FOUNDATION,09/06/2015,125.00
Children's Safeguarding & Specialist Services,Children Specialist Services,KNAM,Premises-Related Expenditure,Hire Of Rooms,PARK LANE CENTRE,29/06/2015,120.00
Children's Safeguarding & Specialist Services,Children Specialist Services,KNAM,Supplies & Services,Other Services,Right Mediation,29/06/2015,800.00
Co-Operative Council,Community Engagement & Voluntary Sector,AEAH,Supplies & Services,Grants To Voluntary Organis,Rights and Fairness Telford,23/06/2015,"17,000.00"
Co-Operative Council,Community Engagement & Voluntary Sector,MCAB,Premises-Related Expenditure,Hire Of Rooms,THE SALVATION ARMY,17/06/2015,112.50
Co-Operative Council,Community Engagement & Voluntary Sector,MCAF,Supplies & Services,Other Services,Redacted Personal Information,26/06/2015,406.80
Co-Operative Council,Community Engagement & Voluntary Sector,MCAF,Support Services,CEC Charge - Occupational Health,Keegan & Pennykid Insurance Brokers Ltd,16/06/2015,328.60
Co-Operative Council,Community Engagement & Voluntary Sector,WECF,Capital Expenditure,Other Capital Expenditure,Creative Steps Childcare,09/06/2015,"13,600.00"
Co-Operative Council,Community Engagement & Voluntary Sector,WECF,Capital Expenditure,Other Capital Expenditure,PARK LANE CENTRE,23/06/2015,"45,160.56"
Co-Operative Council,Corporate Communications,MMAD,Employees,Recruitment Advertising,TES GLOBAL LTD (06090251),24/06/2015,718.20
Co-Operative Council,Corporate Communications,MMAD,Employees,Recruitment Advertising,THE MIDLAND NEWS ASSOCIATION LTD,23/06/2015,225.00
Co-Operative Council,Corporate Communications,MMAD,Employees,Recruitment Advertising,TOTALJOBS GROUP,23/06/2015,400.00
Co-Operative Council,Delivery & Planning,MDAB,Supplies & Services,Conference Expenses,CAPITA CONFERENCES,25/06/2015,399.00
Co-Operative Council,Policy & Strategy,MPAE,Premises-Related Expenditure,Electricity,West Mercia Energy (WME),10/06/2015,116.78
Co-Operative Council,Policy & Strategy,MPAE,Premises-Related Expenditure,Electricity,West Mercia Energy (WME),10/06/2015,116.06
Co-Operative Council,Policy & Strategy,MPAE,Premises-Related Expenditure,Electricity,West Mercia Energy (WME),10/06/2015,116.89
Co-Operative Council,Policy & Strategy,MPAE,Premises-Related Expenditure,Electricity,West Mercia Energy (WME),10/06/2015,117.84
Co-Operative Council,Policy & Strategy,MPAE,Premises-Related Expenditure,Electricity,West Mercia Energy (WME),10/06/2015,114.75
Customer Services,ALD Services,HLBB,Supplies & Services,Chemicals/Cleaning Products,CARESHOP,09/06/2015,225.05
Customer Services,ALD Services,HLBB,Supplies & Services,Laundry & Towel Hire,PHS GROUP LTD,15/06/2015,313.95
Customer Services,ALD Services,HLBC,Supplies & Services,Provisions,BIKOLD,29/06/2015,354.10
Customer Services,ALD Services,HLBC,Supplies & Services,Laundry & Towel Hire,PHS GROUP LTD,15/06/2015,543.93
Customer Services,ALD Services,HLBC,Supplies & Services,Laundry & Towel Hire,PHS GROUP LTD,15/06/2015,-545.68
Customer Services,ALD Services,HLBC,Supplies & Services,Laundry & Towel Hire,PHS GROUP LTD,15/06/2015,"-1,499.01"
Customer Services,ALD Services,HLDB,Supplies & Services,Items For Resale,TELFORD TIMBER SUPPLIES,25/06/2015,300.00
Customer Services,ALD Services,HLDB,Supplies & Services,Items For Resale,TELFORD TIMBER SUPPLIES,25/06/2015,160.00
Customer Services,ALD Services,HLDB,Supplies & Services,Items For Resale,TELFORD TIMBER SUPPLIES,25/06/2015,105.00
Customer Services,ALD Services,HLDB,Supplies & Services,Items For Resale,TELFORD TIMBER SUPPLIES,25/06/2015,110.00
Customer Services,ALD Services,HLDB,Supplies & Services,Items For Resale,TELFORD TIMBER SUPPLIES,25/06/2015,215.00
Customer Services,ALD Services,HLDB,Supplies & Services,Equipment - Purchase,WINDOW & DOOR CONTRACT SERVICES,11/06/2015,530.00
Customer Services,ALD Services,HLEB,Capital Financing Costs,Leased Equipment,LEX AUTOLEASE LTD,09/06/2015,657.38
Customer Services,ALD Services,HLEB,Supplies & Services,Equipment - Purchase,THE CONSORTIUM FOR PURCHASING & DISTRIBUTION LTD T/A WEST MERCIA SUPPLIES,15/06/2015,224.86
Customer Services,ALD Services,HLEB,Supplies & Services,Equipment - Purchase,THE CONSORTIUM FOR PURCHASING & DISTRIBUTION LTD T/A WEST MERCIA SUPPLIES,23/06/2015,412.97
Customer Services,ALD Services,HLEC,Capital Financing Costs,Leased Equipment,RICOH UK LIMITED,29/06/2015,408.35
Customer Services,ALD Services,HLEG,Supplies & Services,Respite Care,Redacted Personal Information,15/06/2015,148.12
Customer Services,ALD Services,HLEG,Supplies & Services,Respite Care,Redacted Personal Information,29/06/2015,148.12
Customer Services,ALD Services,HLEG,Supplies & Services,Respite Care,Redacted Personal Information,29/06/2015,197.49
Customer Services,ALD Services,WHAK,Capital Expenditure,Payments to Contractor,SIGNS EXPRESS (TELFORD),11/06/2015,210.00
Customer Services,Benefits,LRCT,Supplies & Services,Legal Advise CTS Scheme,AIREY CONSULTANCY SERVICES LTD,16/06/2015,450.00
Customer Services,Benefits,LRSF,Supplies & Services,Grants To Voluntary Organisations,Telford Crisis Support,19/06/2015,"15,440.00"
Customer Services,Benefits,LRSF,Transfer Payments,Crisis Assistance Awards,A W HOLDINGS,16/06/2015,194.00
Customer Services,Benefits,LRSF,Transfer Payments,Crisis Assistance Awards,A W HOLDINGS,16/06/2015,149.00
Customer Services,Benefits,LRSF,Transfer Payments,Crisis Assistance Awards,A W HOLDINGS,16/06/2015,149.00
Customer Services,Benefits,LRSF,Transfer Payments,Crisis Assistance Awards,DAWLEY BARGAIN CENTRE,16/06/2015,360.00
Customer Services,Benefits,LRSF,Transfer Payments,Crisis Assistance Awards,DAWLEY BARGAIN CENTRE,16/06/2015,115.00
Customer Services,Benefits,LRSF,Transfer Payments,Crisis Assistance Awards,DAWLEY BARGAIN CENTRE,16/06/2015,180.00
Customer Services,Benefits,LRSF,Transfer Payments,Crisis Assistance Awards,DAWLEY BARGAIN CENTRE,03/06/2015,110.00
Customer Services,Benefits,LRSF,Transfer Payments,Crisis Assistance Awards,DAWLEY BARGAIN CENTRE,03/06/2015,135.00
Customer Services,Benefits,LRSF,Transfer Payments,Crisis Assistance Awards,DAWLEY BARGAIN CENTRE,29/06/2015,185.00
Customer Services,Benefits,LRSF,Transfer Payments,Crisis Assistance Awards,DAWLEY BARGAIN CENTRE,29/06/2015,105.00
Customer Services,Benefits,LRSF,Transfer Payments,Crisis Assistance Awards,DAWLEY BARGAIN CENTRE,29/06/2015,135.00
Customer Services,Benefits,LRSF,Transfer Payments,Crisis Assistance Awards,DAWLEY BARGAIN CENTRE,29/06/2015,430.00
Customer Services,Benefits,LRSF,Transfer Payments,Crisis Assistance Awards,DAWLEY BARGAIN CENTRE,03/06/2015,130.00
Customer Services,Benefits,LRSF,Transfer Payments,Crisis Assistance Awards,DAWLEY BARGAIN CENTRE,03/06/2015,200.00
Customer Services,Benefits,LRSF,Transfer Payments,Crisis Assistance Awards,DAWLEY BARGAIN CENTRE,16/06/2015,340.00
Customer Services,Benefits,LRSF,Transfer Payments,Crisis Assistance Awards,DAWLEY BARGAIN CENTRE,12/06/2015,175.00
Customer Services,Benefits,LRSF,Transfer Payments,Crisis Assistance Awards,DAWLEY BARGAIN CENTRE,12/06/2015,135.00
Customer Services,Benefits,LRSF,Transfer Payments,Crisis Assistance Awards,DAWLEY BARGAIN CENTRE,24/06/2015,245.00
Customer Services,Benefits,LRSF,Transfer Payments,Crisis Assistance Awards,DAWLEY BARGAIN CENTRE,24/06/2015,170.00
Customer Services,Benefits,LRSF,Transfer Payments,Crisis Assistance Awards,DAWLEY BARGAIN CENTRE,25/06/2015,185.00
Customer Services,Benefits,LRSF,Transfer Payments,Crisis Assistance Awards,PayPoint Network Limited,16/06/2015,196.00
Customer Services,Benefits,LRSF,Transfer Payments,Crisis Assistance Awards,PayPoint Network Limited,25/06/2015,237.00
Customer Services,Benefits,LRSF,Transfer Payments,Crisis Assistance Awards,PayPoint Network Limited,03/06/2015,287.00
Customer Services,Benefits,LRSF,Transfer Payments,Crisis Assistance Awards,PayPoint Network Limited,03/06/2015,188.00
Customer Services,Benefits,LRSF,Transfer Payments,Crisis Assistance Awards,PayPoint Network Limited,09/06/2015,125.00
Customer Services,Benefits,LRSF,Transfer Payments,Crisis Assistance Awards,Reviive,16/06/2015,114.00
Customer Services,Benefits,LRTC,Supplies & Services,Postages,ROYAL MAIL GROUP LTD,08/06/2015,125.22
Customer Services,Benefits,LRTC,Supplies & Services,Concessionary Travel Software,Unicard Ltd,10/06/2015,501.34
Customer Services,Catering,CAHH,Supplies & Services,Provisions,Bikold,12/06/2015,103.18
Customer Services,Catering,CAHH,Supplies & Services,Provisions,Bikold,12/06/2015,139.23
Customer Services,Catering,CAHH,Supplies & Services,Provisions,Bikold,19/06/2015,110.81
Customer Services,Catering,CAHH,Supplies & Services,Provisions,Bikold,19/06/2015,101.91
Customer Services,Catering,CAHH,Supplies & Services,Provisions,Bikold,26/06/2015,144.56
Customer Services,Catering,CAHH,Supplies & Services,Provisions,Bikold,05/06/2015,163.33
Customer Services,Catering,CAHH,Supplies & Services,Items For Resale,Forestry Commission,12/06/2015,824.17
Customer Services,Catering,CAHH,Supplies & Services,Provisions,ROWLANDS & COMPANY,12/06/2015,161.42
Customer Services,Catering,CAHH,Supplies & Services,Provisions,ROWLANDS & COMPANY,12/06/2015,144.01
Customer Services,Catering,CAHH,Supplies & Services,Provisions,ROWLANDS & COMPANY,12/06/2015,127.92
Customer Services,Catering,CAHH,Supplies & Services,Provisions,ROWLANDS & COMPANY,24/06/2015,148.54
Customer Services,Catering,CAHH,Supplies & Services,Provisions,ROWLANDS & COMPANY,25/06/2015,120.43
Customer Services,Catering,CAHH,Supplies & Services,Provisions,ROWLANDS & COMPANY,03/06/2015,113.90
Customer Services,Catering,CAHH,Supplies & Services,Protective Clothing,SIMON JERSEY LIMITED,22/06/2015,277.76
Customer Services,Catering,CAHH,Supplies & Services,Holidays & Outings,Vegware,29/06/2015,116.12
Customer Services,Catering,CAMA,Employees,Training Expenses,QUALSAFE.COM,24/06/2015,215.00
Customer Services,Catering,CAMA,Supplies & Services,Subscriptions,APSE (MANCHESTER),02/06/2015,"3,160.00"
Customer Services,Catering,CAMA,Supplies & Services,Protective Clothing,ERIC NEVILLE CATERING SUPPLIES LTD,12/06/2015,142.44
Customer Services,Catering,CAMA,Supplies & Services,Protective Clothing,IMAGE@WORK LTD,16/06/2015,254.65
Customer Services,Catering,CAMA,Supplies & Services,Advertising,SHREWSBURY & TELFORD FAMILY GRAPEVINE,09/06/2015,180.00
Customer Services,Catering,CAMA,Supplies & Services,Crockery/Hardware/Light Equip,WEST MERCIA SUPPLIES Catalogue Supplies (None Utility),01/06/2015,108.90
Customer Services,Catering,CAOC,Supplies & Services,Provisions,Bikold,12/06/2015,106.05
Customer Services,Catering,CASM,Supplies & Services,EEC Whole Milk,JOHAL DAIRIES,12/06/2015,"1,107.40"
Customer Services,Catering,CASM,Supplies & Services,EEC Whole Milk,JOHAL DAIRIES,12/06/2015,"1,801.07"
Customer Services,Catering,CASM,Supplies & Services,EEC Whole Milk,JOHAL DAIRIES,22/06/2015,764.35
Customer Services,Catering,CASM,Supplies & Services,EEC Whole Milk,JOHAL DAIRIES,22/06/2015,"1,801.48"
Customer Services,Catering,CASM,Supplies & Services,EEC Whole Milk,JOHAL DAIRIES,25/06/2015,764.35
Customer Services,Catering,CASM,Supplies & Services,EEC Whole Milk,JOHAL DAIRIES,02/06/2015,764.35
Customer Services,Catering,CASM,Supplies & Services,EEC Whole Milk,JOHAL DAIRIES,02/06/2015,"1,808.16"
Customer Services,Catering,CASM,Supplies & Services,EEC Whole Milk,JOHAL DAIRIES,02/06/2015,"1,800.65"
Customer Services,Catering,CASM,Supplies & Services,EEC Whole Milk,JOHAL DAIRIES,05/06/2015,782.05
Customer Services,Catering,CASM,Supplies & Services,EEC Whole Milk,JOHAL DAIRIES,05/06/2015,"1,815.66"
Customer Services,Catering,CASM,Supplies & Services,EEC Whole Milk,JOHAL DAIRIES,05/06/2015,758.41
Customer Services,Catering,CASN,Supplies & Services,Provisions,Bikold,05/06/2015,155.44
Customer Services,Catering,CASN,Supplies & Services,Provisions,Bikold,19/06/2015,162.40
Customer Services,Catering,CASN,Supplies & Services,Provisions,Bikold,19/06/2015,259.19
Customer Services,Catering,CASN,Supplies & Services,Provisions,Bikold,19/06/2015,163.81
Customer Services,Catering,CASN,Supplies & Services,Provisions,Bikold,05/06/2015,201.86
Customer Services,Catering,CASN,Supplies & Services,Provisions,Bikold,12/06/2015,129.72
Customer Services,Catering,CASN,Supplies & Services,Provisions,Bikold,12/06/2015,179.95
Customer Services,Catering,CASN,Supplies & Services,Provisions,Bikold,12/06/2015,149.59
Customer Services,Catering,CASN,Supplies & Services,Provisions,Bikold,12/06/2015,229.93
Customer Services,Catering,CASN,Supplies & Services,Provisions,Bikold,26/06/2015,109.12
Customer Services,Catering,CASN,Supplies & Services,Provisions,Bikold,26/06/2015,149.64
Customer Services,Catering,CASN,Supplies & Services,Provisions,John Sheppard Catering Butchers,05/06/2015,124.80
Customer Services,Catering,CASP,Premises-Related Expenditure,Clean Mats & Toilet Requisites,ARROW COUNTY SUPPLIES,02/06/2015,139.64
Customer Services,Catering,CASP,Premises-Related Expenditure,Trade Refuse,FCC Recycling (UK) Ltd (39521486),24/06/2015,188.37
Customer Services,Catering,CASP,Supplies & Services,Provisions,Bikold,26/06/2015,126.20
Customer Services,Catering,CASP,Supplies & Services,Provisions,Bikold,26/06/2015,170.95
Customer Services,Catering,CASP,Supplies & Services,Provisions,Bikold,12/06/2015,186.86
Customer Services,Catering,CASP,Supplies & Services,Provisions,Bikold,05/06/2015,154.84
Customer Services,Catering,CASP,Supplies & Services,Provisions,Bikold,26/06/2015,165.78
Customer Services,Catering,CASP,Supplies & Services,Provisions,Bikold,26/06/2015,297.05
Customer Services,Catering,CASP,Supplies & Services,Provisions,Bikold,12/06/2015,106.00
Customer Services,Catering,CASP,Supplies & Services,Provisions,Bikold,12/06/2015,204.21
Customer Services,Catering,CASP,Supplies & Services,Provisions,Bikold,12/06/2015,186.31
Customer Services,Catering,CASP,Supplies & Services,Provisions,Bikold,12/06/2015,250.35
Customer Services,Catering,CASP,Supplies & Services,Provisions,Bikold,12/06/2015,204.45
Customer Services,Catering,CASP,Supplies & Services,Provisions,Bikold,12/06/2015,174.92
Customer Services,Catering,CASP,Supplies & Services,Provisions,Bikold,12/06/2015,199.31
Customer Services,Catering,CASP,Supplies & Services,Provisions,Bikold,26/06/2015,158.92
Customer Services,Catering,CASP,Supplies & Services,Provisions,Bikold,05/06/2015,231.60
Customer Services,Catering,CASP,Supplies & Services,Provisions,Bikold,26/06/2015,122.12
Customer Services,Catering,CASP,Supplies & Services,Provisions,Bikold,26/06/2015,162.43
Customer Services,Catering,CASP,Supplies & Services,Provisions,Bikold,26/06/2015,108.14
Customer Services,Catering,CASP,Supplies & Services,Provisions,Bikold,26/06/2015,272.67
Customer Services,Catering,CASP,Supplies & Services,Provisions,Bikold,26/06/2015,368.08
Customer Services,Catering,CASP,Supplies & Services,Provisions,Bikold,26/06/2015,388.03
Customer Services,Catering,CASP,Supplies & Services,Provisions,Bikold,12/06/2015,150.74
Customer Services,Catering,CASP,Supplies & Services,Provisions,Bikold,12/06/2015,141.35
Customer Services,Catering,CASP,Supplies & Services,Provisions,Bikold,05/06/2015,170.77
Customer Services,Catering,CASP,Supplies & Services,Provisions,Bikold,05/06/2015,211.43
Customer Services,Catering,CASP,Supplies & Services,Provisions,Bikold,05/06/2015,114.55
Customer Services,Catering,CASP,Supplies & Services,Provisions,Bikold,26/06/2015,384.69
Customer Services,Catering,CASP,Supplies & Services,Provisions,Bikold,26/06/2015,142.06
Customer Services,Catering,CASP,Supplies & Services,Provisions,Bikold,12/06/2015,122.80
Customer Services,Catering,CASP,Supplies & Services,Provisions,Bikold,05/06/2015,245.95
Customer Services,Catering,CASP,Supplies & Services,Provisions,Bikold,05/06/2015,141.60
Customer Services,Catering,CASP,Supplies & Services,Provisions,Bikold,05/06/2015,100.45
Customer Services,Catering,CASP,Supplies & Services,Provisions,Bikold,05/06/2015,102.47
Customer Services,Catering,CASP,Supplies & Services,Provisions,Bikold,05/06/2015,101.29
Customer Services,Catering,CASP,Supplies & Services,Provisions,Bikold,05/06/2015,112.97
Customer Services,Catering,CASP,Supplies & Services,Provisions,Bikold,05/06/2015,136.52
Customer Services,Catering,CASP,Supplies & Services,Provisions,Bikold,05/06/2015,197.48
Customer Services,Catering,CASP,Supplies & Services,Provisions,Bikold,05/06/2015,190.34
Customer Services,Catering,CASP,Supplies & Services,Provisions,Bikold,05/06/2015,208.27
Customer Services,Catering,CASP,Supplies & Services,Provisions,Bikold,05/06/2015,195.44
Customer Services,Catering,CASP,Supplies & Services,Provisions,Bikold,05/06/2015,162.59
Customer Services,Catering,CASP,Supplies & Services,Provisions,Bikold,05/06/2015,133.45
Customer Services,Catering,CASP,Supplies & Services,Provisions,Bikold,05/06/2015,181.74
Customer Services,Catering,CASP,Supplies & Services,Provisions,Bikold,05/06/2015,469.50
Customer Services,Catering,CASP,Supplies & Services,Provisions,Bikold,05/06/2015,106.54
Customer Services,Catering,CASP,Supplies & Services,Provisions,Bikold,05/06/2015,126.19
Customer Services,Catering,CASP,Supplies & Services,Provisions,Bikold,05/06/2015,123.42
Customer Services,Catering,CASP,Supplies & Services,Provisions,Bikold,05/06/2015,276.61
Customer Services,Catering,CASP,Supplies & Services,Provisions,Bikold,05/06/2015,190.20
Customer Services,Catering,CASP,Supplies & Services,Provisions,Bikold,05/06/2015,141.46
Customer Services,Catering,CASP,Supplies & Services,Provisions,Bikold,05/06/2015,103.88
Customer Services,Catering,CASP,Supplies & Services,Provisions,Bikold,05/06/2015,246.15
Customer Services,Catering,CASP,Supplies & Services,Provisions,Bikold,05/06/2015,238.57
Customer Services,Catering,CASP,Supplies & Services,Provisions,Bikold,05/06/2015,160.49
Customer Services,Catering,CASP,Supplies & Services,Provisions,Bikold,05/06/2015,169.54
Customer Services,Catering,CASP,Supplies & Services,Provisions,Bikold,05/06/2015,145.97
Customer Services,Catering,CASP,Supplies & Services,Provisions,Bikold,05/06/2015,119.48
Customer Services,Catering,CASP,Supplies & Services,Provisions,Bikold,05/06/2015,151.27
Customer Services,Catering,CASP,Supplies & Services,Provisions,Bikold,05/06/2015,149.65
Customer Services,Catering,CASP,Supplies & Services,Provisions,Bikold,05/06/2015,128.09
Customer Services,Catering,CASP,Supplies & Services,Provisions,Bikold,05/06/2015,114.70
Customer Services,Catering,CASP,Supplies & Services,Provisions,Bikold,05/06/2015,155.88
Customer Services,Catering,CASP,Supplies & Services,Provisions,Bikold,05/06/2015,124.17
Customer Services,Catering,CASP,Supplies & Services,Provisions,Bikold,05/06/2015,206.77
Customer Services,Catering,CASP,Supplies & Services,Provisions,Bikold,05/06/2015,151.94
Customer Services,Catering,CASP,Supplies & Services,Provisions,Bikold,05/06/2015,151.50
Customer Services,Catering,CASP,Supplies & Services,Provisions,Bikold,05/06/2015,249.84
Customer Services,Catering,CASP,Supplies & Services,Provisions,Bikold,05/06/2015,161.34
Customer Services,Catering,CASP,Supplies & Services,Provisions,Bikold,05/06/2015,101.73
Customer Services,Catering,CASP,Supplies & Services,Provisions,Bikold,05/06/2015,148.79
Customer Services,Catering,CASP,Supplies & Services,Provisions,Bikold,05/06/2015,143.05
Customer Services,Catering,CASP,Supplies & Services,Provisions,Bikold,05/06/2015,102.64
Customer Services,Catering,CASP,Supplies & Services,Provisions,Bikold,05/06/2015,133.26
Customer Services,Catering,CASP,Supplies & Services,Provisions,Bikold,05/06/2015,164.10
Customer Services,Catering,CASP,Supplies & Services,Provisions,Bikold,05/06/2015,236.56
Customer Services,Catering,CASP,Supplies & Services,Provisions,Bikold,05/06/2015,123.28
Customer Services,Catering,CASP,Supplies & Services,Provisions,Bikold,05/06/2015,186.73
Customer Services,Catering,CASP,Supplies & Services,Provisions,Bikold,05/06/2015,111.38
Customer Services,Catering,CASP,Supplies & Services,Provisions,Bikold,05/06/2015,195.85
Customer Services,Catering,CASP,Supplies & Services,Provisions,Bikold,05/06/2015,319.04
Customer Services,Catering,CASP,Supplies & Services,Provisions,Bikold,05/06/2015,236.50
Customer Services,Catering,CASP,Supplies & Services,Provisions,Bikold,05/06/2015,198.81
Customer Services,Catering,CASP,Supplies & Services,Provisions,Bikold,05/06/2015,101.82
Customer Services,Catering,CASP,Supplies & Services,Provisions,Bikold,05/06/2015,111.23
Customer Services,Catering,CASP,Supplies & Services,Provisions,Bikold,05/06/2015,138.03
Customer Services,Catering,CASP,Supplies & Services,Provisions,Bikold,05/06/2015,210.09
Customer Services,Catering,CASP,Supplies & Services,Provisions,Bikold,05/06/2015,242.41
Customer Services,Catering,CASP,Supplies & Services,Provisions,Bikold,05/06/2015,400.01
Customer Services,Catering,CASP,Supplies & Services,Provisions,Bikold,05/06/2015,158.85
Customer Services,Catering,CASP,Supplies & Services,Provisions,Bikold,05/06/2015,272.62
Customer Services,Catering,CASP,Supplies & Services,Provisions,Bikold,05/06/2015,324.61
Customer Services,Catering,CASP,Supplies & Services,Provisions,Bikold,05/06/2015,149.65
Customer Services,Catering,CASP,Supplies & Services,Provisions,Bikold,05/06/2015,184.41
Customer Services,Catering,CASP,Supplies & Services,Provisions,Bikold,05/06/2015,293.86
Customer Services,Catering,CASP,Supplies & Services,Provisions,Bikold,05/06/2015,334.69
Customer Services,Catering,CASP,Supplies & Services,Provisions,Bikold,05/06/2015,267.36
Customer Services,Catering,CASP,Supplies & Services,Provisions,Bikold,05/06/2015,110.90
Customer Services,Catering,CASP,Supplies & Services,Provisions,Bikold,05/06/2015,160.26
Customer Services,Catering,CASP,Supplies & Services,Provisions,Bikold,05/06/2015,331.61
Customer Services,Catering,CASP,Supplies & Services,Provisions,Bikold,05/06/2015,238.96
Customer Services,Catering,CASP,Supplies & Services,Provisions,Bikold,05/06/2015,144.56
Customer Services,Catering,CASP,Supplies & Services,Provisions,Bikold,05/06/2015,118.06
Customer Services,Catering,CASP,Supplies & Services,Provisions,Bikold,05/06/2015,145.18
Customer Services,Catering,CASP,Supplies & Services,Provisions,Bikold,05/06/2015,222.72
Customer Services,Catering,CASP,Supplies & Services,Provisions,Bikold,05/06/2015,100.24
Customer Services,Catering,CASP,Supplies & Services,Provisions,Bikold,05/06/2015,552.91
Customer Services,Catering,CASP,Supplies & Services,Provisions,Bikold,05/06/2015,265.27
Customer Services,Catering,CASP,Supplies & Services,Provisions,Bikold,26/06/2015,132.97
Customer Services,Catering,CASP,Supplies & Services,Provisions,Bikold,26/06/2015,182.41
Customer Services,Catering,CASP,Supplies & Services,Provisions,Bikold,05/06/2015,103.88
Customer Services,Catering,CASP,Supplies & Services,Provisions,Bikold,05/06/2015,146.63
Customer Services,Catering,CASP,Supplies & Services,Provisions,Bikold,05/06/2015,115.58
Customer Services,Catering,CASP,Supplies & Services,Provisions,Bikold,05/06/2015,140.35
Customer Services,Catering,CASP,Supplies & Services,Provisions,Bikold,26/06/2015,105.10
Customer Services,Catering,CASP,Supplies & Services,Provisions,Bikold,26/06/2015,102.56
Customer Services,Catering,CASP,Supplies & Services,Provisions,Bikold,26/06/2015,161.05
Customer Services,Catering,CASP,Supplies & Services,Provisions,Bikold,26/06/2015,118.19
Customer Services,Catering,CASP,Supplies & Services,Provisions,Bikold,26/06/2015,147.90
Customer Services,Catering,CASP,Supplies & Services,Provisions,Bikold,26/06/2015,157.19
Customer Services,Catering,CASP,Supplies & Services,Provisions,Bikold,26/06/2015,160.22
Customer Services,Catering,CASP,Supplies & Services,Provisions,Bikold,26/06/2015,185.52
Customer Services,Catering,CASP,Supplies & Services,Provisions,Bikold,26/06/2015,340.34
Customer Services,Catering,CASP,Supplies & Services,Provisions,Bikold,26/06/2015,192.92
Customer Services,Catering,CASP,Supplies & Services,Provisions,Bikold,26/06/2015,412.63
Customer Services,Catering,CASP,Supplies & Services,Provisions,Bikold,26/06/2015,394.39
Customer Services,Catering,CASP,Supplies & Services,Provisions,Bikold,26/06/2015,115.88
Customer Services,Catering,CASP,Supplies & Services,Provisions,Bikold,26/06/2015,197.12
Customer Services,Catering,CASP,Supplies & Services,Provisions,Bikold,26/06/2015,129.75
Customer Services,Catering,CASP,Supplies & Services,Provisions,Bikold,26/06/2015,261.20
Customer Services,Catering,CASP,Supplies & Services,Provisions,Bikold,26/06/2015,103.41
Customer Services,Catering,CASP,Supplies & Services,Provisions,Bikold,26/06/2015,151.87
Customer Services,Catering,CASP,Supplies & Services,Provisions,Bikold,26/06/2015,256.86
Customer Services,Catering,CASP,Supplies & Services,Provisions,Bikold,26/06/2015,247.31
Customer Services,Catering,CASP,Supplies & Services,Provisions,Bikold,26/06/2015,136.89
Customer Services,Catering,CASP,Supplies & Services,Provisions,Bikold,26/06/2015,161.07
Customer Services,Catering,CASP,Supplies & Services,Provisions,Bikold,26/06/2015,283.70
Customer Services,Catering,CASP,Supplies & Services,Provisions,Bikold,26/06/2015,166.98
Customer Services,Catering,CASP,Supplies & Services,Provisions,Bikold,26/06/2015,305.21
Customer Services,Catering,CASP,Supplies & Services,Provisions,Bikold,26/06/2015,234.01
Customer Services,Catering,CASP,Supplies & Services,Provisions,Bikold,26/06/2015,228.61
Customer Services,Catering,CASP,Supplies & Services,Provisions,Bikold,26/06/2015,177.38
Customer Services,Catering,CASP,Supplies & Services,Provisions,Bikold,26/06/2015,-110.10
Customer Services,Catering,CASP,Supplies & Services,Provisions,Bikold,26/06/2015,142.88
Customer Services,Catering,CASP,Supplies & Services,Provisions,Bikold,26/06/2015,190.20
Customer Services,Catering,CASP,Supplies & Services,Provisions,Bikold,26/06/2015,111.58
Customer Services,Catering,CASP,Supplies & Services,Provisions,Bikold,26/06/2015,299.37
Customer Services,Catering,CASP,Supplies & Services,Provisions,Bikold,26/06/2015,232.14
Customer Services,Catering,CASP,Supplies & Services,Provisions,Bikold,26/06/2015,293.74
Customer Services,Catering,CASP,Supplies & Services,Provisions,Bikold,26/06/2015,360.26
Customer Services,Catering,CASP,Supplies & Services,Provisions,Bikold,26/06/2015,239.35
Customer Services,Catering,CASP,Supplies & Services,Provisions,Bikold,26/06/2015,105.56
Customer Services,Catering,CASP,Supplies & Services,Provisions,Bikold,26/06/2015,265.96
Customer Services,Catering,CASP,Supplies & Services,Provisions,Bikold,26/06/2015,136.49
Customer Services,Catering,CASP,Supplies & Services,Provisions,Bikold,26/06/2015,229.93
Customer Services,Catering,CASP,Supplies & Services,Provisions,Bikold,26/06/2015,126.64
Customer Services,Catering,CASP,Supplies & Services,Provisions,Bikold,26/06/2015,118.21
Customer Services,Catering,CASP,Supplies & Services,Provisions,Bikold,26/06/2015,147.61
Customer Services,Catering,CASP,Supplies & Services,Provisions,Bikold,26/06/2015,110.10
Customer Services,Catering,CASP,Supplies & Services,Provisions,Bikold,26/06/2015,180.19
Customer Services,Catering,CASP,Supplies & Services,Provisions,Bikold,26/06/2015,188.79
Customer Services,Catering,CASP,Supplies & Services,Provisions,Bikold,26/06/2015,291.56
Customer Services,Catering,CASP,Supplies & Services,Provisions,Bikold,26/06/2015,252.56
Customer Services,Catering,CASP,Supplies & Services,Provisions,Bikold,26/06/2015,139.99
Customer Services,Catering,CASP,Supplies & Services,Provisions,Bikold,26/06/2015,200.44
Customer Services,Catering,CASP,Supplies & Services,Provisions,Bikold,26/06/2015,117.26
Customer Services,Catering,CASP,Supplies & Services,Provisions,Bikold,26/06/2015,250.38
Customer Services,Catering,CASP,Supplies & Services,Provisions,Bikold,26/06/2015,110.83
Customer Services,Catering,CASP,Supplies & Services,Provisions,Bikold,26/06/2015,139.92
Customer Services,Catering,CASP,Supplies & Services,Provisions,Bikold,26/06/2015,176.88
Customer Services,Catering,CASP,Supplies & Services,Provisions,Bikold,26/06/2015,104.05
Customer Services,Catering,CASP,Supplies & Services,Provisions,Bikold,26/06/2015,104.86
Customer Services,Catering,CASP,Supplies & Services,Provisions,Bikold,26/06/2015,128.64
Customer Services,Catering,CASP,Supplies & Services,Provisions,Bikold,26/06/2015,117.14
Customer Services,Catering,CASP,Supplies & Services,Provisions,Bikold,26/06/2015,123.91
Customer Services,Catering,CASP,Supplies & Services,Provisions,Bikold,26/06/2015,145.45
Customer Services,Catering,CASP,Supplies & Services,Provisions,Bikold,26/06/2015,112.26
Customer Services,Catering,CASP,Supplies & Services,Provisions,Bikold,26/06/2015,139.28
Customer Services,Catering,CASP,Supplies & Services,Provisions,Bikold,26/06/2015,135.85
Customer Services,Catering,CASP,Supplies & Services,Provisions,Bikold,26/06/2015,186.70
Customer Services,Catering,CASP,Supplies & Services,Provisions,Bikold,26/06/2015,107.58
Customer Services,Catering,CASP,Supplies & Services,Provisions,Bikold,26/06/2015,111.00
Customer Services,Catering,CASP,Supplies & Services,Provisions,Bikold,26/06/2015,112.64
Customer Services,Catering,CASP,Supplies & Services,Provisions,Bikold,26/06/2015,165.73
Customer Services,Catering,CASP,Supplies & Services,Provisions,Bikold,26/06/2015,241.88
Customer Services,Catering,CASP,Supplies & Services,Provisions,Bikold,26/06/2015,221.55
Customer Services,Catering,CASP,Supplies & Services,Provisions,Bikold,19/06/2015,114.59
Customer Services,Catering,CASP,Supplies & Services,Provisions,Bikold,19/06/2015,305.70
Customer Services,Catering,CASP,Supplies & Services,Provisions,Bikold,19/06/2015,152.03
Customer Services,Catering,CASP,Supplies & Services,Provisions,Bikold,19/06/2015,118.74
Customer Services,Catering,CASP,Supplies & Services,Provisions,Bikold,19/06/2015,194.68
Customer Services,Catering,CASP,Supplies & Services,Provisions,Bikold,26/06/2015,138.59
Customer Services,Catering,CASP,Supplies & Services,Provisions,Bikold,19/06/2015,130.92
Customer Services,Catering,CASP,Supplies & Services,Provisions,Bikold,19/06/2015,127.12
Customer Services,Catering,CASP,Supplies & Services,Provisions,Bikold,19/06/2015,145.16
Customer Services,Catering,CASP,Supplies & Services,Provisions,Bikold,19/06/2015,120.30
Customer Services,Catering,CASP,Supplies & Services,Provisions,Bikold,19/06/2015,269.88
Customer Services,Catering,CASP,Supplies & Services,Provisions,Bikold,19/06/2015,179.66
Customer Services,Catering,CASP,Supplies & Services,Provisions,Bikold,19/06/2015,108.34
Customer Services,Catering,CASP,Supplies & Services,Provisions,Bikold,19/06/2015,128.40
Customer Services,Catering,CASP,Supplies & Services,Provisions,Bikold,19/06/2015,147.34
Customer Services,Catering,CASP,Supplies & Services,Provisions,Bikold,19/06/2015,170.51
Customer Services,Catering,CASP,Supplies & Services,Provisions,Bikold,19/06/2015,149.68
Customer Services,Catering,CASP,Supplies & Services,Provisions,Bikold,19/06/2015,124.66
Customer Services,Catering,CASP,Supplies & Services,Provisions,Bikold,19/06/2015,130.69
Customer Services,Catering,CASP,Supplies & Services,Provisions,Bikold,19/06/2015,139.35
Customer Services,Catering,CASP,Supplies & Services,Provisions,Bikold,19/06/2015,101.02
Customer Services,Catering,CASP,Supplies & Services,Provisions,Bikold,19/06/2015,134.66
Customer Services,Catering,CASP,Supplies & Services,Provisions,Bikold,19/06/2015,114.66
Customer Services,Catering,CASP,Supplies & Services,Provisions,Bikold,19/06/2015,288.18
Customer Services,Catering,CASP,Supplies & Services,Provisions,Bikold,19/06/2015,110.08
Customer Services,Catering,CASP,Supplies & Services,Provisions,Bikold,19/06/2015,183.32
Customer Services,Catering,CASP,Supplies & Services,Provisions,Bikold,19/06/2015,108.45
Customer Services,Catering,CASP,Supplies & Services,Provisions,Bikold,19/06/2015,196.51
Customer Services,Catering,CASP,Supplies & Services,Provisions,Bikold,19/06/2015,319.73
Customer Services,Catering,CASP,Supplies & Services,Provisions,Bikold,19/06/2015,126.95
Customer Services,Catering,CASP,Supplies & Services,Provisions,Bikold,19/06/2015,189.47
Customer Services,Catering,CASP,Supplies & Services,Provisions,Bikold,19/06/2015,406.64
Customer Services,Catering,CASP,Supplies & Services,Provisions,Bikold,19/06/2015,236.03
Customer Services,Catering,CASP,Supplies & Services,Provisions,Bikold,19/06/2015,330.97
Customer Services,Catering,CASP,Supplies & Services,Provisions,Bikold,19/06/2015,284.97
Customer Services,Catering,CASP,Supplies & Services,Provisions,Bikold,19/06/2015,244.76
Customer Services,Catering,CASP,Supplies & Services,Provisions,Bikold,19/06/2015,180.37
Customer Services,Catering,CASP,Supplies & Services,Provisions,Bikold,19/06/2015,199.58
Customer Services,Catering,CASP,Supplies & Services,Provisions,Bikold,19/06/2015,163.14
Customer Services,Catering,CASP,Supplies & Services,Provisions,Bikold,19/06/2015,125.14
Customer Services,Catering,CASP,Supplies & Services,Provisions,Bikold,19/06/2015,104.65
Customer Services,Catering,CASP,Supplies & Services,Provisions,Bikold,19/06/2015,105.62
Customer Services,Catering,CASP,Supplies & Services,Provisions,Bikold,19/06/2015,123.28
Customer Services,Catering,CASP,Supplies & Services,Provisions,Bikold,19/06/2015,143.96
Customer Services,Catering,CASP,Supplies & Services,Provisions,Bikold,19/06/2015,109.86
Customer Services,Catering,CASP,Supplies & Services,Provisions,Bikold,19/06/2015,118.28
Customer Services,Catering,CASP,Supplies & Services,Provisions,Bikold,19/06/2015,277.03
Customer Services,Catering,CASP,Supplies & Services,Provisions,Bikold,19/06/2015,120.36
Customer Services,Catering,CASP,Supplies & Services,Provisions,Bikold,19/06/2015,163.58
Customer Services,Catering,CASP,Supplies & Services,Provisions,Bikold,19/06/2015,320.79
Customer Services,Catering,CASP,Supplies & Services,Provisions,Bikold,19/06/2015,203.53
Customer Services,Catering,CASP,Supplies & Services,Provisions,Bikold,19/06/2015,167.46
Customer Services,Catering,CASP,Supplies & Services,Provisions,Bikold,19/06/2015,148.23
Customer Services,Catering,CASP,Supplies & Services,Provisions,Bikold,19/06/2015,238.03
Customer Services,Catering,CASP,Supplies & Services,Provisions,Bikold,19/06/2015,160.79
Customer Services,Catering,CASP,Supplies & Services,Provisions,Bikold,19/06/2015,183.49
Customer Services,Catering,CASP,Supplies & Services,Provisions,Bikold,19/06/2015,106.00
Customer Services,Catering,CASP,Supplies & Services,Provisions,Bikold,19/06/2015,187.60
Customer Services,Catering,CASP,Supplies & Services,Provisions,Bikold,19/06/2015,204.08
Customer Services,Catering,CASP,Supplies & Services,Provisions,Bikold,19/06/2015,138.87
Customer Services,Catering,CASP,Supplies & Services,Provisions,Bikold,19/06/2015,430.62
Customer Services,Catering,CASP,Supplies & Services,Provisions,Bikold,19/06/2015,423.53
Customer Services,Catering,CASP,Supplies & Services,Provisions,Bikold,19/06/2015,151.55
Customer Services,Catering,CASP,Supplies & Services,Provisions,Bikold,19/06/2015,100.53
Customer Services,Catering,CASP,Supplies & Services,Provisions,Bikold,19/06/2015,137.45
Customer Services,Catering,CASP,Supplies & Services,Provisions,Bikold,19/06/2015,130.67
Customer Services,Catering,CASP,Supplies & Services,Provisions,Bikold,19/06/2015,125.35
Customer Services,Catering,CASP,Supplies & Services,Provisions,Bikold,19/06/2015,265.48
Customer Services,Catering,CASP,Supplies & Services,Provisions,Bikold,19/06/2015,276.83
Customer Services,Catering,CASP,Supplies & Services,Provisions,Bikold,19/06/2015,250.09
Customer Services,Catering,CASP,Supplies & Services,Provisions,Bikold,19/06/2015,148.52
Customer Services,Catering,CASP,Supplies & Services,Provisions,Bikold,19/06/2015,102.48
Customer Services,Catering,CASP,Supplies & Services,Provisions,Bikold,19/06/2015,124.46
Customer Services,Catering,CASP,Supplies & Services,Provisions,Bikold,19/06/2015,115.69
Customer Services,Catering,CASP,Supplies & Services,Provisions,Bikold,19/06/2015,174.25
Customer Services,Catering,CASP,Supplies & Services,Provisions,Bikold,19/06/2015,118.68
Customer Services,Catering,CASP,Supplies & Services,Provisions,Bikold,19/06/2015,151.61
Customer Services,Catering,CASP,Supplies & Services,Provisions,Bikold,19/06/2015,200.07
Customer Services,Catering,CASP,Supplies & Services,Provisions,Bikold,12/06/2015,193.23
Customer Services,Catering,CASP,Supplies & Services,Provisions,Bikold,12/06/2015,158.54
Customer Services,Catering,CASP,Supplies & Services,Provisions,Bikold,12/06/2015,382.54
Customer Services,Catering,CASP,Supplies & Services,Provisions,Bikold,12/06/2015,363.14
Customer Services,Catering,CASP,Supplies & Services,Provisions,Bikold,19/06/2015,138.56
Customer Services,Catering,CASP,Supplies & Services,Provisions,Bikold,19/06/2015,148.55
Customer Services,Catering,CASP,Supplies & Services,Provisions,Bikold,12/06/2015,191.27
Customer Services,Catering,CASP,Supplies & Services,Provisions,Bikold,12/06/2015,117.34
Customer Services,Catering,CASP,Supplies & Services,Provisions,Bikold,12/06/2015,100.53
Customer Services,Catering,CASP,Supplies & Services,Provisions,Bikold,12/06/2015,314.90
Customer Services,Catering,CASP,Supplies & Services,Provisions,Bikold,12/06/2015,197.99
Customer Services,Catering,CASP,Supplies & Services,Provisions,Bikold,12/06/2015,110.20
Customer Services,Catering,CASP,Supplies & Services,Provisions,Bikold,12/06/2015,129.03
Customer Services,Catering,CASP,Supplies & Services,Provisions,Bikold,12/06/2015,145.45
Customer Services,Catering,CASP,Supplies & Services,Provisions,Bikold,12/06/2015,101.47
Customer Services,Catering,CASP,Supplies & Services,Provisions,Bikold,12/06/2015,144.05
Customer Services,Catering,CASP,Supplies & Services,Provisions,Bikold,12/06/2015,134.56
Customer Services,Catering,CASP,Supplies & Services,Provisions,Bikold,12/06/2015,110.09
Customer Services,Catering,CASP,Supplies & Services,Provisions,Bikold,12/06/2015,115.82
Customer Services,Catering,CASP,Supplies & Services,Provisions,Bikold,12/06/2015,141.56
Customer Services,Catering,CASP,Supplies & Services,Provisions,Bikold,12/06/2015,229.02
Customer Services,Catering,CASP,Supplies & Services,Provisions,Bikold,12/06/2015,108.01
Customer Services,Catering,CASP,Supplies & Services,Provisions,Bikold,12/06/2015,283.89
Customer Services,Catering,CASP,Supplies & Services,Provisions,Bikold,12/06/2015,144.01
Customer Services,Catering,CASP,Supplies & Services,Provisions,Bikold,12/06/2015,174.27
Customer Services,Catering,CASP,Supplies & Services,Provisions,Bikold,12/06/2015,100.94
Customer Services,Catering,CASP,Supplies & Services,Provisions,Bikold,12/06/2015,149.51
Customer Services,Catering,CASP,Supplies & Services,Provisions,Bikold,12/06/2015,186.47
Customer Services,Catering,CASP,Supplies & Services,Provisions,Bikold,12/06/2015,157.56
Customer Services,Catering,CASP,Supplies & Services,Provisions,Bikold,12/06/2015,150.74
Customer Services,Catering,CASP,Supplies & Services,Provisions,Bikold,12/06/2015,156.64
Customer Services,Catering,CASP,Supplies & Services,Provisions,Bikold,12/06/2015,105.58
Customer Services,Catering,CASP,Supplies & Services,Provisions,Bikold,12/06/2015,192.07
Customer Services,Catering,CASP,Supplies & Services,Provisions,Bikold,12/06/2015,214.19
Customer Services,Catering,CASP,Supplies & Services,Provisions,Bikold,12/06/2015,110.65
Customer Services,Catering,CASP,Supplies & Services,Provisions,Bikold,12/06/2015,140.72
Customer Services,Catering,CASP,Supplies & Services,Provisions,Bikold,12/06/2015,294.92
Customer Services,Catering,CASP,Supplies & Services,Provisions,Bikold,12/06/2015,285.32
Customer Services,Catering,CASP,Supplies & Services,Provisions,Bikold,12/06/2015,225.32
Customer Services,Catering,CASP,Supplies & Services,Provisions,Bikold,12/06/2015,281.67
Customer Services,Catering,CASP,Supplies & Services,Provisions,Bikold,12/06/2015,190.59
Customer Services,Catering,CASP,Supplies & Services,Provisions,Bikold,12/06/2015,102.73
Customer Services,Catering,CASP,Supplies & Services,Provisions,Bikold,12/06/2015,471.83
Customer Services,Catering,CASP,Supplies & Services,Provisions,Bikold,12/06/2015,345.17
Customer Services,Catering,CASP,Supplies & Services,Provisions,Bikold,12/06/2015,164.61
Customer Services,Catering,CASP,Supplies & Services,Provisions,Bikold,12/06/2015,170.77
Customer Services,Catering,CASP,Supplies & Services,Provisions,Bikold,12/06/2015,296.10
Customer Services,Catering,CASP,Supplies & Services,Provisions,Bikold,12/06/2015,189.23
Customer Services,Catering,CASP,Supplies & Services,Provisions,Bikold,12/06/2015,176.31
Customer Services,Catering,CASP,Supplies & Services,Provisions,Bikold,12/06/2015,174.98
Customer Services,Catering,CASP,Supplies & Services,Provisions,Bikold,12/06/2015,114.13
Customer Services,Catering,CASP,Supplies & Services,Provisions,Bikold,12/06/2015,163.76
Customer Services,Catering,CASP,Supplies & Services,Provisions,Bikold,12/06/2015,248.44
Customer Services,Catering,CASP,Supplies & Services,Provisions,Bikold,12/06/2015,194.66
Customer Services,Catering,CASP,Supplies & Services,Provisions,Bikold,12/06/2015,204.00
Customer Services,Catering,CASP,Supplies & Services,Provisions,Bikold,12/06/2015,123.05
Customer Services,Catering,CASP,Supplies & Services,Provisions,Bikold,12/06/2015,167.81
Customer Services,Catering,CASP,Supplies & Services,Provisions,Bikold,12/06/2015,102.83
Customer Services,Catering,CASP,Supplies & Services,Provisions,Bikold,12/06/2015,343.30
Customer Services,Catering,CASP,Supplies & Services,Provisions,Bikold,12/06/2015,138.80
Customer Services,Catering,CASP,Supplies & Services,Provisions,Bikold,12/06/2015,117.27
Customer Services,Catering,CASP,Supplies & Services,Provisions,Bikold,12/06/2015,139.27
Customer Services,Catering,CASP,Supplies & Services,Provisions,Bikold,12/06/2015,109.45
Customer Services,Catering,CASP,Supplies & Services,Provisions,Bikold,12/06/2015,240.17
Customer Services,Catering,CASP,Supplies & Services,Provisions,Bikold,12/06/2015,215.30
Customer Services,Catering,CASP,Supplies & Services,Provisions,Bikold,12/06/2015,150.01
Customer Services,Catering,CASP,Supplies & Services,Provisions,Bikold,12/06/2015,185.71
Customer Services,Catering,CASP,Supplies & Services,Equipment - Purchase,Contract Furniture Specialists Limited,16/06/2015,300.00
Customer Services,Catering,CASP,Supplies & Services,Protective Clothing,IMAGE@WORK LTD,05/06/2015,187.95
Customer Services,Catering,CASP,Supplies & Services,Provisions,John Sheppard Catering Butchers,05/06/2015,311.36
Customer Services,Catering,CASP,Supplies & Services,Provisions,John Sheppard Catering Butchers,05/06/2015,133.59
Customer Services,Catering,CASP,Supplies & Services,Provisions,John Sheppard Catering Butchers,05/06/2015,241.58
Customer Services,Catering,CASP,Supplies & Services,Provisions,John Sheppard Catering Butchers,05/06/2015,113.54
Customer Services,Catering,CASP,Supplies & Services,Provisions,John Sheppard Catering Butchers,05/06/2015,149.49
Customer Services,Catering,CASP,Supplies & Services,Provisions,John Sheppard Catering Butchers,05/06/2015,224.53
Customer Services,Catering,CASP,Supplies & Services,Provisions,John Sheppard Catering Butchers,05/06/2015,234.38
Customer Services,Catering,CASP,Supplies & Services,Provisions,John Sheppard Catering Butchers,05/06/2015,117.79
Customer Services,Catering,CASP,Supplies & Services,Provisions,John Sheppard Catering Butchers,05/06/2015,369.47
Customer Services,Catering,CASP,Supplies & Services,Provisions,John Sheppard Catering Butchers,05/06/2015,277.95
Customer Services,Catering,CASP,Supplies & Services,Provisions,John Sheppard Catering Butchers,05/06/2015,190.99
Customer Services,Catering,CASP,Supplies & Services,Provisions,John Sheppard Catering Butchers,05/06/2015,181.99
Customer Services,Catering,CASP,Supplies & Services,Provisions,John Sheppard Catering Butchers,05/06/2015,166.78
Customer Services,Catering,CASP,Supplies & Services,Provisions,John Sheppard Catering Butchers,05/06/2015,259.37
Customer Services,Catering,CASP,Supplies & Services,Provisions,John Sheppard Catering Butchers,05/06/2015,107.13
Customer Services,Catering,CASP,Supplies & Services,Provisions,John Sheppard Catering Butchers,05/06/2015,157.77
Customer Services,Catering,CASP,Supplies & Services,Provisions,John Sheppard Catering Butchers,05/06/2015,177.46
Customer Services,Catering,CASP,Supplies & Services,Provisions,John Sheppard Catering Butchers,05/06/2015,238.72
Customer Services,Catering,CASP,Supplies & Services,Provisions,John Sheppard Catering Butchers,05/06/2015,245.43
Customer Services,Catering,CASP,Supplies & Services,Provisions,John Sheppard Catering Butchers,05/06/2015,119.62
Customer Services,Catering,CASP,Supplies & Services,Provisions,John Sheppard Catering Butchers,05/06/2015,158.96
Customer Services,Catering,CASP,Supplies & Services,Provisions,John Sheppard Catering Butchers,05/06/2015,118.84
Customer Services,Catering,CASP,Supplies & Services,Provisions,John Sheppard Catering Butchers,05/06/2015,308.95
Customer Services,Catering,CASP,Supplies & Services,Provisions,John Sheppard Catering Butchers,05/06/2015,130.19
Customer Services,Catering,CASP,Supplies & Services,Provisions,John Sheppard Catering Butchers,05/06/2015,196.60
Customer Services,Catering,CASP,Supplies & Services,Provisions,John Sheppard Catering Butchers,05/06/2015,103.93
Customer Services,Catering,CASP,Supplies & Services,Provisions,John Sheppard Catering Butchers,05/06/2015,109.03
Customer Services,Catering,CASP,Supplies & Services,Comp Hardware (Purch / Hire),NATIONWIDE RETAIL SYSTEMS LTD,05/06/2015,"2,944.00"
Customer Services,Catering,CASP,Supplies & Services,Comp Software (Purch / Hire),NATIONWIDE RETAIL SYSTEMS LTD,05/06/2015,"1,690.00"
Customer Services,Catering,CASP,Supplies & Services,Provisions,SMART FOOD,24/06/2015,183.80
Customer Services,Catering,CASP,Supplies & Services,Provisions,SMART FOOD,02/06/2015,183.80
Customer Services,Catering,CASS,Supplies & Services,Provisions,Bikold,12/06/2015,156.47
Customer Services,Catering,CASS,Supplies & Services,Provisions,Bikold,05/06/2015,117.43
Customer Services,Catering,CASS,Supplies & Services,Provisions,Bikold,05/06/2015,793.01
Customer Services,Catering,CASS,Supplies & Services,Provisions,Bikold,05/06/2015,271.57
Customer Services,Catering,CASS,Supplies & Services,Provisions,Bikold,05/06/2015,143.33
Customer Services,Catering,CASS,Supplies & Services,Provisions,Bikold,05/06/2015,482.68
Customer Services,Catering,CASS,Supplies & Services,Provisions,Bikold,12/06/2015,165.78
Customer Services,Catering,CASS,Supplies & Services,Provisions,Bikold,05/06/2015,113.82
Customer Services,Catering,CASS,Supplies & Services,Provisions,Bikold,05/06/2015,198.90
Customer Services,Catering,CASS,Supplies & Services,Provisions,Bikold,05/06/2015,157.04
Customer Services,Catering,CASS,Supplies & Services,Provisions,Bikold,05/06/2015,214.36
Customer Services,Catering,CASS,Supplies & Services,Provisions,Bikold,05/06/2015,324.27
Customer Services,Catering,CASS,Supplies & Services,Provisions,Bikold,05/06/2015,138.63
Customer Services,Catering,CASS,Supplies & Services,Provisions,Bikold,26/06/2015,104.76
Customer Services,Catering,CASS,Supplies & Services,Provisions,Bikold,26/06/2015,136.76
Customer Services,Catering,CASS,Supplies & Services,Provisions,Bikold,05/06/2015,302.80
Customer Services,Catering,CASS,Supplies & Services,Provisions,Bikold,05/06/2015,103.95
Customer Services,Catering,CASS,Supplies & Services,Provisions,Bikold,05/06/2015,167.73
Customer Services,Catering,CASS,Supplies & Services,Provisions,Bikold,05/06/2015,269.42
Customer Services,Catering,CASS,Supplies & Services,Provisions,Bikold,26/06/2015,109.37
Customer Services,Catering,CASS,Supplies & Services,Provisions,Bikold,26/06/2015,767.75
Customer Services,Catering,CASS,Supplies & Services,Provisions,Bikold,26/06/2015,117.33
Customer Services,Catering,CASS,Supplies & Services,Provisions,Bikold,26/06/2015,134.48
Customer Services,Catering,CASS,Supplies & Services,Provisions,Bikold,26/06/2015,140.86
Customer Services,Catering,CASS,Supplies & Services,Provisions,Bikold,26/06/2015,320.94
Customer Services,Catering,CASS,Supplies & Services,Provisions,Bikold,19/06/2015,106.51
Customer Services,Catering,CASS,Supplies & Services,Provisions,Bikold,19/06/2015,133.61
Customer Services,Catering,CASS,Supplies & Services,Provisions,Bikold,19/06/2015,118.32
Customer Services,Catering,CASS,Supplies & Services,Provisions,Bikold,19/06/2015,253.86
Customer Services,Catering,CASS,Supplies & Services,Provisions,Bikold,26/06/2015,222.97
Customer Services,Catering,CASS,Supplies & Services,Provisions,Bikold,26/06/2015,229.65
Customer Services,Catering,CASS,Supplies & Services,Provisions,Bikold,19/06/2015,104.96
Customer Services,Catering,CASS,Supplies & Services,Provisions,Bikold,19/06/2015,617.30
Customer Services,Catering,CASS,Supplies & Services,Provisions,Bikold,19/06/2015,498.27
Customer Services,Catering,CASS,Supplies & Services,Provisions,Bikold,19/06/2015,133.70
Customer Services,Catering,CASS,Supplies & Services,Provisions,Bikold,19/06/2015,105.70
Customer Services,Catering,CASS,Supplies & Services,Provisions,Bikold,19/06/2015,161.86
Customer Services,Catering,CASS,Supplies & Services,Provisions,Bikold,12/06/2015,115.22
Customer Services,Catering,CASS,Supplies & Services,Provisions,Bikold,12/06/2015,143.20
Customer Services,Catering,CASS,Supplies & Services,Provisions,Bikold,12/06/2015,357.73
Customer Services,Catering,CASS,Supplies & Services,Provisions,Bikold,12/06/2015,233.79
Customer Services,Catering,CASS,Supplies & Services,Provisions,Bikold,19/06/2015,118.77
Customer Services,Catering,CASS,Supplies & Services,Provisions,Bikold,19/06/2015,185.18
Customer Services,Catering,CASS,Supplies & Services,Provisions,Bikold,12/06/2015,133.95
Customer Services,Catering,CASS,Supplies & Services,Provisions,Bikold,12/06/2015,162.47
Customer Services,Catering,CASS,Supplies & Services,Provisions,Bikold,12/06/2015,132.74
Customer Services,Catering,CASS,Supplies & Services,Provisions,Bikold,12/06/2015,147.13
Customer Services,Catering,CASS,Supplies & Services,Provisions,Bikold,12/06/2015,596.16
Customer Services,Catering,CASS,Supplies & Services,Provisions,Bikold,12/06/2015,133.60
Customer Services,Catering,CASS,Supplies & Services,Provisions,Bikold,12/06/2015,157.71
Customer Services,Catering,CASS,Supplies & Services,Provisions,Gills Puddings Ltd,05/06/2015,271.45
Customer Services,Catering,CASS,Supplies & Services,Provisions,John Sheppard Catering Butchers,05/06/2015,221.78
Customer Services,Catering,CASS,Supplies & Services,Provisions,On A Roll,22/06/2015,173.52
Customer Services,Catering,CASS,Supplies & Services,Provisions,On A Roll,12/06/2015,272.50
Customer Services,Catering,CASS,Supplies & Services,Provisions,On A Roll,16/06/2015,233.20
Customer Services,Catering,CASS,Supplies & Services,Provisions,On A Roll,16/06/2015,158.21
Customer Services,Catering,CASS,Supplies & Services,Provisions,On A Roll,23/06/2015,158.21
Customer Services,Catering,CASS,Supplies & Services,Provisions,On A Roll,02/06/2015,141.83
Customer Services,Catering,CASS,Supplies & Services,Provisions,On A Roll,02/06/2015,270.80
Customer Services,Catering,CASS,Supplies & Services,Provisions,On A Roll,05/06/2015,205.09
Customer Services,Catering,CASS,Supplies & Services,Provisions,On A Roll,05/06/2015,163.17
Customer Services,Catering,CASS,Supplies & Services,Provisions,On A Roll,05/06/2015,146.82
Customer Services,Catering,CASS,Supplies & Services,Provisions,On A Roll,02/06/2015,146.32
Customer Services,Catering,CASS,Supplies & Services,Provisions,On A Roll,02/06/2015,223.04
Customer Services,Catering,CASS,Supplies & Services,Provisions,On A Roll,02/06/2015,270.80
Customer Services,Catering,CASS,Supplies & Services,Provisions,On A Roll,02/06/2015,146.32
Customer Services,Catering,CASS,Supplies & Services,Provisions,On A Roll,02/06/2015,222.56
Customer Services,Catering,CASS,Supplies & Services,Provisions,On A Roll,02/06/2015,286.34
Customer Services,Catering,CASS,Supplies & Services,Provisions,On A Roll,24/06/2015,272.50
Customer Services,Catering,CASS,Supplies & Services,Provisions,On A Roll,24/06/2015,146.82
Customer Services,Catering,CASS,Supplies & Services,Provisions,On A Roll,29/06/2015,146.82
Customer Services,Catering,CASS,Supplies & Services,Provisions,On A Roll,29/06/2015,146.82
Customer Services,Catering,CASS,Supplies & Services,Provisions,On A Roll,02/06/2015,270.80
Customer Services,Catering,CASS,Supplies & Services,Provisions,On A Roll,02/06/2015,175.96
Customer Services,Catering,CASS,Supplies & Services,Provisions,RADNOR HILLS MINERAL WATER COMPANY LTD,12/06/2015,249.30
Customer Services,Catering,CASS,Supplies & Services,Provisions,RADNOR HILLS MINERAL WATER COMPANY LTD,12/06/2015,129.23
Customer Services,Catering,CASS,Supplies & Services,Provisions,RADNOR HILLS MINERAL WATER COMPANY LTD,12/06/2015,117.73
Customer Services,Catering,CASS,Supplies & Services,Provisions,RADNOR HILLS MINERAL WATER COMPANY LTD,12/06/2015,109.76
Customer Services,Catering,CASS,Supplies & Services,Provisions,RADNOR HILLS MINERAL WATER COMPANY LTD,02/06/2015,145.89
Customer Services,Catering,CASS,Supplies & Services,Provisions,RADNOR HILLS MINERAL WATER COMPANY LTD,02/06/2015,117.30
Customer Services,Catering,CASS,Supplies & Services,Provisions,RADNOR HILLS MINERAL WATER COMPANY LTD,05/06/2015,132.34
Customer Services,Catering,CASS,Supplies & Services,Provisions,RADNOR HILLS MINERAL WATER COMPANY LTD,02/06/2015,153.36
Customer Services,Catering,CASS,Supplies & Services,Provisions,RADNOR HILLS MINERAL WATER COMPANY LTD,02/06/2015,168.89
Customer Services,Catering,CASS,Supplies & Services,Provisions,RADNOR HILLS MINERAL WATER COMPANY LTD,02/06/2015,169.24
Customer Services,Catering,CASS,Supplies & Services,Provisions,RADNOR HILLS MINERAL WATER COMPANY LTD,02/06/2015,288.24
Customer Services,Catering,CASS,Supplies & Services,Provisions,RADNOR HILLS MINERAL WATER COMPANY LTD,02/06/2015,120.03
Customer Services,Catering,CASS,Supplies & Services,Provisions,RADNOR HILLS MINERAL WATER COMPANY LTD,02/06/2015,120.03
Customer Services,Catering,CASS,Supplies & Services,Provisions,RADNOR HILLS MINERAL WATER COMPANY LTD,12/06/2015,255.90
Customer Services,Catering,CASS,Supplies & Services,Provisions,RADNOR HILLS MINERAL WATER COMPANY LTD,23/06/2015,134.90
Customer Services,Catering,CASS,Supplies & Services,Provisions,RADNOR HILLS MINERAL WATER COMPANY LTD,24/06/2015,117.90
Customer Services,Catering,CASS,Supplies & Services,Provisions,RADNOR HILLS MINERAL WATER COMPANY LTD,24/06/2015,185.65
Customer Services,Catering,CASS,Supplies & Services,Provisions,RADNOR HILLS MINERAL WATER COMPANY LTD,24/06/2015,255.90
Customer Services,Catering,CASS,Supplies & Services,Purchased Meals,RADNOR HILLS MINERAL WATER COMPANY LTD,02/06/2015,100.56
Customer Services,Catering,CASS,Supplies & Services,Provisions,SLUSH PUPPIE LTD,29/06/2015,150.68
Customer Services,Catering,CASS,Supplies & Services,Provisions,SLUSH PUPPIE LTD,02/06/2015,257.76
Customer Services,Catering,CASS,Supplies & Services,Provisions,SMART FOOD,22/06/2015,305.60
Customer Services,Catering,CASS,Supplies & Services,Provisions,SMART FOOD,16/06/2015,507.40
Customer Services,Catering,CASS,Supplies & Services,Provisions,SMART FOOD,24/06/2015,343.20
Customer Services,Catering,CASS,Supplies & Services,Provisions,SMART FOOD,02/06/2015,348.00
Customer Services,Catering,CASS,Supplies & Services,Provisions,SMART FOOD,02/06/2015,384.20
Customer Services,Catering,CASS,Supplies & Services,Provisions,Tasties of Chester Ltd,16/06/2015,300.60
Customer Services,Catering,CASS,Supplies & Services,Provisions,Tasties of Chester Ltd,16/06/2015,300.60
Customer Services,Catering,CASS,Supplies & Services,Provisions,Tasties of Chester Ltd,24/06/2015,300.60
Customer Services,Catering,CASS,Supplies & Services,Provisions,Tasties of Chester Ltd,02/06/2015,300.60
Customer Services,Catering,CASS,Supplies & Services,Holidays & Outings,TRI STAR PACKAGING SUPPLIES LIMITED,16/06/2015,119.72
Customer Services,Catering,CASS,Supplies & Services,Provisions,TROPICAL ICE,30/06/2015,263.19
Customer Services,Catering,CASS,Supplies & Services,Provisions,TROPICAL ICE,02/06/2015,150.00
Customer Services,Catering,CASS,Supplies & Services,Provisions,Willoughby (731) Ltd T/A The Fabulous Bakin' Boys,16/06/2015,108.00
Customer Services,Catering,CASS,Supplies & Services,Provisions,Willoughby (731) Ltd T/A The Fabulous Bakin' Boys,24/06/2015,117.88
Customer Services,Catering,CASS,Supplies & Services,Provisions,Willoughby (731) Ltd T/A The Fabulous Bakin' Boys,25/06/2015,224.04
Customer Services,Catering,CASS,Supplies & Services,Provisions,Willoughby (731) Ltd T/A The Fabulous Bakin' Boys,02/06/2015,115.84
Customer Services,Catering,CASS,Supplies & Services,Provisions,Willoughby (731) Ltd T/A The Fabulous Bakin' Boys,05/06/2015,108.00
Customer Services,Catering,CASS,Supplies & Services,Provisions,Willoughby (731) Ltd T/A The Fabulous Bakin' Boys,05/06/2015,149.82
Customer Services,Catering,CASX,Supplies & Services,Provisions,Bikold,05/06/2015,112.93
Customer Services,Catering,CASX,Supplies & Services,Provisions,Bikold,05/06/2015,125.18
Customer Services,Catering,CASX,Supplies & Services,Provisions,Bikold,19/06/2015,139.36
Customer Services,Catering,CASX,Supplies & Services,Provisions,Bikold,26/06/2015,111.28
Customer Services,Catering,CASX,Supplies & Services,Provisions,Bikold,26/06/2015,121.81
Customer Services,Catering,CASX,Supplies & Services,Provisions,Bikold,26/06/2015,171.31
Customer Services,Catering,CASX,Supplies & Services,Provisions,Bikold,05/06/2015,111.41
Customer Services,Catering,CASX,Supplies & Services,Provisions,Bikold,05/06/2015,201.92
Customer Services,Catering,CASX,Supplies & Services,Provisions,Bikold,12/06/2015,146.53
Customer Services,Catering,CASX,Supplies & Services,Provisions,Bikold,12/06/2015,127.90
Customer Services,Catering,CASX,Supplies & Services,Provisions,Bikold,12/06/2015,172.12
Customer Services,Catering,CASX,Supplies & Services,Provisions,Bikold,19/06/2015,186.05
Customer Services,Catering,CASX,Supplies & Services,Provisions,Bikold,19/06/2015,238.63
Customer Services,Catering,COMM,Supplies & Services,Provisions,Aroma Tea & Coffee Merchants,12/06/2015,157.30
Customer Services,Catering,COMM,Supplies & Services,Provisions,Bikold,05/06/2015,270.82
Customer Services,Catering,COMM,Supplies & Services,Provisions,Bikold,19/06/2015,197.84
Customer Services,Catering,COMM,Supplies & Services,Provisions,Bikold,19/06/2015,149.77
Customer Services,Catering,COMM,Supplies & Services,Provisions,Bikold,19/06/2015,114.01
Customer Services,Catering,COMM,Supplies & Services,Provisions,Bikold,26/06/2015,301.28
Customer Services,Catering,COMM,Supplies & Services,Provisions,Bikold,26/06/2015,107.07
Customer Services,Catering,COMM,Supplies & Services,Provisions,Bikold,05/06/2015,151.29
Customer Services,Catering,COMM,Supplies & Services,Provisions,Bikold,12/06/2015,150.23
Customer Services,Catering,COMM,Supplies & Services,Provisions,Bikold,12/06/2015,196.03
Customer Services,Catering,COMM,Supplies & Services,Provisions,Bikold,19/06/2015,600.62
Customer Services,Catering,COMM,Supplies & Services,Provisions,Bikold,19/06/2015,151.74
Customer Services,Catering,COMM,Supplies & Services,Provisions,Brambles Foods Ltd,22/06/2015,292.07
Customer Services,Catering,COMM,Supplies & Services,Provisions,Brambles Foods Ltd,23/06/2015,420.45
Customer Services,Catering,COMM,Supplies & Services,Provisions,Brambles Foods Ltd,02/06/2015,480.66
Customer Services,Catering,COMM,Supplies & Services,Provisions,Delice de France,29/06/2015,151.81
Customer Services,Catering,COMM,Supplies & Services,Provisions,GILLHAMS (SHROPSHIRE) LTD T/A COOPERS GOURMET SAUSAGE ROLLS,03/06/2015,115.00
Customer Services,Catering,COMM,Supplies & Services,Equipment - Hire,SIEMENS FINANCIAL SERVICES LTD,03/06/2015,553.74
Customer Services,Catering,COMM,Supplies & Services,Holidays & Outings,Vegware,22/06/2015,158.38
Customer Services,Catering,COMM,Supplies & Services,Holidays & Outings,Vegware,02/06/2015,164.35
Customer Services,Catering,LCAP,Supplies & Services,Equipment - Hire,CALTEL CATERING & LAUNDRY EQUIPMENT LLP,12/06/2015,474.18
Customer Services,Catering,LEIC,Supplies & Services,Provisions,Bikold,26/06/2015,272.74
Customer Services,Catering,LEIC,Supplies & Services,Provisions,Bikold,05/06/2015,511.47
Customer Services,Catering,LEIC,Supplies & Services,Provisions,Bikold,05/06/2015,199.99
Customer Services,Catering,LEIC,Supplies & Services,Provisions,Bikold,12/06/2015,266.10
Customer Services,Catering,LEIC,Supplies & Services,Provisions,Bikold,12/06/2015,136.33
Customer Services,Catering,LEIC,Supplies & Services,Provisions,Bikold,19/06/2015,274.84
Customer Services,Catering,LEIC,Supplies & Services,Provisions,Bikold,26/06/2015,106.56
Customer Services,Catering,LEIC,Supplies & Services,Provisions,Bikold,26/06/2015,438.16
Customer Services,Catering,LEIC,Supplies & Services,Provisions,Delice de France,10/06/2015,246.88
Customer Services,Catering,LEIC,Supplies & Services,Protective Clothing,IMAGE@WORK LTD,03/06/2015,163.05
Customer Services,Catering,LEIC,Supplies & Services,Equipment - Hire,SIEMENS FINANCIAL SERVICES LTD,03/06/2015,553.74
Customer Services,Catering,LEIC,Supplies & Services,Holidays & Outings,TROPICAL ICE,10/06/2015,"1,405.60"
Customer Services,Catering,LEIC,Supplies & Services,Provisions,TROPICAL ICE,10/06/2015,150.00
Customer Services,Catering,LEIC,Supplies & Services,Provisions,Willoughby (731) Ltd T/A The Fabulous Bakin' Boys,10/06/2015,130.26
Customer Services,Customer & Registrars Services,LMAA,Supplies & Services,Translation Services,VISS LTD,18/06/2015,125.00
Customer Services,Customer & Registrars Services,LMAA,Supplies & Services,Translation Services,VISS LTD,18/06/2015,125.00
Customer Services,Customer & Registrars Services,LMAG,Supplies & Services,Equipment - Purchase,Mistry Medical Supplies Ltd,10/06/2015,273.60
Customer Services,Customer & Registrars Services,LSAA,Employees,Course Fees,LOCAL REGISTRATION SERVICES ASSOCIATION,02/06/2015,150.00
Customer Services,Customer & Registrars Services,LSAA,Supplies & Services,Postages,NEOPOST LTD 0010012918,09/06/2015,400.00
Customer Services,Customer & Registrars Services,LSAA,Supplies & Services,Equipment - Hire,OASIS INTERIOR LANDSCAPING,23/06/2015,332.85
Customer Services,Customer & Registrars Services,LSAB,Premises-Related Expenditure,Grounds Maintenance - Cemeteries,P & W MAINTENANCE CONTRACTING LTD,18/06/2015,"4,320.39"
Customer Services,Customer & Registrars Services,LSAB,Premises-Related Expenditure,Grounds Maintenance - Cemeteries,P & W MAINTENANCE CONTRACTING LTD,18/06/2015,"3,829.40"
Customer Services,Customer & Registrars Services,LSAB,Premises-Related Expenditure,Grounds Maintenance - Cemeteries,P & W MAINTENANCE CONTRACTING LTD,04/06/2015,"5,435.43"
Customer Services,Customer & Registrars Services,LSAB,Supplies & Services,Funeral Services,Pryce Memorials,08/06/2015,350.00
Customer Services,Facilities Management and Cleaning Services,ASAB,Supplies & Services,Security Services,BUSINESS WATCH GUARDING LIMITED,12/06/2015,868.40
Customer Services,Facilities Management and Cleaning Services,CFAA,Premises-Related Expenditure,Grounds Maintenance - Other,Cropper Grounds Maintenance Ltd,12/06/2015,"3,081.88"
Customer Services,Facilities Management and Cleaning Services,CFAA,Premises-Related Expenditure,Grounds Maintenance - Other,NOBRIDGE LTD,12/06/2015,"7,388.91"
Customer Services,Facilities Management and Cleaning Services,CFAA,Premises-Related Expenditure,Grounds Maintenance - Other,Oakleaf Ground Services,26/06/2015,"1,242.54"
Customer Services,Facilities Management and Cleaning Services,CFAA,Premises-Related Expenditure,Grounds Maintenance - Other,Oakleaf Ground Services,01/06/2015,"1,242.54"
Customer Services,Facilities Management and Cleaning Services,CFAD,Supplies & Services,Security Services,BUSINESS WATCH GUARDING LIMITED,12/06/2015,"18,742.21"
Customer Services,Facilities Management and Cleaning Services,CFAV,Capital Financing Costs,Unitary Charge,PYRAMID SCHOOLS (HADLEY) LTD,15/06/2015,"828,045.69"
Customer Services,Facilities Management and Cleaning Services,CFAV,Capital Financing Costs,Unitary Charge,PYRAMID SCHOOLS (HADLEY) LTD,01/06/2015,"828,045.69"
Customer Services,Facilities Management and Cleaning Services,CFAV,Premises-Related Expenditure,Vandal Damage,PYRAMID SCHOOLS (HADLEY) LTD,12/06/2015,165.55
Customer Services,Facilities Management and Cleaning Services,CFAY,Premises-Related Expenditure,R&M -Buildings DLO Charge,A2B Office Technology Limited,23/06/2015,723.58
Customer Services,Facilities Management and Cleaning Services,CFAY,Premises-Related Expenditure,Service Contracts,ACUTE SALES LIMITED,05/06/2015,235.00
Customer Services,Facilities Management and Cleaning Services,CFAY,Premises-Related Expenditure,R&M -Buildings DLO Charge,DENMANS ELECTRICAL WHOLESALERS LTD,04/06/2015,"1,091.25"
Customer Services,Facilities Management and Cleaning Services,CFAY,Premises-Related Expenditure,R&M -Buildings DLO Charge,MERCURY RECYCLING LIMITED,26/06/2015,317.50
Customer Services,Facilities Management and Cleaning Services,CFAY,Premises-Related Expenditure,R&M -Buildings DLO Charge,SCREWFIX DIRECT T/A TRADE UK,24/06/2015,109.81
Customer Services,Facilities Management and Cleaning Services,CLCM,Premises-Related Expenditure,Clean Mats & Toilet Requisites,Border Janitorial Supplies Limited,10/06/2015,119.62
Customer Services,Facilities Management and Cleaning Services,CLCM,Premises-Related Expenditure,Clean Mats & Toilet Requisites,Border Janitorial Supplies Limited,10/06/2015,327.26
Customer Services,Facilities Management and Cleaning Services,CLCM,Premises-Related Expenditure,Clean Mats & Toilet Requisites,Border Janitorial Supplies Limited,10/06/2015,215.82
Customer Services,Facilities Management and Cleaning Services,CLCM,Premises-Related Expenditure,Clean Mats & Toilet Requisites,Border Janitorial Supplies Limited,15/06/2015,144.72
Customer Services,Facilities Management and Cleaning Services,CLCM,Premises-Related Expenditure,Clean Mats & Toilet Requisites,Border Janitorial Supplies Limited,24/06/2015,175.12
Customer Services,Facilities Management and Cleaning Services,CLCM,Premises-Related Expenditure,Clean Mats & Toilet Requisites,Border Janitorial Supplies Limited,24/06/2015,126.84
Customer Services,Facilities Management and Cleaning Services,CLCM,Premises-Related Expenditure,Clean Mats & Toilet Requisites,Border Janitorial Supplies Limited,24/06/2015,187.14
Customer Services,Facilities Management and Cleaning Services,CLCM,Premises-Related Expenditure,Clean Mats & Toilet Requisites,Border Janitorial Supplies Limited,03/06/2015,126.13
Customer Services,Facilities Management and Cleaning Services,CLCM,Premises-Related Expenditure,Clean Mats & Toilet Requisites,Border Janitorial Supplies Limited,03/06/2015,100.20
Customer Services,Facilities Management and Cleaning Services,CLCM,Premises-Related Expenditure,Clean Mats & Toilet Requisites,Border Janitorial Supplies Limited,03/06/2015,175.12
Customer Services,Facilities Management and Cleaning Services,CLCM,Premises-Related Expenditure,Clean Mats & Toilet Requisites,Border Janitorial Supplies Limited,03/06/2015,160.37
Customer Services,Facilities Management and Cleaning Services,CLCM,Premises-Related Expenditure,Contract Cleaning,CLEANIT CLEANING SERVICES,15/06/2015,112.50
Customer Services,Facilities Management and Cleaning Services,CLCM,Premises-Related Expenditure,Contract Cleaning,CLEANIT CLEANING SERVICES,15/06/2015,180.00
Customer Services,Facilities Management and Cleaning Services,CLCM,Premises-Related Expenditure,Contract Cleaning,CLEANIT CLEANING SERVICES,24/06/2015,112.50
Customer Services,Facilities Management and Cleaning Services,CLSP,Premises-Related Expenditure,Clean Mats & Toilet Requisites,Border Janitorial Supplies Limited,15/06/2015,139.64
Customer Services,Facilities Management and Cleaning Services,CLSP,Premises-Related Expenditure,Clean Mats & Toilet Requisites,Border Janitorial Supplies Limited,24/06/2015,103.79
Customer Services,Facilities Management and Cleaning Services,CLSP,Premises-Related Expenditure,Clean Mats & Toilet Requisites,Border Janitorial Supplies Limited,25/06/2015,118.72
Customer Services,Facilities Management and Cleaning Services,CLSP,Premises-Related Expenditure,Clean Mats & Toilet Requisites,Border Janitorial Supplies Limited,03/06/2015,274.02
Customer Services,Facilities Management and Cleaning Services,CLSP,Premises-Related Expenditure,Clean Mats & Toilet Requisites,Border Janitorial Supplies Limited,03/06/2015,152.52
Customer Services,Facilities Management and Cleaning Services,CLSP,Premises-Related Expenditure,Clean Mats & Toilet Requisites,Border Janitorial Supplies Limited,25/06/2015,222.52
Customer Services,Facilities Management and Cleaning Services,CLSP,Premises-Related Expenditure,Contract Cleaning,CLEANIT CLEANING SERVICES,24/06/2015,196.88
Customer Services,Facilities Management and Cleaning Services,CLSP,Supplies & Services,Protective Clothing,MAIN MAN SUPPLIES LTD,17/06/2015,450.00
Customer Services,Facilities Management and Cleaning Services,CLSP,Supplies & Services,Protective Clothing,MAIN MAN SUPPLIES LTD,24/06/2015,186.00
Customer Services,Facilities Management and Cleaning Services,CLSP,Supplies & Services,Protective Clothing,MAIN MAN SUPPLIES LTD,09/06/2015,201.50
Customer Services,Facilities Management and Cleaning Services,CLSP,Supplies & Services,Equipment - Repair,THE CLEAN MACHINE DIRECT LTD,24/06/2015,165.50
Customer Services,Facilities Management and Cleaning Services,CLSP,Supplies & Services,Equipment - Repair,THE CLEAN MACHINE DIRECT LTD,01/06/2015,175.00
Customer Services,Facilities Management and Cleaning Services,CLSS,Premises-Related Expenditure,Clean Mats & Toilet Requisites,Border Janitorial Supplies Limited,15/06/2015,203.28
Customer Services,Facilities Management and Cleaning Services,CLSS,Premises-Related Expenditure,Contract Cleaning,CLEANIT CLEANING SERVICES,15/06/2015,185.63
Customer Services,Facilities Management and Cleaning Services,CLSS,Premises-Related Expenditure,Contract Cleaning,CLEANIT CLEANING SERVICES,24/06/2015,112.50
Customer Services,Facilities Management and Cleaning Services,CLSX,Premises-Related Expenditure,Clean Mats & Toilet Requisites,Border Janitorial Supplies Limited,10/06/2015,289.93
Customer Services,ICT,CBAF,Employees,Contract Staff,Wave 9 Managed Services LTD,18/06/2015,"1,009.38"
Customer Services,ICT,CBAF,Supplies & Services,Telecomms,Airband Community Internet,15/06/2015,295.00
Customer Services,ICT,CBAF,Supplies & Services,Telecomms,Airband Community Internet,15/06/2015,295.00
Customer Services,ICT,CBAF,Supplies & Services,Telecomms,Airband Community Internet,15/06/2015,790.00
Customer Services,ICT,CBAF,Supplies & Services,Telecomms,Airband Community Internet,15/06/2015,295.00
Customer Services,ICT,CBAF,Supplies & Services,Telecomms,Airband Community Internet,15/06/2015,295.00
Customer Services,ICT,CBAF,Supplies & Services,Telecomms,Airband Community Internet,15/06/2015,295.00
Customer Services,ICT,CBAF,Supplies & Services,Telecomms,Airband Community Internet,15/06/2015,295.00
Customer Services,ICT,CBAF,Supplies & Services,Telecomms,Airband Community Internet,15/06/2015,295.00
Customer Services,ICT,CBAF,Supplies & Services,Telecomms,Airband Community Internet,15/06/2015,295.00
Customer Services,ICT,CBAF,Supplies & Services,Telecomms,Airband Community Internet,15/06/2015,295.00
Customer Services,ICT,CBAF,Supplies & Services,Telecomms,Airband Community Internet,15/06/2015,295.00
Customer Services,ICT,CBAG,Supplies & Services,Equipment - Purchase,CCS MEDIA LIMITED,23/06/2015,828.00
Customer Services,ICT,CBAG,Supplies & Services,Telephones,Digital Exchange Products Ltd,26/06/2015,109.00
Customer Services,ICT,CBAG,Supplies & Services,Mobile Phones,EE LTD,12/06/2015,"5,883.03"
Customer Services,ICT,CBAG,Supplies & Services,Mobile Phones,EE LTD,12/06/2015,"5,257.80"
Customer Services,ICT,CBAG,Supplies & Services,Mobile Phones,EE LTD,12/06/2015,176.11
Customer Services,ICT,CBAG,Supplies & Services,Mobile Phones,EE LTD,12/06/2015,"1,390.04"
Customer Services,ICT,CBAG,Supplies & Services,Mobile Phones,EE LTD,12/06/2015,833.31
Customer Services,ICT,CBAG,Supplies & Services,Mobile Phones,EE LTD,09/06/2015,171.48
Customer Services,ICT,CBAG,Supplies & Services,Mobile Phones,EE LTD,09/06/2015,"1,152.38"
Customer Services,ICT,CBAG,Supplies & Services,Mobile Phones,EE LTD,09/06/2015,"5,206.49"
Customer Services,ICT,CBAG,Supplies & Services,Mobile Phones,EE LTD,12/06/2015,"13,709.33"
Customer Services,ICT,CBAG,Supplies & Services,Mobile Phones,EE LTD,12/06/2015,"2,313.15"
Customer Services,ICT,CBAG,Supplies & Services,Mobile Phones,EE LTD,16/06/2015,"1,254.10"
Customer Services,ICT,CBAG,Supplies & Services,Mobile Phones,EE LTD,09/06/2015,"5,401.31"
Customer Services,ICT,CBAG,Supplies & Services,Mobile Phones,EE LTD,09/06/2015,"13,970.78"
Customer Services,ICT,CBAG,Supplies & Services,Mobile Phones,EE LTD,09/06/2015,"1,033.47"
Customer Services,ICT,CBAG,Supplies & Services,Equipment - Purchase,EUROPEAN ELECTRONIQUE LTD,17/06/2015,"2,412.75"
Customer Services,ICT,CBAG,Supplies & Services,Equipment - Purchase,EUROPEAN ELECTRONIQUE LTD,15/06/2015,"1,200.00"
Customer Services,ICT,CBAG,Supplies & Services,Equipment - Purchase,EUROPEAN ELECTRONIQUE LTD,15/06/2015,"5,101.00"
Customer Services,ICT,CBAG,Supplies & Services,Mobile Phones,ORANGE PCS LTD,25/06/2015,-287.00
Customer Services,ICT,CBAG,Supplies & Services,Mobile Phones,ORANGE PCS LTD,09/06/2015,225.00
Customer Services,ICT,CBAG,Supplies & Services,Comp Software (Purch / Hire),PHOENIX SOFTWARE LTD,02/06/2015,"18,074.64"
Customer Services,ICT,CBAG,Supplies & Services,Other Expenses,PROCESS FLOWS UK LTD,15/06/2015,394.74
Customer Services,ICT,CBAG,Supplies & Services,Comp Hardware (Purch / Hire),SPECIALIST COMPUTERS CENTRES PLC,15/06/2015,498.42
Customer Services,ICT,CBAG,Supplies & Services,Comp Hardware (Purch / Hire),SPECIALIST COMPUTERS CENTRES PLC,03/06/2015,938.46
Customer Services,ICT,CBAG,Supplies & Services,Equipment - Purchase,WT Communications Ltd,15/06/2015,400.00
Customer Services,ICT,CBAH,Supplies & Services,Comp Software (Purch / Hire),Bromcom Computers Plc,23/06/2015,"91,478.68"
Customer Services,ICT,CBAH,Supplies & Services,Comp Software (Purch / Hire),Bromcom Computers Plc,25/06/2015,-225.40
Customer Services,ICT,CBAH,Supplies & Services,Comp Software (Purch / Hire),PHOENIX SOFTWARE LTD,18/06/2015,"74,012.64"
Customer Services,ICT,CBAJ,Supplies & Services,Telecomms,Airband Community Internet,15/06/2015,250.00
Customer Services,ICT,CBAJ,Supplies & Services,Telecomms,Airband Community Internet,15/06/2015,250.00
Customer Services,ICT,CBAJ,Supplies & Services,Comp Software (Purch / Hire),AQ LIMITED,15/06/2015,217.27
Customer Services,ICT,CBAJ,Supplies & Services,Comp Software (Purch / Hire),AQ LIMITED,15/06/2015,174.37
Customer Services,ICT,CBAJ,Supplies & Services,Comp Software (Purch / Hire),AQ LIMITED,15/06/2015,244.46
Customer Services,ICT,CBAJ,Supplies & Services,Comp Software (Purch / Hire),AQ LIMITED,15/06/2015,260.41
Customer Services,ICT,CBAJ,Supplies & Services,Comp Software (Purch / Hire),AQ LIMITED,15/06/2015,200.43
Customer Services,ICT,CBAJ,Supplies & Services,Comp Software (Purch / Hire),AQ LIMITED,15/06/2015,177.22
Customer Services,ICT,CBAJ,Supplies & Services,Comp Software (Purch / Hire),AQ LIMITED,15/06/2015,279.13
Customer Services,ICT,CBAJ,Supplies & Services,Comp Software (Purch / Hire),AQ LIMITED,15/06/2015,112.64
Customer Services,ICT,CBAJ,Supplies & Services,Telephones,BRITISH TELECOMMUNICATIONS PLC,08/06/2015,"3,702.85"
Customer Services,ICT,CBAJ,Supplies & Services,Comp Software (Purch / Hire),CACI LTD,17/06/2015,"19,180.32"
Customer Services,ICT,CBAJ,Supplies & Services,Equipment - Repair,DELL CORPORATION,08/06/2015,705.67
Customer Services,ICT,CBAJ,Supplies & Services,Mobile Phones,EE LTD,30/06/2015,-574.00
Customer Services,ICT,CBAJ,Supplies & Services,Equipment - Purchase,EUROPEAN ELECTRONIQUE LTD,24/06/2015,114.20
Customer Services,ICT,CBAJ,Supplies & Services,Comp Software (Purch / Hire),OLM SYSTEMS LTD,25/06/2015,500.00
Customer Services,ICT,CBAJ,Supplies & Services,Comp Software (Purch / Hire),PHOENIX SOFTWARE LTD,22/06/2015,"20,521.08"
Customer Services,ICT,CBAJ,Supplies & Services,Comp Software (Purch / Hire),PHOENIX SOFTWARE LTD,22/06/2015,"2,688.82"
Customer Services,ICT,CBAJ,Supplies & Services,Comp Software (Purch / Hire),PHOENIX SOFTWARE LTD,22/06/2015,"9,752.80"
Customer Services,ICT,CBAJ,Supplies & Services,Comp Software (Purch / Hire),PHOENIX SOFTWARE LTD,24/06/2015,"1,420.50"
Customer Services,ICT,CBAJ,Supplies & Services,Comp Software (Purch / Hire),PHOENIX SOFTWARE LTD,02/06/2015,"4,622.25"
Customer Services,ICT,CBAJ,Supplies & Services,Comp Software (Purch / Hire),PHOENIX SOFTWARE LTD,02/06/2015,"2,579.60"
Customer Services,ICT,CBAJ,Supplies & Services,Comp Software (Purch / Hire),PHOENIX SOFTWARE LTD,02/06/2015,"128,379.20"
Customer Services,ICT,CBAJ,Supplies & Services,Comp Software (Purch / Hire),PHOENIX SOFTWARE LTD,02/06/2015,"3,689.84"
Customer Services,ICT,CBAJ,Supplies & Services,Comp Software (Purch / Hire),PHOENIX SOFTWARE LTD,24/06/2015,220.00
Customer Services,ICT,CBAJ,Supplies & Services,Comp Software (Purch / Hire),PHOENIX SOFTWARE LTD,02/06/2015,"2,371.20"
Customer Services,ICT,CBAJ,Supplies & Services,Comp Software (Purch / Hire),PHOENIX SOFTWARE LTD,02/06/2015,728.44
Customer Services,ICT,CBAJ,Supplies & Services,Comp Software (Purch / Hire),PHOENIX SOFTWARE LTD,02/06/2015,"3,127.14"
Customer Services,ICT,CBAJ,Supplies & Services,Comp Software (Purch / Hire),PHOENIX SOFTWARE LTD,02/06/2015,"80,655.68"
Customer Services,ICT,CBAJ,Supplies & Services,Comp Software (Purch / Hire),PHOENIX SOFTWARE LTD,02/06/2015,318.42
Customer Services,ICT,CBAJ,Supplies & Services,Comp Software (Purch / Hire),PILLAR SOFTWARE LIMITED,04/06/2015,"1,166.00"
Customer Services,ICT,CBAJ,Supplies & Services,Furniture - Purchase,Swift Business Solutions Ltd,25/06/2015,175.00
Customer Services,ICT,CBAL,Supplies & Services,Stationery,PREMIER PAPER GROUP LTD,24/06/2015,497.50
Customer Services,ICT,CBAR,Supplies & Services,Comp Hardware (Purch / Hire),CCS MEDIA LIMITED,04/06/2015,"3,162.00"
Customer Services,ICT,CBAR,Supplies & Services,Comp Hardware (Purch / Hire),EUROPEAN ELECTRONIQUE LTD,24/06/2015,692.00
Customer Services,ICT,CBAR,Supplies & Services,Comp Hardware (Purch / Hire),EUROPEAN ELECTRONIQUE LTD,24/06/2015,692.00
Customer Services,ICT,CBAR,Supplies & Services,Comp Hardware (Purch / Hire),EUROPEAN ELECTRONIQUE LTD,25/06/2015,302.10
Customer Services,ICT,CBAR,Supplies & Services,Comp Software (Purch / Hire),PHOENIX SOFTWARE LTD,02/06/2015,"18,712.80"
Customer Services,ICT,CBAR,Supplies & Services,Comp Software (Purch / Hire),PHOENIX SOFTWARE LTD,02/06/2015,"25,132.80"
Customer Services,ICT,CBAR,Supplies & Services,Comp Software (Purch / Hire),PHOENIX SOFTWARE LTD,02/06/2015,"2,508.80"
Customer Services,ICT,CBAR,Supplies & Services,Comp Software (Purch / Hire),PHOENIX SOFTWARE LTD,02/06/2015,"55,012.50"
Customer Services,ICT,CBAR,Supplies & Services,Comp Software (Purch / Hire),PHOENIX SOFTWARE LTD,02/06/2015,"17,340.00"
Customer Services,ICT,CBAR,Supplies & Services,Comp Software (Purch / Hire),PHOENIX SOFTWARE LTD,02/06/2015,"99,405.00"
Customer Services,ICT,CBAR,Supplies & Services,Comp Software (Purch / Hire),PHOENIX SOFTWARE LTD,02/06/2015,"96,007.50"
Customer Services,ICT,WCAG,Capital Expenditure,Legal Fees,Browne Jacobson LLP,30/06/2015,"1,750.50"
Customer Services,ICT,WCAG,Capital Expenditure,Payments to Contractor,Oaresome LTD,17/06/2015,"4,370.00"
Customer Services,ICT,WCAG,Capital Expenditure,Payments to Contractor,SPECIALIST COMPUTERS CENTRES PLC,10/06/2015,"13,650.00"
Customer Services,ICT,WCAG,Capital Expenditure,Computer Hardware,UPS DIRECT LTD,17/06/2015,175.00
Customer Services,ICT,WCAG,Capital Expenditure,Computer Hardware,UPS DIRECT LTD,17/06/2015,"5,435.00"
Customer Services,ICT,WCAG,Capital Expenditure,Computer Hardware,UPS DIRECT LTD,17/06/2015,180.00
Customer Services,ICT,WCAG,Capital Expenditure,Computer Hardware,UPS DIRECT LTD,17/06/2015,866.00
Customer Services,ICT,WCAG,Capital Expenditure,Computer Hardware,UPS DIRECT LTD,17/06/2015,362.88
Customer Services,Library Services,LLAA,Supplies & Services,Libraries Book Fund,BERTRAMS LIBRARY SERVICES,23/06/2015,494.82
Customer Services,Library Services,LLAA,Supplies & Services,Libraries Book Fund,BERTRAMS LIBRARY SERVICES,23/06/2015,101.46
Customer Services,Library Services,LLAA,Supplies & Services,Libraries Book Fund,BERTRAMS LIBRARY SERVICES,23/06/2015,331.09
Customer Services,Library Services,LLAA,Supplies & Services,Libraries Book Fund,BERTRAMS LIBRARY SERVICES,23/06/2015,650.89
Customer Services,Library Services,LLAA,Supplies & Services,Libraries Book Fund,BERTRAMS LIBRARY SERVICES,05/06/2015,278.99
Customer Services,Library Services,LLAA,Supplies & Services,Libraries Book Fund,BERTRAMS LIBRARY SERVICES,23/06/2015,324.04
Customer Services,Library Services,LLAA,Supplies & Services,Libraries Book Fund,BERTRAMS LIBRARY SERVICES,05/06/2015,748.08
Customer Services,Library Services,LLAA,Supplies & Services,Libraries Book Fund,BERTRAMS LIBRARY SERVICES,05/06/2015,213.31
Customer Services,Library Services,LLAA,Supplies & Services,Libraries Book Fund,BERTRAMS LIBRARY SERVICES,05/06/2015,176.85
Customer Services,Library Services,LLAA,Supplies & Services,Libraries Book Fund,BERTRAMS LIBRARY SERVICES,05/06/2015,134.61
Customer Services,Library Services,LLAA,Supplies & Services,Libraries Book Fund,BERTRAMS LIBRARY SERVICES,05/06/2015,384.85
Customer Services,Library Services,LLAA,Supplies & Services,Libraries Book Fund,LIBRARY MAGNA BOOKS LIMITED,22/06/2015,113.34
Customer Services,Library Services,LLAA,Supplies & Services,Libraries Book Fund,LIBRARY MAGNA BOOKS LIMITED,23/06/2015,296.78
Customer Services,Library Services,LLAA,Supplies & Services,Libraries Book Fund,OAKHILL PUBLISHING LTD,04/06/2015,235.96
Customer Services,Library Services,LLAA,Supplies & Services,Libraries Book Fund,PETERS  LTD,26/06/2015,775.26
Customer Services,Library Services,LLAA,Supplies & Services,Libraries Book Fund,PETERS  LTD,26/06/2015,359.40
Customer Services,Library Services,LLAA,Supplies & Services,Libraries Book Fund,PETERS  LTD,26/06/2015,167.26
Customer Services,Library Services,LLAA,Supplies & Services,Libraries Book Fund,PETERS  LTD,26/06/2015,967.50
Customer Services,Library Services,LLAA,Supplies & Services,Libraries Book Fund,PETERS  LTD,26/06/2015,500.73
Customer Services,Library Services,LLAA,Supplies & Services,Libraries Book Fund,PETERS  LTD,26/06/2015,149.40
Customer Services,Library Services,LLAA,Supplies & Services,Libraries Book Fund,PETERS  LTD,26/06/2015,544.98
Customer Services,Library Services,LLAA,Supplies & Services,Libraries Book Fund,PETERS  LTD,26/06/2015,213.96
Customer Services,Library Services,LLAA,Supplies & Services,Libraries Book Fund,PETERS  LTD,26/06/2015,459.28
Customer Services,Library Services,LLAA,Supplies & Services,Libraries Book Fund,PETERS  LTD,26/06/2015,597.50
Customer Services,Library Services,LLAA,Supplies & Services,Libraries Book Fund,THE BRITISH LIBRARY,23/06/2015,118.40
Customer Services,Library Services,LLAA,Supplies & Services,Libraries Book Fund,ULVERSCROFT LARGE PRINT BOOKS LIMITED,22/06/2015,234.40
Customer Services,Library Services,LLAA,Supplies & Services,Libraries Book Fund,ULVERSCROFT LARGE PRINT BOOKS LIMITED,22/06/2015,190.00
Customer Services,Library Services,LLAA,Supplies & Services,Libraries Book Fund,ULVERSCROFT LARGE PRINT BOOKS LIMITED,23/06/2015,214.08
Customer Services,Library Services,LLAA,Supplies & Services,Libraries Book Fund,W F HOWES LTD,22/06/2015,"4,463.29"
Customer Services,Library Services,LLAA,Supplies & Services,Libraries Book Fund,W F HOWES LTD,23/06/2015,187.20
Customer Services,Library Services,LLAA,Supplies & Services,Libraries Book Fund,W F HOWES LTD,01/06/2015,187.20
Customer Services,Library Services,LLAA,Supplies & Services,Libraries Book Fund,W F HOWES LTD,04/06/2015,218.40
Customer Services,Revenues,CBAK,Supplies & Services,Printing ,DELTOR COMMUNICATIONS LTD,30/06/2015,105.00
Customer Services,Revenues,CBAK,Supplies & Services,Printing ,LEXON,24/06/2015,696.88
Customer Services,Revenues,CBAK,Supplies & Services,Printing ,LEXON,24/06/2015,140.69
Customer Services,Revenues,CBAK,Supplies & Services,Printing ,LEXON,23/06/2015,197.86
Customer Services,Revenues,CBAK,Supplies & Services,Printing ,LION FPG LIMITED,24/06/2015,"1,281.00"
Customer Services,Revenues,CBAK,Supplies & Services,Printing ,LION FPG LIMITED,24/06/2015,260.00
Customer Services,Revenues,CBAK,Supplies & Services,Printing ,MARKETING AT THE MILL,10/06/2015,201.00
Customer Services,Revenues,CBAK,Supplies & Services,Printing ,MARKETING AT THE MILL,10/06/2015,635.00
Customer Services,Revenues,CBAK,Supplies & Services,Printing ,MARKETING AT THE MILL,24/06/2015,208.00
Customer Services,Revenues,CBAK,Supplies & Services,Printing ,MARKETING AT THE MILL,30/06/2015,250.00
Customer Services,Revenues,CBAK,Supplies & Services,Printing ,MARKETING AT THE MILL,30/06/2015,"1,445.00"
Customer Services,Revenues,CBAK,Supplies & Services,Comp Hardware (Purch / Hire),NEOPOST FINANCE LTD 47634944,25/06/2015,"7,858.06"
Customer Services,Revenues,CBAK,Supplies & Services,Comp Hardware (Purch / Hire),NEOPOST LIMITED 47639288,10/06/2015,"1,298.00"
Customer Services,Revenues,CBAK,Supplies & Services,Printing ,TELFORD REPROGRAPHICS LTD,19/06/2015,225.00
Customer Services,Revenues,CBAK,Supplies & Services,Printing ,TUDOR PRINT & SIGNS,22/06/2015,154.00
Customer Services,Revenues,CBAK,Supplies & Services,Printing ,TUDOR PRINT & SIGNS,24/06/2015,179.00
Customer Services,Revenues,CBAK,Supplies & Services,Printing ,TUDOR PRINT & SIGNS,24/06/2015,208.00
Customer Services,Revenues,COAB,Supplies & Services,Postages/Courier,FREELANCE BUSINESS ASSOCIATES,15/06/2015,285.00
Customer Services,Revenues,COAB,Supplies & Services,Postages/Courier,FREELANCE BUSINESS ASSOCIATES,15/06/2015,285.00
Customer Services,Revenues,COAB,Supplies & Services,Postages/Courier,G FORCE EXPRESS PARCELS LTD,10/06/2015,216.04
Customer Services,Revenues,COAB,Supplies & Services,Postages/Courier,G FORCE EXPRESS PARCELS LTD,10/06/2015,401.17
Customer Services,Revenues,COAB,Supplies & Services,Postages,ROYAL MAIL GROUP LTD,01/06/2015,"3,010.80"
Customer Services,Revenues,COAC,Supplies & Services,Postages/ franking machine costs,FRANCOTYP-POSTALIA LTD (POSTAGE),10/06/2015,"3,000.00"
Customer Services,Revenues,COAC,Supplies & Services,Postages/ franking machine costs,FRANCOTYP-POSTALIA LTD (POSTAGE),23/06/2015,"3,000.00"
Customer Services,Revenues,COAC,Supplies & Services,Postages/ franking machine costs,FRANCOTYP-POSTALIA LTD (POSTAGE),25/06/2015,"3,000.00"
Customer Services,Revenues,COAC,Supplies & Services,Postages/ franking machine costs,FRANCOTYP-POSTALIA LTD (POSTAGE),01/06/2015,"3,000.00"
Customer Services,Revenues,COAC,Supplies & Services,Postages/ franking machine costs,TMR EXECUTIVE AGENCY LTD,10/06/2015,415.80
Customer Services,Revenues,LRTA,Supplies & Services,Computer Software (Maint),CIVICA SERVICES LTD 23120510),15/06/2015,777.05
Customer Services,Revenues,LRTA,Supplies & Services,Postages,ROYAL MAIL GROUP LTD,25/06/2015,"2,534.86"
Customer Services,Revenues,LRTA,Supplies & Services,Postages,ROYAL MAIL GROUP LTD,01/06/2015,"3,054.10"
Customer Services,Revenues,LRTA,Supplies & Services,Postages,ROYAL MAIL GROUP LTD,08/06/2015,"3,587.01"
Customer Services,Revenues,LRTA,Supplies & Services,Postages,ROYAL MAIL GROUP LTD,15/06/2015,"3,298.69"
Customer Services,Revenues,LRTA,Supplies & Services,Postages,ROYAL MAIL GROUP LTD,18/06/2015,"2,978.92"
Customer Services,Revenues,LRTA,Third Party Payments,Blue Badge Costs,NORTHGATE PUBLIC SERVICES (UK) LTD,15/06/2015,226.36
Customer Services,Revenues,LRTA,Third Party Payments,Blue Badge Costs,NORTHGATE PUBLIC SERVICES (UK) LTD,02/06/2015,172.22
Customer Services,Revenues,LRTA,Third Party Payments,Blue Badge Software Maintenance,NORTHGATE PUBLIC SERVICES (UK) LTD,26/06/2015,"8,000.00"
Customer Services,Revenues,LRTB,Employees,Course Fees,CHART INST PUBLIC FINANCE & ACCOUNTANCY,10/06/2015,490.00
Customer Services,Revenues,LRTB,Employees,Revenue Processing Costs,NORTHGATE PUBLIC SERVICES (UK) LTD,25/06/2015,"4,297.56"
Customer Services,Revenues,LRTB,Third Party Payments,External Collection Agent Fees,ROSSENDALES LTD,23/06/2015,385.00
Customer Services,Revenues,LRTE,Third Party Payments,External Collection Agent Fees,ROSSENDALES LTD,25/06/2015,407.00
"Development, Business & Employment","AD - Development, Business & Housing",WCAR,Capital Expenditure,Payments to Contractor,JONES & HAMPTON LTD,17/06/2015,100.60
"Development, Business & Employment","AD - Development, Business & Housing",WCBE,Capital Expenditure,Payments to Contractor,JONES & HAMPTON LTD,29/06/2015,228.67
"Development, Business & Employment","AD - Development, Business & Housing",WCBE,Capital Expenditure,Payments to Contractor,Rick Shaw Designs,16/06/2015,342.50
"Development, Business & Employment","AD - Development, Business & Housing",WCBE,Capital Expenditure,Payments to Contractor,VPS (UK) LTD,11/06/2015,163.84
"Development, Business & Employment","AD - Development, Business & Housing",WCBE,Capital Expenditure,Payments to Contractor,VPS (UK) LTD,11/06/2015,169.08
"Development, Business & Employment",Business & Development Planning,AEAD,Supplies & Services,Marketing & Publicity,DESIGN:ONE LTD,23/06/2015,"1,040.00"
"Development, Business & Employment",Business & Development Planning,AEAD,Supplies & Services,Marketing & Publicity,DESIGN:ONE LTD,23/06/2015,975.00
"Development, Business & Employment",Business & Development Planning,AEAD,Supplies & Services,Marketing & Publicity,DESIGN:ONE LTD,23/06/2015,650.00
"Development, Business & Employment",Business & Development Planning,AEAG,Supplies & Services,Marketing & Publicity,Beth Heath Events,22/06/2015,435.00
"Development, Business & Employment",Business & Development Planning,AEAG,Supplies & Services,Marketing & Publicity,STEWART WRITTLE,22/06/2015,350.00
"Development, Business & Employment",Business & Development Planning,AEAG,Supplies & Services,Marketing & Publicity,STEWART WRITTLE,22/06/2015,200.00
"Development, Business & Employment",Business & Development Planning,AEAG,Supplies & Services,Marketing & Publicity,STEWART WRITTLE,22/06/2015,200.00
"Development, Business & Employment",Business & Development Planning,AEAJ,Supplies & Services,Web Services,Alcium Software Ltd,30/06/2015,"8,081.00"
"Development, Business & Employment",Business & Development Planning,AEAJ,Supplies & Services,Business Sector Development,Telford Business Club,17/06/2015,150.00
"Development, Business & Employment",Business & Development Planning,DDAK,Supplies & Services,Consultants Fees,IRONBRIDGE GORGE MUSEUM TRUST LTD,17/06/2015,9224.65
"Development, Business & Employment",Business & Development Planning,DDAK,Supplies & Services,Consultants Fees,IRONBRIDGE GORGE MUSEUM TRUST LTD,17/06/2015,9123.29
"Development, Business & Employment",Business & Development Planning,DHBB,Supplies & Services,Other Grants (Expenses),Carillion Energy Services Ltd,23/06/2015,"11,550.00"
"Development, Business & Employment",Business & Development Planning,DHBB,Supplies & Services,Other Grants (Expenses),Carillion Energy Services Ltd,05/06/2015,"11,550.00"
"Development, Business & Employment",Business & Development Planning,DSAB,Supplies & Services,Consultants Fees,CH2M HILL,01/06/2015,220.55
"Development, Business & Employment",Business & Development Planning,EWAJ,Employees,Course Fees,LIMEHOUSE SOFTWARE  LTD,22/06/2015,"1,000.00"
"Development, Business & Employment",Business & Development Planning,EWAJ,Supplies & Services,Research Surveys,Peter Brett Associates LLP,01/06/2015,"6,236.60"
"Development, Business & Employment",Business & Development Planning,EWAJ,Supplies & Services,Research Surveys,Peter Brett Associates LLP,01/06/2015,"6,236.60"
"Development, Business & Employment",Business & Development Planning,EWAJ,Supplies & Services,Research Surveys,Peter Brett Associates LLP,01/06/2015,"6,236.60"
"Development, Business & Employment",Business & Development Planning,EWAJ,Supplies & Services,Service Contracts,SHROPSHIRE COUNCIL (55636551),23/06/2015,"1,670.00"
"Development, Business & Employment",Business & Development Planning,EWAJ,Supplies & Services,Stationery,STANFORD MARSH FINANCE LTD,11/06/2015,142.32
"Development, Business & Employment",Business & Development Planning,WDAF,Capital Expenditure,Expenditure on loans & other financial assistance,AIDS & ADAPTIONS LTD,10/06/2015,"3,479.16"
"Development, Business & Employment",Business & Development Planning,WDAF,Capital Expenditure,Expenditure on loans & other financial assistance,AIDS & ADAPTIONS LTD,11/06/2015,"4,733.22"
"Development, Business & Employment",Business & Development Planning,WDAF,Capital Expenditure,Expenditure on loans & other financial assistance,AWS Bathroom Supplies Ltd,23/06/2015,"3,250.00"
"Development, Business & Employment",Business & Development Planning,WDAF,Capital Expenditure,Expenditure on loans & other financial assistance,Blair Heating & Plumbing Services Ltd,05/06/2015,"2,600.00"
"Development, Business & Employment",Business & Development Planning,WDAF,Capital Expenditure,Expenditure on loans & other financial assistance,Carillion Energy Services Ltd,10/06/2015,"-1,312.50"
"Development, Business & Employment",Business & Development Planning,WDAF,Capital Expenditure,Expenditure on loans & other financial assistance,Carillion Energy Services Ltd,23/06/2015,"1,190.48"
"Development, Business & Employment",Business & Development Planning,WDAF,Capital Expenditure,Expenditure on loans & other financial assistance,DMW ENVIRONMENTAL SAFETY LTD,11/06/2015,150.00
"Development, Business & Employment",Business & Development Planning,WDAF,Capital Expenditure,Expenditure on loans & other financial assistance,DMW ENVIRONMENTAL SAFETY LTD,11/06/2015,150.00
"Development, Business & Employment",Business & Development Planning,WDAF,Capital Expenditure,Expenditure on loans & other financial assistance,DMW ENVIRONMENTAL SAFETY LTD,23/06/2015,150.00
"Development, Business & Employment",Business & Development Planning,WDAF,Capital Expenditure,Expenditure on loans & other financial assistance,GM Corporate Solutions Ltd,05/06/2015,300.00
"Development, Business & Employment",Business & Development Planning,WDAF,Capital Expenditure,Expenditure on loans & other financial assistance,HANDICARE ACCESSIBILITY LIMITED,11/06/2015,"3,750.00"
"Development, Business & Employment",Business & Development Planning,WDAF,Capital Expenditure,Expenditure on loans & other financial assistance,M J PERRINS,10/06/2015,350.00
"Development, Business & Employment",Business & Development Planning,WDAF,Capital Expenditure,Expenditure on loans & other financial assistance,M J PERRINS,10/06/2015,865.12
"Development, Business & Employment",Business & Development Planning,WDAF,Capital Expenditure,Expenditure on loans & other financial assistance,MARTIN EVANS CONSTRUCTION LTD,15/06/2015,"2,814.25"
"Development, Business & Employment",Business & Development Planning,WDAF,Capital Expenditure,Expenditure on loans & other financial assistance,MR O P RIGBY T/A ROSEMONT BUILDING CONTRACTORS,23/06/2015,"10,180.00"
"Development, Business & Employment",Business & Development Planning,WDAF,Capital Expenditure,Expenditure on loans & other financial assistance,MR O P RIGBY T/A ROSEMONT BUILDING CONTRACTORS,29/06/2015,"1,286.70"
"Development, Business & Employment",Business & Development Planning,WDAF,Capital Expenditure,Expenditure on loans & other financial assistance,MR O P RIGBY T/A ROSEMONT BUILDING CONTRACTORS,29/06/2015,"3,588.26"
"Development, Business & Employment",Business & Development Planning,WDAF,Capital Expenditure,Expenditure on loans & other financial assistance,R E BROWN BUILDERS LIMITED,23/06/2015,"5,060.11"
"Development, Business & Employment",Business & Development Planning,WDAF,Capital Expenditure,Expenditure on loans & other financial assistance,STANNAH LIFT SERVICES LTD,29/06/2015,"5,340.00"
"Development, Business & Employment",Business & Development Planning,WDAF,Capital Expenditure,Expenditure on loans & other financial assistance,THE WREKIN HOUSING TRUST (INVOICES ONLY),10/06/2015,"1,600.00"
"Development, Business & Employment",Business & Development Planning,WDAF,Capital Expenditure,Expenditure on loans & other financial assistance,THE WREKIN HOUSING TRUST (INVOICES ONLY),11/06/2015,862.08
"Development, Business & Employment",Business & Development Planning,WDAF,Capital Expenditure,Expenditure on loans & other financial assistance,THE WREKIN HOUSING TRUST (INVOICES ONLY),11/06/2015,"1,185.00"
"Development, Business & Employment",Business & Development Planning,WDAF,Capital Expenditure,Expenditure on loans & other financial assistance,THE WREKIN HOUSING TRUST (INVOICES ONLY),11/06/2015,"1,600.00"
"Development, Business & Employment",Business & Development Planning,WDAF,Capital Expenditure,Expenditure on loans & other financial assistance,THE WREKIN HOUSING TRUST (INVOICES ONLY),11/06/2015,"1,600.00"
"Development, Business & Employment",Business & Development Planning,WDAF,Capital Expenditure,Expenditure on loans & other financial assistance,THE WREKIN HOUSING TRUST (INVOICES ONLY),11/06/2015,"1,600.00"
"Development, Business & Employment",Business & Development Planning,WDAF,Capital Expenditure,Expenditure on loans & other financial assistance,THE WREKIN HOUSING TRUST (INVOICES ONLY),05/06/2015,"1,600.00"
"Development, Business & Employment",Business & Development Planning,WDAF,Capital Expenditure,Expenditure on loans & other financial assistance,THREE PINES BUILDING CO LTD,29/06/2015,"7,033.61"
"Development, Business & Employment",Business & Development Planning,WDGD,Capital Expenditure,Expenditure on loans & other financial assistance,Carillion Energy Services Ltd,10/06/2015,"8,898.70"
"Development, Business & Employment",Business & Development Planning,WDGD,Capital Expenditure,Expenditure on loans & other financial assistance,Carillion Energy Services Ltd,10/06/2015,"7,392.70"
"Development, Business & Employment",Business & Development Planning,WDGD,Capital Expenditure,Expenditure on loans & other financial assistance,Carillion Energy Services Ltd,23/06/2015,550.02
"Development, Business & Employment",Business & Development Planning,WDGD,Capital Expenditure,Expenditure on loans & other financial assistance,Carillion Energy Services Ltd,05/06/2015,733.36
"Development, Business & Employment",Business & Development Planning,WDSE,Capital Expenditure,Legal Fees,Browne Jacobson LLP,16/06/2015,950.00
"Development, Business & Employment",Business & Development Planning,WDSQ,Capital Expenditure,Payments to Contractor,Clearview Security Limited,05/06/2015,"1,144.25"
"Development, Business & Employment",Business & Development Planning,WDSQ,Capital Expenditure,Payments to Contractor,Clearview Security Limited,05/06/2015,"1,820.85"
"Development, Business & Employment",Business & Development Planning,WDSQ,Capital Expenditure,Payments to Contractor,FITZGERALD CONTRACTORS LTD,04/06/2015,"3,099.37"
"Development, Business & Employment",Business & Development Planning,WDSQ,Capital Expenditure,Payments to Contractor,TAYLORS MECHANICAL H & P SERVICES LTD,15/06/2015,922.69
"Development, Business & Employment",Business & Development Planning,WDST,Capital Expenditure,Payments to Contractor,ASLES (TOOL HIRE & SALES) LTD,18/06/2015,533.58
"Development, Business & Employment",Business & Development Planning,WDST,Capital Expenditure,Fixtures & Fittings & Equipment,CHRISBEON OFFICE SUPPLIES,18/06/2015,172.20
"Development, Business & Employment",Business & Development Planning,WDST,Capital Expenditure,Payments to Contractor,Churches Fire Security Ltd,18/06/2015,"1,637.15"
"Development, Business & Employment",Business & Development Planning,WDST,Capital Expenditure,Payments to Contractor,JORDAN LEWIS ASSOCIATES LTD,08/06/2015,263.10
"Development, Business & Employment",Business & Development Planning,WDST,Capital Expenditure,Fixtures & Fittings & Equipment,MIDSHIRE BUSINESS SYSTEMS LTD,08/06/2015,"2,200.00"
"Development, Business & Employment",Business & Development Planning,WDST,Capital Expenditure,Payments to Contractor,PAVE AWAYS LTD,15/06/2015,"86,628.24"
"Development, Business & Employment",Business & Development Planning,WDST,Capital Expenditure,Payments to Contractor,PRYSMIAN CABLES & SYSTEMS LTD,08/06/2015,"1,076.46"
"Development, Business & Employment",Business & Development Planning,WDST,Capital Expenditure,Payments to Contractor,PRYSMIAN CABLES & SYSTEMS LTD,08/06/2015,"1,162.24"
"Development, Business & Employment",Business & Development Planning,WDST,Capital Expenditure,Payments to Contractor,SECURITY WISE LTD,08/06/2015,185.00
"Development, Business & Employment",Business & Development Planning,WDSW,Capital Expenditure,External Professional Fees,Acivico,30/06/2015,"20,000.00"
"Development, Business & Employment",Business & Development Planning,WDSW,Capital Expenditure,External Professional Fees,ANDREW DIXON & CO,16/06/2015,250.00
"Development, Business & Employment",Business & Development Planning,WDSW,Capital Expenditure,Legal Fees,Bond Dickinson LLP,29/06/2015,"6,332.20"
"Development, Business & Employment",Business & Development Planning,WDSW,Capital Expenditure,Legal Fees,Bond Dickinson LLP,25/06/2015,"11,384.68"
"Development, Business & Employment",Business & Development Planning,WDSW,Capital Expenditure,Legal Fees,Bond Dickinson LLP,25/06/2015,"1,325.00"
"Development, Business & Employment",Business & Development Planning,WDSW,Capital Expenditure,External Professional Fees,PRICEWATERHOUSECOOPERS,01/06/2015,"19,094.00"
"Development, Business & Employment",Business & Development Planning,WDSW,Capital Expenditure,External Professional Fees,PRICEWATERHOUSECOOPERS,30/06/2015,"25,000.00"
"Development, Business & Employment",Development Management,DDAA,Supplies & Services,Subscriptions,Staffordshire Building Control,29/06/2015,500.00
"Development, Business & Employment",Development Management,DDAC,Supplies & Services,Legal Expenses,RAMADA TELFORD IRONBRIDGE,10/06/2015,166.67
"Development, Business & Employment",Development Management,DDAC,Supplies & Services,Advertising,THE MIDLAND NEWS ASSOCIATION LTD,01/06/2015,129.60
"Development, Business & Employment",Development Management,DDAC,Supplies & Services,Advertising,THE MIDLAND NEWS ASSOCIATION LTD,03/06/2015,233.28
"Development, Business & Employment",Development Management,DDAC,Supplies & Services,Advertising,THE MIDLAND NEWS ASSOCIATION LTD,10/06/2015,181.44
"Development, Business & Employment",Development Management,DDAC,Supplies & Services,Advertising,THE MIDLAND NEWS ASSOCIATION LTD,24/06/2015,155.52
"Development, Business & Employment",Development Management,DDAC,Supplies & Services,Advertising,THE MIDLAND NEWS ASSOCIATION LTD,24/06/2015,233.28
"Development, Business & Employment",Development Management,DDAC,Supplies & Services,Advertising,THE MIDLAND NEWS ASSOCIATION LTD,29/06/2015,155.52
"Development, Business & Employment",Development Management,DDAG,Employees,Professional Subs,ICSA,22/06/2015,295.00
"Development, Business & Employment",Development Management,DDAG,Employees,Agency Supply Costs,matchtech,18/06/2015,345.00
"Development, Business & Employment",Development Management,DDAG,Employees,Agency Supply Costs,matchtech,29/06/2015,414.00
"Development, Business & Employment",Development Management,DDAG,Employees,Agency Supply Costs,matchtech,01/06/2015,448.50
"Development, Business & Employment",Development Management,DDAG,Employees,Agency Supply Costs,matchtech,04/06/2015,517.50
"Development, Business & Employment",Development Management,DDAG,Employees,Agency Supply Costs,matchtech,12/06/2015,"1,638.75"
"Development, Business & Employment",Development Management,DDAG,Employees,Agency Supply Costs,matchtech,18/06/2015,655.50
"Development, Business & Employment",Development Management,DDAG,Supplies & Services,Other Expenses,D W FENCING,18/06/2015,"1,200.00"
"Development, Business & Employment",Development Management,DDAG,Supplies & Services,Computer Software (Maint),MIS LOCAL GOVERNMENT SYSTEMS LTD,15/06/2015,499.99
"Development, Business & Employment",Development Management,DDAG,Supplies & Services,Print & Data Services (Print Room) - Charges,RESOLUTION DATA MANAGEMENT LTD,15/06/2015,112.05
"Development, Business & Employment",Housing & Planning,YDAB,Supplies & Services,Other Services,RAMPMENTAL LTD,04/06/2015,"2,798.03"
"Development, Business & Employment",Housing & Planning,YDAB,Supplies & Services,Other Services,RAMPMENTAL LTD,04/06/2015,"2,824.16"
"Development, Business & Employment",Housing & Planning,YDAB,Supplies & Services,Other Services,RAMPMENTAL LTD,04/06/2015,"5,745.57"
"Development, Business & Employment",Housing & Planning,YDAB,Supplies & Services,Other Services,RAMPMENTAL LTD,04/06/2015,"5,799.24"
"Development, Business & Employment",Property & Design,CAAG,Supplies & Services,Other Expenses,Clayton Consult Ltd,23/06/2015,"1,000.00"
"Development, Business & Employment",Property & Design,CAAG,Supplies & Services,Consultants Fees,Online Structural Design Ltd,18/06/2015,600.00
"Development, Business & Employment",Property & Design,CAAG,Supplies & Services,Other Expenses,WENLOCK HEALTH & SAFETY LTD,11/06/2015,220.50
"Development, Business & Employment",Property & Design,CAAG,Supplies & Services,Other Expenses,WENLOCK HEALTH & SAFETY LTD,11/06/2015,380.00
"Development, Business & Employment",Property & Design,CAAH,Premises-Related Expenditure,R&M -Buildings DLO Charge,A1 Glass & Glazing (Shropshire) Limited,11/06/2015,195.00
"Development, Business & Employment",Property & Design,CAAH,Premises-Related Expenditure,R&M -Buildings DLO Charge,A1 Glass & Glazing (Shropshire) Limited,03/06/2015,110.00
"Development, Business & Employment",Property & Design,CAAH,Premises-Related Expenditure,R&M -Buildings DLO Charge,AGS AUTOMATIC DOORS LTD,23/06/2015,250.00
"Development, Business & Employment",Property & Design,CAAH,Premises-Related Expenditure,R&M -Buildings DLO Charge,AGS AUTOMATIC DOORS LTD,24/06/2015,320.00
"Development, Business & Employment",Property & Design,CAAH,Premises-Related Expenditure,R&M -Buildings DLO Charge,AGS AUTOMATIC DOORS LTD,03/06/2015,120.00
"Development, Business & Employment",Property & Design,CAAH,Premises-Related Expenditure,R&M -Buildings DLO Charge,AQUALOGIC (WC) LTD,11/06/2015,221.70
"Development, Business & Employment",Property & Design,CAAH,Premises-Related Expenditure,R&M -Buildings DLO Charge,AS & P SERVICES TA RAINBOW INTERNATIONAL,16/06/2015,250.00
"Development, Business & Employment",Property & Design,CAAH,Premises-Related Expenditure,R&M -Buildings DLO Charge,AS & P SERVICES TA RAINBOW INTERNATIONAL,16/06/2015,255.00
"Development, Business & Employment",Property & Design,CAAH,Premises-Related Expenditure,R&M -Buildings DLO Charge,ASLES (TOOL HIRE & SALES) LTD,12/06/2015,212.00
"Development, Business & Employment",Property & Design,CAAH,Premises-Related Expenditure,R&M -Buildings DLO Charge,ASLES (TOOL HIRE & SALES) LTD,23/06/2015,132.50
"Development, Business & Employment",Property & Design,CAAH,Premises-Related Expenditure,R&M -Buildings DLO Charge,ASLES (TOOL HIRE & SALES) LTD,03/06/2015,212.00
"Development, Business & Employment",Property & Design,CAAH,Premises-Related Expenditure,R&M -Buildings DLO Charge,ASLES (TOOL HIRE & SALES) LTD,03/06/2015,106.00
"Development, Business & Employment",Property & Design,CAAH,Premises-Related Expenditure,R&M -Buildings DLO Charge,BRADLEY INDUSTRIAL SERVICES,23/06/2015,207.29
"Development, Business & Employment",Property & Design,CAAH,Premises-Related Expenditure,R&M -Buildings DLO Charge,CHRIS BREEZE LTD,11/06/2015,289.49
"Development, Business & Employment",Property & Design,CAAH,Premises-Related Expenditure,R&M -Buildings DLO Charge,CHRIS BREEZE LTD,11/06/2015,218.50
"Development, Business & Employment",Property & Design,CAAH,Premises-Related Expenditure,R&M -Buildings DLO Charge,CHRIS BREEZE LTD,11/06/2015,218.50
"Development, Business & Employment",Property & Design,CAAH,Premises-Related Expenditure,R&M -Buildings DLO Charge,CHRIS BREEZE LTD,12/06/2015,617.00
"Development, Business & Employment",Property & Design,CAAH,Premises-Related Expenditure,R&M -Buildings DLO Charge,Churches Fire Security Ltd,23/06/2015,262.63
"Development, Business & Employment",Property & Design,CAAH,Premises-Related Expenditure,R&M -Buildings DLO Charge,Churches Fire Security Ltd,18/06/2015,189.95
"Development, Business & Employment",Property & Design,CAAH,Premises-Related Expenditure,R&M -Buildings DLO Charge,Churches Fire Security Ltd,18/06/2015,225.54
"Development, Business & Employment",Property & Design,CAAH,Premises-Related Expenditure,R&M -Buildings DLO Charge,E DAVIES & SON (TF4 3JZ),11/06/2015,"1,001.00"
"Development, Business & Employment",Property & Design,CAAH,Premises-Related Expenditure,R&M -Buildings DLO Charge,E DAVIES & SON (TF4 3JZ),11/06/2015,987.00
"Development, Business & Employment",Property & Design,CAAH,Premises-Related Expenditure,R&M -Buildings DLO Charge,G M TREBLE LTD,23/06/2015,332.39
"Development, Business & Employment",Property & Design,CAAH,Premises-Related Expenditure,R&M -Buildings DLO Charge,G M TREBLE LTD,24/06/2015,150.00
"Development, Business & Employment",Property & Design,CAAH,Premises-Related Expenditure,R&M -Buildings DLO Charge,George Birchall Limited,12/06/2015,605.09
"Development, Business & Employment",Property & Design,CAAH,Premises-Related Expenditure,R&M -Buildings DLO Charge,George Birchall Limited,11/06/2015,171.50
"Development, Business & Employment",Property & Design,CAAH,Premises-Related Expenditure,R&M -Buildings DLO Charge,George Birchall Limited,11/06/2015,304.00
"Development, Business & Employment",Property & Design,CAAH,Premises-Related Expenditure,R&M -Buildings DLO Charge,George Birchall Limited,11/06/2015,128.50
"Development, Business & Employment",Property & Design,CAAH,Premises-Related Expenditure,R&M -Buildings DLO Charge,George Birchall Limited,11/06/2015,171.50
"Development, Business & Employment",Property & Design,CAAH,Premises-Related Expenditure,R&M -Buildings DLO Charge,George Birchall Limited,04/06/2015,105.00
"Development, Business & Employment",Property & Design,CAAH,Premises-Related Expenditure,R&M -Buildings DLO Charge,George Birchall Limited,03/06/2015,191.85
"Development, Business & Employment",Property & Design,CAAH,Premises-Related Expenditure,R&M -Buildings DLO Charge,George Birchall Limited,03/06/2015,246.66
"Development, Business & Employment",Property & Design,CAAH,Premises-Related Expenditure,R&M -Buildings DLO Charge,George Birchall Limited,04/06/2015,161.39
"Development, Business & Employment",Property & Design,CAAH,Premises-Related Expenditure,R&M -Buildings DLO Charge,George Birchall Limited,04/06/2015,191.20
"Development, Business & Employment",Property & Design,CAAH,Premises-Related Expenditure,R&M -Buildings DLO Charge,George Birchall Limited,12/06/2015,454.06
"Development, Business & Employment",Property & Design,CAAH,Premises-Related Expenditure,R&M -Buildings DLO Charge,George Birchall Limited,23/06/2015,282.19
"Development, Business & Employment",Property & Design,CAAH,Premises-Related Expenditure,R&M -Buildings DLO Charge,George Birchall Limited,23/06/2015,162.90
"Development, Business & Employment",Property & Design,CAAH,Premises-Related Expenditure,R&M -Buildings DLO Charge,George Birchall Limited,18/06/2015,257.50
"Development, Business & Employment",Property & Design,CAAH,Premises-Related Expenditure,R&M -Buildings DLO Charge,George Birchall Limited,11/06/2015,260.50
"Development, Business & Employment",Property & Design,CAAH,Premises-Related Expenditure,R&M -Buildings DLO Charge,George Birchall Limited,11/06/2015,171.50
"Development, Business & Employment",Property & Design,CAAH,Premises-Related Expenditure,R&M -Buildings DLO Charge,George Birchall Limited,11/06/2015,"2,684.92"
"Development, Business & Employment",Property & Design,CAAH,Premises-Related Expenditure,Service Contracts,George Birchall Limited,16/06/2015,772.75
"Development, Business & Employment",Property & Design,CAAH,Premises-Related Expenditure,Service Contracts,George Birchall Limited,12/06/2015,362.10
"Development, Business & Employment",Property & Design,CAAH,Premises-Related Expenditure,R&M -Buildings DLO Charge,GRA-BERN,11/06/2015,142.80
"Development, Business & Employment",Property & Design,CAAH,Premises-Related Expenditure,R&M -Buildings DLO Charge,GRA-BERN,11/06/2015,251.04
"Development, Business & Employment",Property & Design,CAAH,Premises-Related Expenditure,R&M -Buildings DLO Charge,GRA-BERN,16/06/2015,307.00
"Development, Business & Employment",Property & Design,CAAH,Premises-Related Expenditure,R&M -Buildings DLO Charge,GRA-BERN,16/06/2015,254.70
"Development, Business & Employment",Property & Design,CAAH,Premises-Related Expenditure,R&M -Buildings DLO Charge,GRANVILLE CONSTRUCTION & MAINTENANCE LTD,16/06/2015,558.96
"Development, Business & Employment",Property & Design,CAAH,Premises-Related Expenditure,R&M -Buildings DLO Charge,GRANVILLE CONSTRUCTION & MAINTENANCE LTD,16/06/2015,711.33
"Development, Business & Employment",Property & Design,CAAH,Premises-Related Expenditure,R&M -Buildings DLO Charge,Green Assess Telford and Wrekin,03/06/2015,180.00
"Development, Business & Employment",Property & Design,CAAH,Premises-Related Expenditure,R&M -Buildings DLO Charge,Green Assess Telford and Wrekin,03/06/2015,160.00
"Development, Business & Employment",Property & Design,CAAH,Premises-Related Expenditure,R&M -Buildings DLO Charge,Green Assess Telford and Wrekin,03/06/2015,180.00
"Development, Business & Employment",Property & Design,CAAH,Premises-Related Expenditure,R&M -Buildings DLO Charge,Green Assess Telford and Wrekin,03/06/2015,160.00
"Development, Business & Employment",Property & Design,CAAH,Premises-Related Expenditure,R&M -Buildings DLO Charge,H & G ASH ROADMARKINGS LTD,11/06/2015,660.00
"Development, Business & Employment",Property & Design,CAAH,Premises-Related Expenditure,R&M -Buildings DLO Charge,HYDRO-TECH ENVIRONMENTAL LLP,23/06/2015,150.00
"Development, Business & Employment",Property & Design,CAAH,Premises-Related Expenditure,R&M -Buildings DLO Charge,HYDRO-TECH ENVIRONMENTAL LLP,23/06/2015,150.00
"Development, Business & Employment",Property & Design,CAAH,Premises-Related Expenditure,R&M -Buildings DLO Charge,HYDRO-TECH ENVIRONMENTAL LLP,03/06/2015,195.00
"Development, Business & Employment",Property & Design,CAAH,Premises-Related Expenditure,R&M -Buildings DLO Charge,HYDRO-TECH ENVIRONMENTAL LLP,03/06/2015,150.00
"Development, Business & Employment",Property & Design,CAAH,Premises-Related Expenditure,R&M -Buildings DLO Charge,HYDRO-TECH ENVIRONMENTAL LLP,03/06/2015,150.00
"Development, Business & Employment",Property & Design,CAAH,Premises-Related Expenditure,R&M -Buildings DLO Charge,HYDRO-TECH ENVIRONMENTAL LLP,03/06/2015,150.00
"Development, Business & Employment",Property & Design,CAAH,Premises-Related Expenditure,R&M -Buildings DLO Charge,HYDRO-TECH ENVIRONMENTAL LLP,03/06/2015,150.00
"Development, Business & Employment",Property & Design,CAAH,Premises-Related Expenditure,R&M -Buildings DLO Charge,HYDRO-TECH ENVIRONMENTAL LLP,03/06/2015,150.00
"Development, Business & Employment",Property & Design,CAAH,Premises-Related Expenditure,R&M -Buildings DLO Charge,HYDRO-TECH ENVIRONMENTAL LLP,03/06/2015,150.00
"Development, Business & Employment",Property & Design,CAAH,Premises-Related Expenditure,R&M -Buildings DLO Charge,HYDRO-TECH ENVIRONMENTAL LLP,03/06/2015,150.00
"Development, Business & Employment",Property & Design,CAAH,Premises-Related Expenditure,R&M -Buildings DLO Charge,HYDRO-TECH ENVIRONMENTAL LLP,03/06/2015,150.00
"Development, Business & Employment",Property & Design,CAAH,Premises-Related Expenditure,R&M -Buildings DLO Charge,HYDRO-TECH ENVIRONMENTAL LLP,23/06/2015,150.00
"Development, Business & Employment",Property & Design,CAAH,Premises-Related Expenditure,R&M -Buildings DLO Charge,HYDRO-TECH ENVIRONMENTAL LLP,23/06/2015,150.00
"Development, Business & Employment",Property & Design,CAAH,Premises-Related Expenditure,R&M -Buildings DLO Charge,HYDRO-TECH ENVIRONMENTAL LLP,23/06/2015,360.00
"Development, Business & Employment",Property & Design,CAAH,Premises-Related Expenditure,R&M -Buildings DLO Charge,HYDRO-TECH ENVIRONMENTAL LLP,23/06/2015,360.00
"Development, Business & Employment",Property & Design,CAAH,Premises-Related Expenditure,R&M -Buildings DLO Charge,HYDRO-TECH ENVIRONMENTAL LLP,03/06/2015,150.00
"Development, Business & Employment",Property & Design,CAAH,Premises-Related Expenditure,R&M -Buildings DLO Charge,HYDRO-TECH ENVIRONMENTAL LLP,03/06/2015,150.00
"Development, Business & Employment",Property & Design,CAAH,Premises-Related Expenditure,R&M -Buildings DLO Charge,JCE & SONS LTD,11/06/2015,108.50
"Development, Business & Employment",Property & Design,CAAH,Premises-Related Expenditure,R&M -Buildings DLO Charge,JCE & SONS LTD,15/06/2015,903.74
"Development, Business & Employment",Property & Design,CAAH,Premises-Related Expenditure,R&M -Buildings DLO Charge,JCE & SONS LTD,15/06/2015,152.38
"Development, Business & Employment",Property & Design,CAAH,Premises-Related Expenditure,R&M -Buildings DLO Charge,JCE & SONS LTD,15/06/2015,100.01
"Development, Business & Employment",Property & Design,CAAH,Premises-Related Expenditure,R&M -Buildings DLO Charge,JCE & SONS LTD,16/06/2015,"1,025.68"
"Development, Business & Employment",Property & Design,CAAH,Premises-Related Expenditure,R&M -Buildings DLO Charge,JCE & SONS LTD,03/06/2015,770.00
"Development, Business & Employment",Property & Design,CAAH,Premises-Related Expenditure,R&M -Buildings DLO Charge,JONES & HAMPTON LTD,16/06/2015,634.00
"Development, Business & Employment",Property & Design,CAAH,Premises-Related Expenditure,R&M -Buildings DLO Charge,JONES & HAMPTON LTD,16/06/2015,650.00
"Development, Business & Employment",Property & Design,CAAH,Premises-Related Expenditure,R&M -Buildings DLO Charge,JONES & HAMPTON LTD,23/06/2015,"1,154.92"
"Development, Business & Employment",Property & Design,CAAH,Premises-Related Expenditure,R&M -Buildings DLO Charge,NOBRIDGE LTD,11/06/2015,175.00
"Development, Business & Employment",Property & Design,CAAH,Premises-Related Expenditure,R&M -Buildings DLO Charge,OSBORNE DELTA (LIGHTNING CONDUCTORS) LTD,03/06/2015,110.00
"Development, Business & Employment",Property & Design,CAAH,Premises-Related Expenditure,R&M -Buildings DLO Charge,PHS GROUP LTD,15/06/2015,338.88
"Development, Business & Employment",Property & Design,CAAH,Premises-Related Expenditure,R&M -Buildings DLO Charge,PP ELECTRICAL SERVICES (Shropshire) Ltd,11/06/2015,112.36
"Development, Business & Employment",Property & Design,CAAH,Premises-Related Expenditure,R&M -Buildings DLO Charge,PP ELECTRICAL SERVICES (Shropshire) Ltd,16/06/2015,117.06
"Development, Business & Employment",Property & Design,CAAH,Premises-Related Expenditure,R&M -Buildings DLO Charge,PP ELECTRICAL SERVICES (Shropshire) Ltd,16/06/2015,995.00
"Development, Business & Employment",Property & Design,CAAH,Premises-Related Expenditure,R&M -Buildings DLO Charge,PP ELECTRICAL SERVICES (Shropshire) Ltd,16/06/2015,824.90
"Development, Business & Employment",Property & Design,CAAH,Premises-Related Expenditure,R&M -Buildings DLO Charge,PP ELECTRICAL SERVICES (Shropshire) Ltd,16/06/2015,215.22
"Development, Business & Employment",Property & Design,CAAH,Premises-Related Expenditure,R&M -Buildings DLO Charge,PP ELECTRICAL SERVICES (Shropshire) Ltd,23/06/2015,136.10
"Development, Business & Employment",Property & Design,CAAH,Premises-Related Expenditure,R&M -Buildings DLO Charge,PP ELECTRICAL SERVICES (Shropshire) Ltd,04/06/2015,115.00
"Development, Business & Employment",Property & Design,CAAH,Premises-Related Expenditure,R&M -Buildings DLO Charge,PROKILL UK LIMITED,23/06/2015,150.00
"Development, Business & Employment",Property & Design,CAAH,Premises-Related Expenditure,R&M -Buildings DLO Charge,RCS ROOFING CONSTRUCTION SERVICES LTD,11/06/2015,125.30
"Development, Business & Employment",Property & Design,CAAH,Premises-Related Expenditure,R&M -Buildings DLO Charge,RCS ROOFING CONSTRUCTION SERVICES LTD,11/06/2015,175.38
"Development, Business & Employment",Property & Design,CAAH,Premises-Related Expenditure,R&M -Buildings DLO Charge,RCS ROOFING CONSTRUCTION SERVICES LTD,23/06/2015,391.37
"Development, Business & Employment",Property & Design,CAAH,Premises-Related Expenditure,R&M -Buildings DLO Charge,RCS ROOFING CONSTRUCTION SERVICES LTD,23/06/2015,113.99
"Development, Business & Employment",Property & Design,CAAH,Premises-Related Expenditure,R&M -Buildings DLO Charge,Redacted Personal Information,16/06/2015,340.00
"Development, Business & Employment",Property & Design,CAAH,Premises-Related Expenditure,R&M -Buildings DLO Charge,SDT ELECTRICAL LTD,11/06/2015,225.00
"Development, Business & Employment",Property & Design,CAAH,Premises-Related Expenditure,R&M -Buildings DLO Charge,SDT ELECTRICAL LTD,11/06/2015,445.51
"Development, Business & Employment",Property & Design,CAAH,Premises-Related Expenditure,R&M -Buildings DLO Charge,SDT ELECTRICAL LTD,23/06/2015,195.00
"Development, Business & Employment",Property & Design,CAAH,Premises-Related Expenditure,R&M -Buildings DLO Charge,SDT ELECTRICAL LTD,03/06/2015,195.00
"Development, Business & Employment",Property & Design,CAAH,Premises-Related Expenditure,R&M -Buildings DLO Charge,SDT ELECTRICAL LTD,03/06/2015,135.00
"Development, Business & Employment",Property & Design,CAAH,Premises-Related Expenditure,R&M -Buildings DLO Charge,SDT ELECTRICAL LTD,03/06/2015,135.00
"Development, Business & Employment",Property & Design,CAAH,Premises-Related Expenditure,R&M -Buildings DLO Charge,SDT ELECTRICAL LTD,03/06/2015,385.00
"Development, Business & Employment",Property & Design,CAAH,Premises-Related Expenditure,R&M -Buildings DLO Charge,SECURITY WISE LTD,11/06/2015,132.00
"Development, Business & Employment",Property & Design,CAAH,Premises-Related Expenditure,R&M -Buildings DLO Charge,SECURITY WISE LTD,11/06/2015,150.00
"Development, Business & Employment",Property & Design,CAAH,Premises-Related Expenditure,R&M -Buildings DLO Charge,SECURITY WISE LTD,11/06/2015,185.00
"Development, Business & Employment",Property & Design,CAAH,Premises-Related Expenditure,R&M -Buildings DLO Charge,SECURITY WISE LTD,11/06/2015,240.00
"Development, Business & Employment",Property & Design,CAAH,Premises-Related Expenditure,R&M -Buildings DLO Charge,SECURITY WISE LTD,11/06/2015,126.00
"Development, Business & Employment",Property & Design,CAAH,Premises-Related Expenditure,R&M -Buildings DLO Charge,SECURITY WISE LTD,11/06/2015,160.00
"Development, Business & Employment",Property & Design,CAAH,Premises-Related Expenditure,R&M -Buildings DLO Charge,SECURITY WISE LTD,23/06/2015,195.00
"Development, Business & Employment",Property & Design,CAAH,Premises-Related Expenditure,R&M -Buildings DLO Charge,SECURITY WISE LTD,03/06/2015,185.00
"Development, Business & Employment",Property & Design,CAAH,Premises-Related Expenditure,R&M -Buildings DLO Charge,TAYLORS MECHANICAL H & P SERVICES LTD,11/06/2015,"1,128.00"
"Development, Business & Employment",Property & Design,CAAH,Premises-Related Expenditure,R&M -Buildings DLO Charge,TAYLORS MECHANICAL H & P SERVICES LTD,23/06/2015,116.40
"Development, Business & Employment",Property & Design,CAAH,Premises-Related Expenditure,R&M -Buildings DLO Charge,WESSEX LIFT CO. LTD,11/06/2015,188.50
"Development, Business & Employment",Property & Design,CAAH,Premises-Related Expenditure,R&M -Buildings DLO Charge,WREKIN DRAIN SERVICES LTD,12/06/2015,"1,152.00"
"Development, Business & Employment",Property & Design,CAAH,Premises-Related Expenditure,R&M -Buildings DLO Charge,WREKIN DRAIN SERVICES LTD,12/06/2015,710.00
"Development, Business & Employment",Property & Design,CAAH,Premises-Related Expenditure,R&M -Buildings DLO Charge,WREKIN DRAIN SERVICES LTD,03/06/2015,170.00
"Development, Business & Employment",Property & Design,CAAJ,Supplies & Services,Consultants Fees,MARTIN EVANS CONSTRUCTION LTD,05/06/2015,602.50
"Development, Business & Employment",Property & Design,COAE,Premises-Related Expenditure,R&M -Buildings DLO Charge,AGS AUTOMATIC DOORS LTD,11/06/2015,144.00
"Development, Business & Employment",Property & Design,COAE,Premises-Related Expenditure,Service Contracts,Churches Fire Security Ltd,18/06/2015,813.27
"Development, Business & Employment",Property & Design,COAE,Premises-Related Expenditure,General Rents,COMBINED PROPERTY CONTROL,15/06/2015,"118,150.13"
"Development, Business & Employment",Property & Design,COAE,Premises-Related Expenditure,Trade Refuse,FCC Recycling (UK) Ltd (39521486),18/06/2015,448.28
"Development, Business & Employment",Property & Design,COAE,Premises-Related Expenditure,Trade Refuse,FCC Recycling (UK) Ltd (39521486),18/06/2015,234.22
"Development, Business & Employment",Property & Design,COAE,Premises-Related Expenditure,Trade Refuse,FCC Recycling (UK) Ltd (39521486),18/06/2015,117.11
"Development, Business & Employment",Property & Design,COAE,Premises-Related Expenditure,Trade Refuse,FCC Recycling (UK) Ltd (39521486),18/06/2015,213.64
"Development, Business & Employment",Property & Design,COAE,Premises-Related Expenditure,Trade Refuse,FCC Recycling (UK) Ltd (39521486),18/06/2015,"1,199.92"
"Development, Business & Employment",Property & Design,COAE,Premises-Related Expenditure,Service Contracts,George Birchall Limited,09/06/2015,214.50
"Development, Business & Employment",Property & Design,COAE,Premises-Related Expenditure,Service Contracts,Green Assess Telford and Wrekin,03/06/2015,180.00
"Development, Business & Employment",Property & Design,COAE,Premises-Related Expenditure,Service Contracts,Green Assess Telford and Wrekin,03/06/2015,160.00
"Development, Business & Employment",Property & Design,COAE,Premises-Related Expenditure,Service Contracts,HYDRO-TECH ENVIRONMENTAL LLP,22/06/2015,150.00
"Development, Business & Employment",Property & Design,COAE,Premises-Related Expenditure,Service Contracts,HYDRO-TECH ENVIRONMENTAL LLP,23/06/2015,150.00
"Development, Business & Employment",Property & Design,COAE,Premises-Related Expenditure,R&M -Buildings DLO Charge,JCE & SONS LTD,29/06/2015,154.61
"Development, Business & Employment",Property & Design,COAE,Premises-Related Expenditure,R&M -Buildings DLO Charge,JCE & SONS LTD,03/06/2015,410.25
"Development, Business & Employment",Property & Design,COAE,Premises-Related Expenditure,R&M -Buildings DLO Charge,JCE & SONS LTD,18/06/2015,943.21
"Development, Business & Employment",Property & Design,COAE,Premises-Related Expenditure,R&M -Buildings DLO Charge,JONES & HAMPTON LTD,15/06/2015,229.13
"Development, Business & Employment",Property & Design,COAE,Premises-Related Expenditure,R&M -Buildings DLO Charge,JONES & HAMPTON LTD,29/06/2015,382.89
"Development, Business & Employment",Property & Design,COAE,Premises-Related Expenditure,R&M -Buildings DLO Charge,Lift Source (UK) Limited,18/06/2015,250.00
"Development, Business & Employment",Property & Design,COAE,Premises-Related Expenditure,Service Contracts,PP ELECTRICAL SERVICES (Shropshire) Ltd,29/06/2015,946.80
"Development, Business & Employment",Property & Design,COAE,Premises-Related Expenditure,Service Contracts,PP ELECTRICAL SERVICES (Shropshire) Ltd,30/06/2015,"1,018.80"
"Development, Business & Employment",Property & Design,COAE,Premises-Related Expenditure,Service Contracts,PP ELECTRICAL SERVICES (Shropshire) Ltd,08/06/2015,208.00
"Development, Business & Employment",Property & Design,COAE,Premises-Related Expenditure,Service Contracts,PP ELECTRICAL SERVICES (Shropshire) Ltd,29/06/2015,162.00
"Development, Business & Employment",Property & Design,COAE,Premises-Related Expenditure,Service Contracts,SECURITY WISE LTD,24/06/2015,111.00
"Development, Business & Employment",Property & Design,COAE,Premises-Related Expenditure,Service Contracts,SECURITY WISE LTD,24/06/2015,104.00
"Development, Business & Employment",Property & Design,COAE,Premises-Related Expenditure,R&M -Buildings DLO Charge,SECURITY WISE LTD,11/06/2015,102.00
"Development, Business & Employment",Property & Design,COAE,Premises-Related Expenditure,Service Contracts,SECURITY WISE LTD,18/06/2015,302.00
"Development, Business & Employment",Property & Design,COAE,Premises-Related Expenditure,Water Rates,SEVERN TRENT WATER LTD,11/06/2015,619.47
"Development, Business & Employment",Property & Design,COAE,Premises-Related Expenditure,Water Rates,SEVERN TRENT WATER LTD,11/06/2015,"3,709.78"
"Development, Business & Employment",Property & Design,COAE,Premises-Related Expenditure,Water Rates,SEVERN TRENT WATER LTD,18/06/2015,"2,050.12"
"Development, Business & Employment",Property & Design,COAE,Premises-Related Expenditure,R&M -Buildings DLO Charge,TURNER ENGINE POWERED SERVICES LTD,22/06/2015,378.00
"Development, Business & Employment",Property & Design,COAE,Premises-Related Expenditure,Gas,West Mercia Energy (WME),26/06/2015,742.10
"Development, Business & Employment",Property & Design,COAE,Premises-Related Expenditure,Electricity,West Mercia Energy (WME),05/06/2015,"2,585.70"
"Development, Business & Employment",Property & Design,COAE,Premises-Related Expenditure,Electricity,West Mercia Energy (WME),05/06/2015,814.05
"Development, Business & Employment",Property & Design,COAE,Premises-Related Expenditure,Electricity,West Mercia Energy (WME),26/06/2015,139.40
"Development, Business & Employment",Property & Design,COAE,Premises-Related Expenditure,Electricity,West Mercia Energy (WME),26/06/2015,823.45
"Development, Business & Employment",Property & Design,COAE,Premises-Related Expenditure,Electricity,West Mercia Energy (WME),26/06/2015,200.95
"Development, Business & Employment",Property & Design,COAE,Premises-Related Expenditure,Electricity,West Mercia Energy (WME),26/06/2015,166.55
"Development, Business & Employment",Property & Design,COAE,Premises-Related Expenditure,Electricity,West Mercia Energy (WME),26/06/2015,"1,073.07"
"Development, Business & Employment",Property & Design,COAE,Premises-Related Expenditure,Electricity,West Mercia Energy (WME),26/06/2015,110.48
"Development, Business & Employment",Property & Design,COAE,Premises-Related Expenditure,Electricity,West Mercia Energy (WME),26/06/2015,118.33
"Development, Business & Employment",Property & Design,COAE,Premises-Related Expenditure,Electricity,West Mercia Energy (WME),26/06/2015,137.40
"Development, Business & Employment",Property & Design,COAE,Premises-Related Expenditure,Gas,West Mercia Energy (WME),26/06/2015,"1,445.29"
"Development, Business & Employment",Property & Design,COAE,Premises-Related Expenditure,Electricity,West Mercia Energy (WME),26/06/2015,198.85
"Development, Business & Employment",Property & Design,COAE,Premises-Related Expenditure,Electricity,West Mercia Energy (WME),26/06/2015,177.78
"Development, Business & Employment",Property & Design,COAE,Premises-Related Expenditure,Electricity,West Mercia Energy (WME),26/06/2015,150.93
"Development, Business & Employment",Property & Design,COAE,Premises-Related Expenditure,Electricity,West Mercia Energy (WME),26/06/2015,"1,106.97"
"Development, Business & Employment",Property & Design,COAE,Premises-Related Expenditure,Electricity,West Mercia Energy (WME),26/06/2015,138.20
"Development, Business & Employment",Property & Design,COAE,Premises-Related Expenditure,Electricity,West Mercia Energy (WME),26/06/2015,"1,280.51"
"Development, Business & Employment",Property & Design,COAE,Premises-Related Expenditure,Electricity,West Mercia Energy (WME),26/06/2015,133.13
"Development, Business & Employment",Property & Design,COAE,Premises-Related Expenditure,Electricity,West Mercia Energy (WME),26/06/2015,161.94
"Development, Business & Employment",Property & Design,COAE,Premises-Related Expenditure,Electricity,West Mercia Energy (WME),10/06/2015,"2,515.02"
"Development, Business & Employment",Property & Design,COAE,Premises-Related Expenditure,Electricity,West Mercia Energy (WME),10/06/2015,847.69
"Development, Business & Employment",Property & Design,COAE,Premises-Related Expenditure,Electricity,West Mercia Energy (WME),17/06/2015,182.55
"Development, Business & Employment",Property & Design,COAE,Premises-Related Expenditure,Electricity,West Mercia Energy (WME),17/06/2015,266.30
"Development, Business & Employment",Property & Design,COAE,Premises-Related Expenditure,Electricity,West Mercia Energy (WME),17/06/2015,132.84
